﻿Directorate,Service,Division,Responsible Unit,Expense Type,Payment Date,Trans No,Net Amount,Supplier Name
Childrens Services,Cultural and Related Services,Open Spaces,Victoria Park,Repairs and Maintenance - Responsive - Water Features,03/07/2017,3895624,"6,963.00",SJ Hills Ltd
Childrens Services,Children's Social Care,Support Service and Management Costs,Welfare Catering,Kitchen Supplies - Food and Beverages,03/07/2017,3895625,741.34,Thomas Ridley & Son Ltd
Childrens Services,Children's Social Care,Support Service and Management Costs,Sch. Meals A/c - Central Production Unit,Kitchen Supplies - Food and Beverages,03/07/2017,3895626,306.06,Thomas Ridley & Son Ltd
Childrens Services,Children's Social Care,Support Service and Management Costs,Schools Catering,Kitchen Supplies - Food and Beverages,03/07/2017,3895627,501.59,Thomas Ridley & Son Ltd
Childrens Services,Children's Social Care,Support Service and Management Costs,Sch. Meals A/c - P.D.C. Cateen,Kitchen Supplies - Food and Beverages,03/07/2017,3895628,252.44,Thomas Ridley & Son Ltd
Childrens Services,Children's Social Care,Support Service and Management Costs,Schools Catering,Kitchen Supplies - Food and Beverages,03/07/2017,3895670,261.55,Thomas Ridley & Son Ltd
Childrens Services,Children's Social Care,Support Service and Management Costs,Schools Catering,Kitchen Supplies - Food and Beverages,03/07/2017,3895673,802.16,Thomas Ridley & Son Ltd
Childrens Services,Children's Social Care,Support Service and Management Costs,Schools Catering,Kitchen Supplies - Food and Beverages,03/07/2017,3895676,393.17,Thomas Ridley & Son Ltd
Childrens Services,Children's Social Care,Support Service and Management Costs,Schools Catering,Kitchen Supplies - Food and Beverages,03/07/2017,3895679,899.05,Thomas Ridley & Son Ltd
Childrens Services,Children's Social Care,Support Service and Management Costs,Schools Catering,Kitchen Supplies - Food and Beverages,03/07/2017,3895682,535.13,Thomas Ridley & Son Ltd
Childrens Services,Children's Social Care,Support Service and Management Costs,Schools Catering,Kitchen Supplies - Food and Beverages,03/07/2017,3895687,287.52,Thomas Ridley & Son Ltd
Childrens Services,Children's Social Care,Support Service and Management Costs,Schools Catering,Kitchen Supplies - Food and Beverages,03/07/2017,3895690,309.39,Thomas Ridley & Son Ltd
Childrens Services,Children's Social Care,Support Service and Management Costs,Schools Catering,Kitchen Supplies - Food and Beverages,03/07/2017,3895694,841.31,Thomas Ridley & Son Ltd
Childrens Services,Children's Social Care,Support Service and Management Costs,Schools Catering,Kitchen Supplies - Food and Beverages,03/07/2017,3895695,461.63,Thomas Ridley & Son Ltd
Childrens Services,Children's Social Care,Support Service and Management Costs,Schools Catering,Kitchen Supplies - Food and Beverages,03/07/2017,3895696,318.75,Thomas Ridley & Son Ltd
Childrens Services,Children's Social Care,Support Service and Management Costs,Schools Catering,Kitchen Supplies - Food and Beverages,03/07/2017,3895697,525.00,Thomas Ridley & Son Ltd
Childrens Services,Children's Social Care,Support Service and Management Costs,Schools Catering,Kitchen Supplies - Food and Beverages,03/07/2017,3895699,445.66,Thomas Ridley & Son Ltd
Childrens Services,Children's Social Care,Support Service and Management Costs,Schools Catering,Kitchen Supplies - Food and Beverages,03/07/2017,3895700,632.02,Thomas Ridley & Son Ltd
Childrens Services,Children's Social Care,Support Service and Management Costs,Schools Catering,Kitchen Supplies - Food and Beverages,03/07/2017,3895701,369.90,Thomas Ridley & Son Ltd
Childrens Services,Children's Social Care,Support Service and Management Costs,Schools Catering,Kitchen Supplies - Food and Beverages,03/07/2017,3895702,560.72,Thomas Ridley & Son Ltd
Childrens Services,Children's Social Care,Support Service and Management Costs,Schools Catering,Kitchen Supplies - Food and Beverages,03/07/2017,3895703,341.72,Thomas Ridley & Son Ltd
Childrens Services,Children's Social Care,Support Service and Management Costs,Schools Catering,Kitchen Supplies - Food and Beverages,03/07/2017,3895704,314.61,Thomas Ridley & Son Ltd
Childrens Services,Children's Social Care,Support Service and Management Costs,Schools Catering,Kitchen Supplies - Food and Beverages,03/07/2017,3895705,640.34,Thomas Ridley & Son Ltd
Childrens Services,Children's Social Care,Support Service and Management Costs,Schools Catering,Kitchen Supplies - Food and Beverages,03/07/2017,3895707,"1,178.54",Thomas Ridley & Son Ltd
Childrens Services,Children's Social Care,Support Service and Management Costs,Schools Catering,Kitchen Supplies - Food and Beverages,03/07/2017,3895708,429.17,Thomas Ridley & Son Ltd
Childrens Services,Children's Social Care,Support Service and Management Costs,Schools Catering,Kitchen Supplies - Food and Beverages,03/07/2017,3895709,492.77,Thomas Ridley & Son Ltd
Childrens Services,Children's Social Care,Support Service and Management Costs,Schools Catering,Kitchen Supplies - Food and Beverages,03/07/2017,3895710,474.50,Thomas Ridley & Son Ltd
Childrens Services,Children's Social Care,Support Service and Management Costs,Schools Catering,Kitchen Supplies - Food and Beverages,03/07/2017,3895711,"1,148.48",Thomas Ridley & Son Ltd
Childrens Services,Children's Social Care,Support Service and Management Costs,Schools Catering,Kitchen Supplies - Food and Beverages,03/07/2017,3895713,328.19,Thomas Ridley & Son Ltd
Childrens Services,Children's Social Care,Support Service and Management Costs,Schools Catering,Kitchen Supplies - Food and Beverages,03/07/2017,3895714,567.38,Thomas Ridley & Son Ltd
Childrens Services,Children's Social Care,Support Service and Management Costs,Schools Catering,Kitchen Supplies - Food and Beverages,03/07/2017,3895715,477.03,Thomas Ridley & Son Ltd
Childrens Services,Children's Social Care,Support Service and Management Costs,Schools Catering,Kitchen Supplies - Food and Beverages,03/07/2017,3895716,954.69,Thomas Ridley & Son Ltd
Childrens Services,Children's Social Care,Support Service and Management Costs,Schools Catering,Kitchen Supplies - Food and Beverages,03/07/2017,3895717,766.95,Thomas Ridley & Son Ltd
Childrens Services,Children's Social Care,Support Service and Management Costs,Schools Catering,Kitchen Supplies - Food and Beverages,03/07/2017,3895718,594.46,Thomas Ridley & Son Ltd
Childrens Services,Children's Social Care,Support Service and Management Costs,Schools Catering,Kitchen Supplies - Food and Beverages,03/07/2017,3895719,441.60,Thomas Ridley & Son Ltd
Childrens Services,Children's Social Care,Support Service and Management Costs,Schools Catering,Kitchen Supplies - Food and Beverages,03/07/2017,3895720,665.37,Thomas Ridley & Son Ltd
Childrens Services,Children's Social Care,Support Service and Management Costs,Schools Catering,Kitchen Supplies - Food and Beverages,03/07/2017,3895721,279.53,Thomas Ridley & Son Ltd
Childrens Services,Children's Social Care,Support Service and Management Costs,Schools Catering,Kitchen Supplies - Food and Beverages,03/07/2017,3895755,380.23,Thomas Ridley & Son Ltd
Childrens Services,Children's Social Care,Support Service and Management Costs,Schools Catering,Kitchen Supplies - Food and Beverages,03/07/2017,3895756,447.17,Thomas Ridley & Son Ltd
Childrens Services,Children's Social Care,Support Service and Management Costs,Schools Catering,Kitchen Supplies - Food and Beverages,03/07/2017,3895757,507.73,Thomas Ridley & Son Ltd
Childrens Services,Children's Social Care,Support Service and Management Costs,Schools Catering,Kitchen Supplies - Food and Beverages,03/07/2017,3895758,525.94,Thomas Ridley & Son Ltd
Childrens Services,Children's Social Care,Support Service and Management Costs,Schools Catering,Kitchen Supplies - Food and Beverages,03/07/2017,3895759,263.51,Thomas Ridley & Son Ltd
Childrens Services,Children's Social Care,Support Service and Management Costs,Schools Catering,Kitchen Supplies - Food and Beverages,03/07/2017,3895760,360.32,Thomas Ridley & Son Ltd
Childrens Services,Children's Social Care,Support Service and Management Costs,Schools Catering,Kitchen Supplies - Food and Beverages,03/07/2017,3895761,384.30,Thomas Ridley & Son Ltd
Childrens Services,Children's Social Care,Support Service and Management Costs,Schools Catering,Kitchen Supplies - Food and Beverages,03/07/2017,3895762,863.03,Thomas Ridley & Son Ltd
Childrens Services,Children's Social Care,Support Service and Management Costs,Schools Catering,Kitchen Supplies - Food and Beverages,03/07/2017,3895764,359.41,Thomas Ridley & Son Ltd
Childrens Services,Children's Social Care,Support Service and Management Costs,Schools Catering,Kitchen Supplies - Food and Beverages,03/07/2017,3895766,319.96,Thomas Ridley & Son Ltd
Childrens Services,Children's Social Care,Other Children's and Family Services,Permanent Placements,Services - Professional Fees - Feasibility Studies,03/07/2017,3895847,"2,450.00",Intuitive Blue Social Care Ltd
Childrens Services,Education Services,Early Years,Wapping CC,Removal Costs,03/07/2017,3895865,590.00,JC Coster (Metalworks) Ltd
Childrens Services,Children's Social Care,Children Looked After,S23-Other-Mother & Baby Unit,Childrens Act Section 23 - Placement Fee,03/07/2017,3895874,"12,642.86",OneOneCoCo
Childrens Services,Children's Social Care,Support Service and Management Costs,Sch. Meals A/c - Central Production Unit,Kitchen Supplies - Food and Beverages,03/07/2017,3895876,"1,016.22",Thomas Ridley & Son Ltd
Childrens Services,Children's Social Care,Support Service and Management Costs,Schools Catering,Kitchen Supplies - Food and Beverages,03/07/2017,3895884,296.91,Prescott-Thomas LTD.
Childrens Services,Children's Social Care,Children Looked After,S23 Fam Pl P&V-F/Care,Childrens Act Section 23 - All Contact Expenses,03/07/2017,3895900,522.00,Limehouse Children Contact Centre LTD
Childrens Services,Children's Social Care,Support Service and Management Costs,Schools Catering,Kitchen Supplies - Food and Beverages,03/07/2017,3895962,618.18,Thomas Ridley & Son Ltd
Childrens Services,Children's Social Care,Support Service and Management Costs,Schools Catering,Kitchen Supplies - Food and Beverages,03/07/2017,3896061,257.16,Prescott-Thomas LTD.
Childrens Services,Children's Social Care,Support Service and Management Costs,Schools Catering,Kitchen Supplies - Food and Beverages,03/07/2017,3896064,278.04,Prescott-Thomas LTD.
Childrens Services,Education Services,Other Strategic Functions,Family Information Services,Computing - Purchase of Hardware,03/07/2017,3896665,384.95,Highgate IT
Childrens Services,Education Services,Other Strategic Functions,High Needs Academies & Free Schs,Third Party Payments - Payments to Schools,03/07/2017,3897504,"19,990.00",The Bridge School
Childrens Services,Children's Social Care,Children Looked After,Leaving Care-UASC,Leaving Care Financial Assistance - Supp Accom/Hous Rents,03/07/2017,3898066,"1,056.95",Pangea Support Services
Childrens Services,Children's Social Care,Children Looked After,Leaving Care-UASC,Leaving Care Financial Assistance - Supp Accom/Hous Rents,03/07/2017,3898068,"1,024.63",Pangea Support Services
Childrens Services,Children's Social Care,Children Looked After,Leaving Care-UASC,Leaving Care Financial Assistance - Supp Accom/Hous Rents,03/07/2017,3898071,"1,024.63",Pangea Support Services
Childrens Services,Children's Social Care,Children Looked After,Leaving Care-UASC,Leaving Care Financial Assistance - Reg Plan Maint L-Allow,03/07/2017,3898116,256.86,Pangea Support Services
Childrens Services,Children's Social Care,Children Looked After,Leaving Care-UASC,Leaving Care Financial Assistance - Supp Accom/Hous Rents,03/07/2017,3898116,"1,085.00",Pangea Support Services
Childrens Services,Cultural and Related Services,Recreation & Sport,Sports Development,Recreational Activities,03/07/2017,3898240,392.40,Victoria Park Harriers & THAC
Childrens Services,Cultural and Related Services,Culture & Heritage,Arts-Park Events,Events & Exhibition Supplies,03/07/2017,3898270,"2,190.00",M & J Engineers
Childrens Services,Children's Social Care,Children Looked After,Leaving Care-UASC,Leaving Care Financial Assistance - Supp Accom/Hous Rents,03/07/2017,3898375,580.62,Pangea Support Services
Childrens Services,Children's Social Care,Children Looked After,S23-Resi-P&V/OLA-Sec Acc-Wel,Childrens Act Section 23 - Placement Fee,03/07/2017,3898415,"8,316.00",Devon CC (Placements)
Childrens Services,Children's Social Care,Support Service and Management Costs,Schools Catering,Kitchen Supplies - Food and Beverages,03/07/2017,3898660,431.22,William White Meats Ltd
Childrens Services,Children's Social Care,Support Service and Management Costs,Sch. Meals A/c - Central Production Unit,Kitchen Supplies - Food and Beverages,03/07/2017,3898661,435.90,William White Meats Ltd
Childrens Services,Children's Social Care,Support Service and Management Costs,Schools Catering,Kitchen Supplies - Food and Beverages,03/07/2017,3898697,318.64,William White Meats Ltd
Childrens Services,Children's Social Care,Support Service and Management Costs,Schools Catering,Kitchen Supplies - Food and Beverages,03/07/2017,3898721,357.01,William White Meats Ltd
Childrens Services,Children's Social Care,Support Service and Management Costs,Schools Catering,Kitchen Supplies - Food and Beverages,03/07/2017,3898742,390.85,William White Meats Ltd
Childrens Services,Children's Social Care,Support Service and Management Costs,Schools Catering,Kitchen Supplies - Food and Beverages,03/07/2017,3898769,282.11,William White Meats Ltd
Childrens Services,Children's Social Care,Support Service and Management Costs,Schools Catering,Kitchen Supplies - Food and Beverages,03/07/2017,3898790,634.99,William White Meats Ltd
Childrens Services,Children's Social Care,Support Service and Management Costs,Schools Catering,Kitchen Supplies - Food and Beverages,03/07/2017,3898804,483.40,William White Meats Ltd
Childrens Services,Children's Social Care,Support Service and Management Costs,Schools Catering,Kitchen Supplies - Food and Beverages,03/07/2017,3898827,292.50,William White Meats Ltd
Childrens Services,Children's Social Care,Support Service and Management Costs,Schools Catering,Kitchen Supplies - Food and Beverages,03/07/2017,3898839,627.12,William White Meats Ltd
Childrens Services,Children's Social Care,Support Service and Management Costs,Schools Catering,Kitchen Supplies - Food and Beverages,03/07/2017,3898844,440.96,William White Meats Ltd
Childrens Services,Children's Social Care,Support Service and Management Costs,Schools Catering,Kitchen Supplies - Food and Beverages,03/07/2017,3898852,420.54,William White Meats Ltd
Childrens Services,Children's Social Care,Support Service and Management Costs,Schools Catering,Kitchen Supplies - Food and Beverages,03/07/2017,3898872,254.13,William White Meats Ltd
Childrens Services,Children's Social Care,Support Service and Management Costs,Schools Catering,Kitchen Supplies - Food and Beverages,03/07/2017,3898884,335.68,William White Meats Ltd
Childrens Services,Children's Social Care,Support Service and Management Costs,Schools Catering,Kitchen Supplies - Food and Beverages,03/07/2017,3898892,342.99,William White Meats Ltd
Childrens Services,Children's Social Care,Support Service and Management Costs,Schools Catering,Kitchen Supplies - Food and Beverages,03/07/2017,3898900,315.59,William White Meats Ltd
Childrens Services,Children's Social Care,Support Service and Management Costs,Schools Catering,Kitchen Supplies - Food and Beverages,03/07/2017,3898908,310.64,William White Meats Ltd
Childrens Services,Children's Social Care,Support Service and Management Costs,Schools Catering,Kitchen Supplies - Food and Beverages,03/07/2017,3898924,282.52,William White Meats Ltd
Childrens Services,Children's Social Care,Support Service and Management Costs,Schools Catering,Kitchen Supplies - Food and Beverages,03/07/2017,3898928,282.99,William White Meats Ltd
Childrens Services,Children's Social Care,Support Service and Management Costs,Schools Catering,Kitchen Supplies - Food and Beverages,03/07/2017,3898939,289.48,William White Meats Ltd
Childrens Services,Children's Social Care,Support Service and Management Costs,Schools Catering,Kitchen Supplies - Food and Beverages,03/07/2017,3898941,303.36,William White Meats Ltd
Childrens Services,Children's Social Care,Support Service and Management Costs,Schools Catering,Kitchen Supplies - Food and Beverages,03/07/2017,3898945,253.92,William White Meats Ltd
Childrens Services,Children's Social Care,Support Service and Management Costs,Schools Catering,Kitchen Supplies - Food and Beverages,03/07/2017,3898949,866.09,William White Meats Ltd
Childrens Services,Children's Social Care,Support Service and Management Costs,Schools Catering,Kitchen Supplies - Food and Beverages,03/07/2017,3898951,255.80,William White Meats Ltd
Childrens Services,Children's Social Care,Support Service and Management Costs,Schools Catering,Kitchen Supplies - Food and Beverages,03/07/2017,3898955,439.73,William White Meats Ltd
Childrens Services,Children's Social Care,Support Service and Management Costs,Schools Catering,Kitchen Supplies - Food and Beverages,03/07/2017,3898959,740.53,William White Meats Ltd
Childrens Services,Children's Social Care,Support Service and Management Costs,Schools Catering,Kitchen Supplies - Food and Beverages,03/07/2017,3898971,586.26,William White Meats Ltd
Childrens Services,Children's Social Care,Support Service and Management Costs,Schools Catering,Kitchen Supplies - Food and Beverages,03/07/2017,3898973,397.21,William White Meats Ltd
Childrens Services,Children's Social Care,Support Service and Management Costs,Schools Catering,Kitchen Supplies - Food and Beverages,03/07/2017,3898977,706.86,William White Meats Ltd
Childrens Services,Children's Social Care,Support Service and Management Costs,Schools Catering,Kitchen Supplies - Food and Beverages,03/07/2017,3898994,382.13,William White Meats Ltd
Childrens Services,Children's Social Care,Support Service and Management Costs,Schools Catering,Kitchen Supplies - Food and Beverages,03/07/2017,3899003,409.70,William White Meats Ltd
Childrens Services,Children's Social Care,Children Looked After,S23 Fam Pl P&V-F/Care,Childrens Act Section 23 - Placement Fee,03/07/2017,3899418,"2,889.34",COMPASS FOSTERING LONDON LIMITED
Childrens Services,Children's Social Care,Children Looked After,S23 Family Placements P&V,Childrens Act Section 23 - Placement Fee,03/07/2017,3899419,"4,977.60",COMPASS FOSTERING LONDON LIMITED
Childrens Services,Children's Social Care,Children Looked After,S23 Fam Pl P&V-F/Care,Childrens Act Section 23 - Placement Fee,03/07/2017,3899420,"4,194.30",COMPASS FOSTERING LONDON LIMITED
Childrens Services,Children's Social Care,Children Looked After,S23 Fam Pl P&V-F/Care,Childrens Act Section 23 - Placement Fee,03/07/2017,3899421,"3,167.10",COMPASS FOSTERING LONDON LIMITED
Childrens Services,Children's Social Care,Children Looked After,S23 Fam Pl P&V-F/Care,Childrens Act Section 23 - Placement Fee,03/07/2017,3899422,"3,167.10",COMPASS FOSTERING LONDON LIMITED
Childrens Services,Children's Social Care,Children Looked After,S23 Fam Pl P&V-F/Care,Childrens Act Section 23 - Placement Fee,03/07/2017,3899423,"3,167.10",COMPASS FOSTERING LONDON LIMITED
Childrens Services,Children's Social Care,Support Service and Management Costs,Welfare Catering,Kitchen Supplies - Food and Beverages,03/07/2017,3899491,520.90,William White Meats Ltd
Childrens Services,Children's Social Care,Children Looked After,S23 Fam Pl P&V-F/Care,Childrens Act Section 23 - Placement Fee,03/07/2017,3899540,"2,889.34",COMPASS FOSTERING LONDON LIMITED
Childrens Services,Children's Social Care,Support Service and Management Costs,Schools Catering,Kitchen Supplies - Food and Beverages,03/07/2017,3899566,270.13,William White Meats Ltd
Childrens Services,Children's Social Care,Children Looked After,S23 Fam Pl P&V-F/Care,Childrens Act Section 23 - Placement Fee,03/07/2017,3899584,"2,889.34",COMPASS FOSTERING LONDON LIMITED
Childrens Services,Children's Social Care,Children Looked After,S23 Fam Pl In-Hse-S/Term F/C,Childrens Act Section 23 - All Contact Expenses,03/07/2017,3900506,291.00,Limehouse Children Contact Centre LTD
Childrens Services,Children's Social Care,Children Looked After,Leaving Care-UASC,Leaving Care Financial Assistance - Grant Pay Special Needs,03/07/2017,3901443,336.00,Inline removals & storage ltd
Childrens Services,Education Services,Other Strategic Functions,High Needs Other Boroughs,Third Party Payments - Payments to Schools,03/07/2017,3901524,"10,541.33",Southview School
Childrens Services,Children's Social Care,Children Looked After,S23-Resi-P&V/OLA-Child Home,Childrens Act Section 23 - Placement Fee,03/07/2017,3901530,"12,219.34",Ethelbert Specialist Homes LTD
Childrens Services,Education Services,Other Strategic Functions,Music Trading Account,Events & Exhibition Supplies,03/07/2017,3903142,"1,000.00",Redacted Section 40 FOI Act
Childrens Services,Education Services,Other Strategic Functions,Special Education Needs DSG,Third Party Payments - Payments to Schools,03/07/2017,3904874,"7,000.00",The Complete Works Ltd
Childrens Services,Education Services,Other Strategic Functions,Special Education Needs DSG,Third Party Payments - Payments to Schools,03/07/2017,3904915,"7,000.00",The Complete Works Ltd
Childrens Services,Education Services,Other Strategic Functions,Special Education Needs DSG,Third Party Payments - Payments to Schools,03/07/2017,3904929,"7,000.00",The Complete Works Ltd
Childrens Services,Education Services,Other Strategic Functions,Special Education Needs DSG,Third Party Payments - Payments to Schools,03/07/2017,3904945,"7,000.00",The Complete Works Ltd
Childrens Services,Education Services,Other Strategic Functions,Special Education Needs DSG,Third Party Payments - Payments to Schools,03/07/2017,3904952,"7,000.00",The Complete Works Ltd
Childrens Services,Children's Social Care,Family Support Services,CNN Pool: Children Direct Paym,Social Care - Direct Payments,03/07/2017,3905445,810.86,DH TOWER HAMLETS
Childrens Services,Children's Social Care,Family Support Services,CNN Pool: Children Direct Paym,Social Care - Direct Payments,03/07/2017,3905446,674.60,DH TOWER HAMLETS
Childrens Services,Children's Social Care,Family Support Services,CNN Pool: Children Direct Paym,Social Care - Direct Payments,03/07/2017,3905453,674.60,DH TOWER HAMLETS
Childrens Services,Children's Social Care,Family Support Services,CNN Pool: Children Direct Paym,Social Care - Direct Payments,03/07/2017,3905456,929.40,DH TOWER HAMLETS
Childrens Services,Children's Social Care,Family Support Services,CNN Pool: Children Direct Paym,Social Care - Direct Payments,03/07/2017,3905457,"1,139.56",DH TOWER HAMLETS
Childrens Services,Children's Social Care,Family Support Services,CNN Pool: Children Direct Paym,Social Care - Direct Payments,03/07/2017,3905461,674.60,DH TOWER HAMLETS
Childrens Services,Children's Social Care,Family Support Services,CNN Pool: Children Direct Paym,Social Care - Direct Payments,03/07/2017,3905467,794.60,DH TOWER HAMLETS
Childrens Services,Children's Social Care,Family Support Services,CNN Pool: Children Direct Paym,Social Care - Direct Payments,03/07/2017,3905472,"1,401.78",D D PAYROLL SERVICES
Childrens Services,Children's Social Care,Family Support Services,CNN Pool: Children Direct Paym,Social Care - Direct Payments,03/07/2017,3905474,"7,169.06",DH TOWER HAMLETS
Childrens Services,Children's Social Care,Family Support Services,CNN Pool: Children Direct Paym,Social Care - Direct Payments,03/07/2017,3905477,"1,349.20",DH TOWER HAMLETS
Childrens Services,Children's Social Care,Family Support Services,CNN Pool: Children Direct Paym,Social Care - Direct Payments,03/07/2017,3905478,898.42,DH TOWER HAMLETS
Childrens Services,Children's Social Care,Family Support Services,CNN Pool: Children Direct Paym,Social Care - Direct Payments,03/07/2017,3905479,449.73,DH TOWER HAMLETS
Childrens Services,Children's Social Care,Family Support Services,CNN Pool: Children Direct Paym,Social Care - Direct Payments,03/07/2017,3905481,674.60,DH TOWER HAMLETS
Childrens Services,Children's Social Care,Family Support Services,CNN Pool: Children Direct Paym,Social Care - Direct Payments,03/07/2017,3905485,"1,019.42",DH TOWER HAMLETS
Childrens Services,Children's Social Care,Family Support Services,CNN Pool: Children Direct Paym,Social Care - Direct Payments,03/07/2017,3905491,674.60,DH TOWER HAMLETS
Childrens Services,Children's Social Care,Family Support Services,CNN Pool: Children Direct Paym,Social Care - Direct Payments,03/07/2017,3905493,"4,321.10",DH TOWER HAMLETS
Childrens Services,Children's Social Care,Family Support Services,CNN Pool: Children Direct Paym,Social Care - Direct Payments,03/07/2017,3905494,674.56,DH TOWER HAMLETS
Childrens Services,Children's Social Care,Family Support Services,CNN Pool: Children Direct Paym,Social Care - Direct Payments,03/07/2017,3905495,674.60,DH TOWER HAMLETS
Childrens Services,Children's Social Care,Family Support Services,CNN Pool: Children Direct Paym,Social Care - Direct Payments,03/07/2017,3905496,674.60,DH TOWER HAMLETS
Childrens Services,Children's Social Care,Family Support Services,CNN Pool: Children Direct Paym,Social Care - Direct Payments,03/07/2017,3905497,929.45,DH TOWER HAMLETS
Childrens Services,Children's Social Care,Family Support Services,CNN Pool: Children Direct Paym,Social Care - Direct Payments,03/07/2017,3905498,"1,469.12",DH TOWER HAMLETS
Childrens Services,Children's Social Care,Family Support Services,CNN Pool: Children Direct Paym,Social Care - Direct Payments,03/07/2017,3905502,"15,129.58",DH TOWER HAMLETS
Childrens Services,Children's Social Care,Family Support Services,CNN Pool: Children Direct Paym,Social Care - Direct Payments,03/07/2017,3905512,899.46,DH TOWER HAMLETS
Childrens Services,Children's Social Care,Family Support Services,CNN Pool: Children Direct Paym,Social Care - Direct Payments,03/07/2017,3905514,"8,526.66",DH TOWER HAMLETS
Childrens Services,Children's Social Care,Family Support Services,CNN Pool: Children Direct Paym,Social Care - Direct Payments,03/07/2017,3905517,548.40,DH TOWER HAMLETS
Childrens Services,Children's Social Care,Family Support Services,CNN Pool: Children Direct Paym,Social Care - Direct Payments,03/07/2017,3905521,794.60,DH TOWER HAMLETS
Childrens Services,Children's Social Care,Family Support Services,CNN Pool: Children Direct Paym,Social Care - Direct Payments,03/07/2017,3905522,"2,248.66",DH TOWER HAMLETS
Childrens Services,Children's Social Care,Family Support Services,CNN Pool: Children Direct Paym,Social Care - Direct Payments,03/07/2017,3905523,674.60,DH TOWER HAMLETS
Childrens Services,Children's Social Care,Family Support Services,CNN Pool: Children Direct Paym,Social Care - Direct Payments,03/07/2017,3905524,899.46,D D PAYROLL SERVICES
Childrens Services,Children's Social Care,Family Support Services,CNN Pool: Children Direct Paym,Social Care - Direct Payments,03/07/2017,3905526,929.40,DH TOWER HAMLETS
Childrens Services,Children's Social Care,Family Support Services,CNN Pool: Children Direct Paym,Social Care - Direct Payments,03/07/2017,3905527,794.60,DH TOWER HAMLETS
Childrens Services,Children's Social Care,Family Support Services,CNN Pool: Children Direct Paym,Social Care - Direct Payments,03/07/2017,3905528,794.60,DH TOWER HAMLETS
Childrens Services,Children's Social Care,Family Support Services,CNN Pool: Children Direct Paym,Social Care - Direct Payments,03/07/2017,3905529,794.60,DH TOWER HAMLETS
Childrens Services,Children's Social Care,Family Support Services,CNN Pool: Children Direct Paym,Social Care - Direct Payments,03/07/2017,3905531,794.60,DH TOWER HAMLETS
Childrens Services,Children's Social Care,Family Support Services,CNN Pool: Children Direct Paym,Social Care - Direct Payments,03/07/2017,3905532,899.46,DH TOWER HAMLETS
Childrens Services,Children's Social Care,Family Support Services,CNN Pool: Children Direct Paym,Social Care - Direct Payments,03/07/2017,3905534,"2,626.70",DH TOWER HAMLETS
Childrens Services,Children's Social Care,Family Support Services,CNN Pool: Children Direct Paym,Social Care - Direct Payments,03/07/2017,3905535,674.60,DH TOWER HAMLETS
Childrens Services,Children's Social Care,Family Support Services,CNN Pool: Children Direct Paym,Social Care - Direct Payments,03/07/2017,3905537,674.60,DH TOWER HAMLETS
Childrens Services,Children's Social Care,Family Support Services,CNN Pool: Children Direct Paym,Social Care - Direct Payments,03/07/2017,3905538,794.60,DH TOWER HAMLETS
Childrens Services,Children's Social Care,Family Support Services,CNN Pool: Children Direct Paym,Social Care - Direct Payments,03/07/2017,3905539,"1,006.60",DH TOWER HAMLETS
Childrens Services,Children's Social Care,Family Support Services,CNN Pool: Children Direct Paym,Social Care - Direct Payments,03/07/2017,3905540,"1,208.60",DH TOWER HAMLETS
Childrens Services,Children's Social Care,Family Support Services,CNN Pool: Children Direct Paym,Social Care - Direct Payments,03/07/2017,3905541,794.60,DH TOWER HAMLETS
Childrens Services,Children's Social Care,Family Support Services,CNN Pool: Children Direct Paym,Social Care - Direct Payments,03/07/2017,3905542,794.60,DH TOWER HAMLETS
Childrens Services,Children's Social Care,Service Strategy,89 CA Sec 17 Chld in Need BOW,Transport Dept Charges,03/07/2017,3907426,300.00,Sonny White Removals
Childrens Services,Education Services,Other Strategic Functions,Central Pupil Database Project,Computing - Apportionment of Costs,03/07/2017,3907791,"3,515.00",Agilisys Professional Services
Childrens Services,Children's Social Care,Youth Justice,Youth Justice Team,Services - Professional Fees - Partnership Arrangement,03/07/2017,3907792,"43,378.50",Agilisys Professional Services
Childrens Services,Children's Social Care,Children's and Young People's Safety,Community Safeguarding,Third Party Payments - Voluntary Associations,03/07/2017,3907865,"1,005.00",Osmani Trust
Childrens Services,Children's Social Care,Family Support Services,CNN Pool: Joint Family Support,Children with Disabilities - Special Care in the Home,03/07/2017,3907890,257.25,Allied Healthcare Group LTD
Childrens Services,Education Services,Other Strategic Functions,Central Pupil Database Project,Computing - Apportionment of Costs,03/07/2017,3907892,"3,515.00",Agilisys Professional Services
Childrens Services,Education Services,Other Strategic Functions,Central Pupil Database Project,Computing - Apportionment of Costs,03/07/2017,3907910,"3,515.00",Agilisys Professional Services
Childrens Services,Children's Social Care,Other Children's and Family Services,Adoption Support,Social Care - Adoption Allowance,03/07/2017,3908102,"1,200.00",TV EDWARDS SOLICITORS
Childrens Services,Children's Social Care,Children Looked After,S23 Fam Pl P&V-F/Care,Childrens Act Section 23 - Placement Fee,05/07/2017,3887703,"3,875.00",Ryancare Fostering Ltd
Childrens Services,Children's Social Care,Children Looked After,S23-Resi-P&V/OLA-Child Home,Childrens Act Section 23 - Placement Fee,05/07/2017,3895854,"15,500.00",Era Care Ltd
Childrens Services,Children's Social Care,Support Service and Management Costs,Schools Catering,Kitchen Supplies - Food and Beverages,05/07/2017,3896013,395.29,Thomas Ridley & Son Ltd
Childrens Services,Children's Social Care,Support Service and Management Costs,Schools Catering,Kitchen Supplies - Food and Beverages,05/07/2017,3896020,272.77,Thomas Ridley & Son Ltd
Childrens Services,Children's Social Care,Support Service and Management Costs,Schools Catering,Kitchen Supplies - Food and Beverages,05/07/2017,3896055,379.94,Thomas Ridley & Son Ltd
Childrens Services,Education Services,Other Strategic Functions,Attendance & Welf Service GF,Stationery,05/07/2017,3896486,331.34,Office Depot (Catalogue)
Childrens Services,Children's Social Care,Support Service and Management Costs,Sch. Meals A/c - Central Production Unit,Kitchen Supplies - Food and Beverages,05/07/2017,3896555,799.63,Thomas Ridley & Son Ltd
Childrens Services,Children's Social Care,Support Service and Management Costs,Welfare Catering,Kitchen Supplies - Food and Beverages,05/07/2017,3896556,686.44,Thomas Ridley & Son Ltd
Childrens Services,Children's Social Care,Support Service and Management Costs,"Mulberry Caf�		",Kitchen Supplies - Food and Beverages,05/07/2017,3896557,352.08,Thomas Ridley & Son Ltd
Childrens Services,Cultural and Related Services,Open Spaces,Victoria Park,Services - Professional Fees - Security Fees,05/07/2017,3896559,444.30,OCS T/A LEGION
Childrens Services,Children's Social Care,Support Service and Management Costs,Sch. Meals A/c - Central Production Unit,Kitchen Supplies - Food and Beverages,05/07/2017,3896566,404.12,Prescott-Thomas LTD.
Childrens Services,No Service Specified,No Division Specified,Capital-Minor Works (SC),Other External Fees - Consultants Fees,05/07/2017,3896573,"71,729.00",Architype
Childrens Services,No Service Specified,No Division Specified,Capital-Minor Works (SC),Other External Fees - Architects Fees,05/07/2017,3896574,"3,000.00",Architype
Childrens Services,Children's Social Care,Children Looked After,Leaving Care-UASC,Leaving Care Financial Assistance - Supp Accom/Hous Rents,05/07/2017,3896673,"1,043.33",Light Touch Accomodation Ltd
Childrens Services,Children's Social Care,Children Looked After,Leaving Care-UASC,Leaving Care Financial Assistance - Supp Accom/Hous Rents,05/07/2017,3896674,"1,643.98",Light Touch Accomodation Ltd
Childrens Services,Children's Social Care,Children Looked After,LCS/Allowances-Accom,Leaving Care Financial Assistance - Supp Accom/Hous Rents,05/07/2017,3896676,"2,342.47",Light Touch Accomodation Ltd
Childrens Services,Children's Social Care,Children Looked After,LCS/Allowances-Accom,Leaving Care Financial Assistance - Supp Accom/Hous Rents,05/07/2017,3896677,"2,714.68",Light Touch Accomodation Ltd
Childrens Services,Children's Social Care,Children Looked After,LCS/Allowances-Accom,Leaving Care Financial Assistance - Supp Accom/Hous Rents,05/07/2017,3896678,"1,201.98",Light Touch Accomodation Ltd
Childrens Services,Children's Social Care,Children Looked After,LCS/Allowances-Accom,Leaving Care Financial Assistance - Supp Accom/Hous Rents,05/07/2017,3896679,"1,792.12",Light Touch Accomodation Ltd
Childrens Services,Children's Social Care,Children Looked After,LCS/Allowances-Accom,Leaving Care Financial Assistance - Supp Accom/Hous Rents,05/07/2017,3896680,"1,461.75",Light Touch Accomodation Ltd
Childrens Services,Children's Social Care,Children Looked After,LCS/Allowances-Accom,Leaving Care Financial Assistance - Supp Accom/Hous Rents,05/07/2017,3896681,"2,714.68",Light Touch Accomodation Ltd
Childrens Services,Children's Social Care,Children Looked After,LCS/Allowances-Accom,Leaving Care Financial Assistance - Supp Accom/Hous Rents,05/07/2017,3896682,"2,714.68",Light Touch Accomodation Ltd
Childrens Services,No Service Specified,No Division Specified,Capital-Minor Works (SC),Other External Fees - Consultants Fees,05/07/2017,3896799,"4,095.00",Architype
Childrens Services,Children's Social Care,Support Service and Management Costs,Schools Catering,Kitchen Supplies - Food and Beverages,05/07/2017,3896854,391.67,Thomas Ridley & Son Ltd
Childrens Services,Children's Social Care,Support Service and Management Costs,Schools Catering,Kitchen Supplies - Food and Beverages,05/07/2017,3896859,442.28,Thomas Ridley & Son Ltd
Childrens Services,Children's Social Care,Support Service and Management Costs,Schools Catering,Kitchen Supplies - Food and Beverages,05/07/2017,3896861,273.51,Thomas Ridley & Son Ltd
Childrens Services,Children's Social Care,Support Service and Management Costs,Schools Catering,Kitchen Supplies - Food and Beverages,05/07/2017,3896867,527.45,Thomas Ridley & Son Ltd
Childrens Services,Children's Social Care,Support Service and Management Costs,Schools Catering,Kitchen Supplies - Food and Beverages,05/07/2017,3896869,653.91,Thomas Ridley & Son Ltd
Childrens Services,Children's Social Care,Support Service and Management Costs,Schools Catering,Kitchen Supplies - Food and Beverages,05/07/2017,3896871,347.06,Thomas Ridley & Son Ltd
Childrens Services,Children's Social Care,Support Service and Management Costs,Schools Catering,Kitchen Supplies - Food and Beverages,05/07/2017,3896876,540.83,Thomas Ridley & Son Ltd
Childrens Services,Children's Social Care,Support Service and Management Costs,Schools Catering,Kitchen Supplies - Food and Beverages,05/07/2017,3896878,458.33,Thomas Ridley & Son Ltd
Childrens Services,Children's Social Care,Support Service and Management Costs,Schools Catering,Kitchen Supplies - Food and Beverages,05/07/2017,3896880,298.55,Thomas Ridley & Son Ltd
Childrens Services,Children's Social Care,Support Service and Management Costs,Schools Catering,Kitchen Supplies - Food and Beverages,05/07/2017,3896882,447.96,Thomas Ridley & Son Ltd
Childrens Services,Children's Social Care,Support Service and Management Costs,Schools Catering,Kitchen Supplies - Food and Beverages,05/07/2017,3897408,311.88,Thomas Ridley & Son Ltd
Childrens Services,Children's Social Care,Support Service and Management Costs,Schools Catering,Kitchen Supplies - Food and Beverages,05/07/2017,3897411,296.42,Thomas Ridley & Son Ltd
Childrens Services,Children's Social Care,Support Service and Management Costs,Schools Catering,Kitchen Supplies - Food and Beverages,05/07/2017,3897414,362.81,Thomas Ridley & Son Ltd
Childrens Services,Children's Social Care,Support Service and Management Costs,Schools Catering,Kitchen Supplies - Food and Beverages,05/07/2017,3897416,536.45,Thomas Ridley & Son Ltd
Childrens Services,Children's Social Care,Support Service and Management Costs,Schools Catering,Kitchen Supplies - Food and Beverages,05/07/2017,3897417,468.65,Thomas Ridley & Son Ltd
Childrens Services,Children's Social Care,Support Service and Management Costs,Schools Catering,Kitchen Supplies - Food and Beverages,05/07/2017,3897418,333.67,Thomas Ridley & Son Ltd
Childrens Services,Children's Social Care,Support Service and Management Costs,Schools Catering,Kitchen Supplies - Food and Beverages,05/07/2017,3897420,263.96,Thomas Ridley & Son Ltd
Childrens Services,Children's Social Care,Support Service and Management Costs,Schools Catering,Kitchen Supplies - Food and Beverages,05/07/2017,3897422,274.98,Thomas Ridley & Son Ltd
Childrens Services,Children's Social Care,Support Service and Management Costs,Schools Catering,Kitchen Supplies - Food and Beverages,05/07/2017,3897423,386.17,Thomas Ridley & Son Ltd
Childrens Services,Children's Social Care,Support Service and Management Costs,Schools Catering,Kitchen Supplies - Food and Beverages,05/07/2017,3897424,388.91,Thomas Ridley & Son Ltd
Childrens Services,Children's Social Care,Support Service and Management Costs,Schools Catering,Kitchen Supplies - Food and Beverages,05/07/2017,3897427,325.96,Thomas Ridley & Son Ltd
Childrens Services,Children's Social Care,Support Service and Management Costs,Schools Catering,Kitchen Supplies - Food and Beverages,05/07/2017,3897429,527.68,Thomas Ridley & Son Ltd
Childrens Services,Children's Social Care,Support Service and Management Costs,Schools Catering,Kitchen Supplies - Food and Beverages,05/07/2017,3897432,341.75,Thomas Ridley & Son Ltd
Childrens Services,Children's Social Care,Support Service and Management Costs,Schools Catering,Kitchen Supplies - Food and Beverages,05/07/2017,3897438,"1,030.92",Thomas Ridley & Son Ltd
Childrens Services,Children's Social Care,Support Service and Management Costs,Schools Catering,Kitchen Supplies - Food and Beverages,05/07/2017,3897439,596.15,Thomas Ridley & Son Ltd
Childrens Services,Children's Social Care,Support Service and Management Costs,Schools Catering,Kitchen Supplies - Food and Beverages,05/07/2017,3897440,280.01,Thomas Ridley & Son Ltd
Childrens Services,Children's Social Care,Support Service and Management Costs,Schools Catering,Kitchen Supplies - Food and Beverages,05/07/2017,3897442,425.01,Thomas Ridley & Son Ltd
Childrens Services,Children's Social Care,Support Service and Management Costs,Schools Catering,Kitchen Supplies - Food and Beverages,05/07/2017,3897445,877.27,Thomas Ridley & Son Ltd
Childrens Services,Children's Social Care,Support Service and Management Costs,Schools Catering,Kitchen Supplies - Food and Beverages,05/07/2017,3897447,674.28,Thomas Ridley & Son Ltd
Childrens Services,Children's Social Care,Support Service and Management Costs,Schools Catering,Kitchen Supplies - Food and Beverages,05/07/2017,3897448,289.53,Thomas Ridley & Son Ltd
Childrens Services,Children's Social Care,Support Service and Management Costs,Schools Catering,Kitchen Supplies - Food and Beverages,05/07/2017,3897449,651.33,Thomas Ridley & Son Ltd
Childrens Services,Children's Social Care,Support Service and Management Costs,Schools Catering,Kitchen Supplies - Food and Beverages,05/07/2017,3897454,487.25,Thomas Ridley & Son Ltd
Childrens Services,Children's Social Care,Support Service and Management Costs,Schools Catering,Kitchen Supplies - Food and Beverages,05/07/2017,3897457,467.30,Thomas Ridley & Son Ltd
Childrens Services,Children's Social Care,Support Service and Management Costs,Schools Catering,Kitchen Supplies - Food and Beverages,05/07/2017,3897458,389.54,Thomas Ridley & Son Ltd
Childrens Services,Children's Social Care,Other Children's and Family Services,Permanent Placements,Services - Professional Fees - Feasibility Studies,05/07/2017,3897483,"2,450.00",Intuitive Blue Social Care Ltd
Childrens Services,Education Services,Other Strategic Functions,Special Education Needs DSG,Third Party Payments - Payments to Schools,05/07/2017,3897489,"21,025.68",Woodcroft School Ltd
Childrens Services,Children's Social Care,Children Looked After,S23-Resi-P&V/OLA-Child Home,Childrens Act Section 23 - Placement Fee,05/07/2017,3897490,"10,071.41",Care 2 Share 2
Childrens Services,Education Services,Other Strategic Functions,Special Education Needs DSG,Third Party Payments - Payments to Schools,05/07/2017,3897541,"21,025.68",Woodcroft School Ltd
Childrens Services,Children's Social Care,Children Looked After,S23-Resi-P&V/OLA-Child Home,Childrens Act Section 23 - Placement Fee,05/07/2017,3897542,"10,407.12",Care 2 Share 2
Childrens Services,Education Services,Other Strategic Functions,Special Education Needs DSG,Third Party Payments - Payments to Schools,05/07/2017,3897559,"21,025.68",Woodcroft School Ltd
Childrens Services,Education Services,Other Strategic Functions,Special Education Needs DSG,Third Party Payments - Payments to Schools,05/07/2017,3897569,"21,025.68",Woodcroft School Ltd
Childrens Services,Education Services,Other Strategic Functions,Special Education Needs DSG,Third Party Payments - Payments to Schools,05/07/2017,3897578,"21,025.68",Woodcroft School Ltd
Childrens Services,Education Services,Other Strategic Functions,Special Education Needs DSG,Third Party Payments - Payments to Schools,05/07/2017,3897585,"21,025.68",Woodcroft School Ltd
Childrens Services,Education Services,Other Strategic Functions,Special Education Needs DSG,Third Party Payments - Payments to Schools,05/07/2017,3897590,"21,025.68",Woodcroft School Ltd
Childrens Services,Education Services,Other Strategic Functions,Special Education Needs DSG,Third Party Payments - Payments to Schools,05/07/2017,3897595,"21,025.68",Woodcroft School Ltd
Childrens Services,Education Services,Other Strategic Functions,Special Education Needs DSG,Third Party Payments - Payments to Schools,05/07/2017,3897600,"21,025.68",Woodcroft School Ltd
Childrens Services,Education Services,Other Strategic Functions,Special Education Needs DSG,Third Party Payments - Payments to Schools,05/07/2017,3897606,"21,025.68",Woodcroft School Ltd
Childrens Services,Education Services,Other Strategic Functions,Special Education Needs DSG,Third Party Payments - Payments to Schools,05/07/2017,3897610,"21,025.68",Woodcroft School Ltd
Childrens Services,Education Services,Other Strategic Functions,Special Education Needs DSG,Third Party Payments - Payments to Schools,05/07/2017,3897614,"21,025.68",Woodcroft School Ltd
Childrens Services,Children's Social Care,Children Looked After,Leaving Care-UASC,Leaving Care Financial Assistance - Reg Plan Maint Travel A,05/07/2017,3898052,482.40,Pangea Support Services
Childrens Services,Children's Social Care,Children Looked After,Leaving Care-UASC,Leaving Care Financial Assistance - Supp Accom/Hous Rents,05/07/2017,3898052,"1,024.63",Pangea Support Services
Childrens Services,Children's Social Care,Children Looked After,Leaving Care-UASC,Leaving Care Financial Assistance - Supp Accom/Hous Rents,05/07/2017,3898061,"1,273.20",Pangea Support Services
Childrens Services,Children's Social Care,Children Looked After,Leaving Care-UASC,Leaving Care Financial Assistance - Supp Accom/Hous Rents,05/07/2017,3898063,"1,024.63",Pangea Support Services
Childrens Services,Children's Social Care,Children Looked After,Leaving Care-UASC,Leaving Care Financial Assistance - Reg Plan Maint Travel A,05/07/2017,3898064,348.30,Pangea Support Services
Childrens Services,Children's Social Care,Children Looked After,Leaving Care-UASC,Leaving Care Financial Assistance - Supp Accom/Hous Rents,05/07/2017,3898064,"1,024.63",Pangea Support Services
Childrens Services,Children's Social Care,Children Looked After,Leaving Care-UASC,Leaving Care Financial Assistance - Supp Accom/Hous Rents,05/07/2017,3898065,"1,024.63",Pangea Support Services
Childrens Services,Children's Social Care,Children Looked After,Leaving Care-UASC,Leaving Care Financial Assistance - Supp Accom/Hous Rents,05/07/2017,3898067,"1,273.20",Pangea Support Services
Childrens Services,Children's Social Care,Support Service and Management Costs,Schools Catering,Tools and Equipment - Purchase,05/07/2017,3898083,"4,234.00",Meiko UK Ltd
Childrens Services,Children's Social Care,Children Looked After,Leaving Care-UASC,Leaving Care Financial Assistance - Reg Plan Maint L-Allow,05/07/2017,3898112,256.86,Pangea Support Services
Childrens Services,Children's Social Care,Children Looked After,Leaving Care-UASC,Leaving Care Financial Assistance - Supp Accom/Hous Rents,05/07/2017,3898112,"1,085.00",Pangea Support Services
Childrens Services,Children's Social Care,Children Looked After,Leaving Care-UASC,Leaving Care Financial Assistance - Reg Plan Maint L-Allow,05/07/2017,3898114,256.86,Pangea Support Services
Childrens Services,Children's Social Care,Children Looked After,Leaving Care-UASC,Leaving Care Financial Assistance - Supp Accom/Hous Rents,05/07/2017,3898114,"1,085.00",Pangea Support Services
Childrens Services,Children's Social Care,Children Looked After,Leaving Care-UASC,Leaving Care Financial Assistance - Reg Plan Maint L-Allow,05/07/2017,3898117,256.86,Pangea Support Services
Childrens Services,Children's Social Care,Children Looked After,Leaving Care-UASC,Leaving Care Financial Assistance - Supp Accom/Hous Rents,05/07/2017,3898117,"1,085.00",Pangea Support Services
Childrens Services,Children's Social Care,Children Looked After,Leaving Care-UASC,Leaving Care Financial Assistance - Supp Accom/Hous Rents,05/07/2017,3898118,"1,085.00",Pangea Support Services
Childrens Services,Children's Social Care,Children Looked After,Leaving Care-UASC,Leaving Care Financial Assistance - Reg Plan Maint L-Allow,05/07/2017,3898119,256.86,Pangea Support Services
Childrens Services,Children's Social Care,Children Looked After,Leaving Care-UASC,Leaving Care Financial Assistance - Supp Accom/Hous Rents,05/07/2017,3898119,"1,085.00",Pangea Support Services
Childrens Services,Education Services,Other Strategic Functions,Music Trading Account,Educational/Training Supplies - Arts & Crafts,05/07/2017,3898272,707.50,LMS Music Supplies
Childrens Services,Children's Social Care,Support Service and Management Costs,Schools Catering,Kitchen Supplies - Food and Beverages,05/07/2017,3898282,885.00,Greggs Plc
Childrens Services,Children's Social Care,Children Looked After,Leaving Care-UASC,Leaving Care Financial Assistance - Grant Pay Special Needs,05/07/2017,3898363,571.43,Pangea Support Services
Childrens Services,Children's Social Care,Support Service and Management Costs,Schools Catering,Kitchen Supplies - Food and Beverages,05/07/2017,3898407,885.00,Greggs Plc
Childrens Services,Children's Social Care,Children Looked After,Leaving Care-UASC,Leaving Care Financial Assistance - Grant Pay Special Needs,05/07/2017,3898425,"1,107.14",Pangea Support Services
Childrens Services,Children's Social Care,Support Service and Management Costs,Schools Catering,Kitchen Supplies - Food and Beverages,05/07/2017,3898434,916.00,Greggs Plc
Childrens Services,Children's Social Care,Support Service and Management Costs,Schools Catering,Kitchen Supplies - Food and Beverages,05/07/2017,3898444,777.00,Greggs Plc
Childrens Services,Children's Social Care,Support Service and Management Costs,Schools Catering,Kitchen Supplies - Food and Beverages,05/07/2017,3898451,716.00,Greggs Plc
Childrens Services,Children's Social Care,Support Service and Management Costs,Schools Catering,Kitchen Supplies - Food and Beverages,05/07/2017,3898458,916.00,Greggs Plc
Childrens Services,Children's Social Care,Support Service and Management Costs,Schools Catering,Kitchen Supplies - Food and Beverages,05/07/2017,3898470,431.00,Greggs Plc
Childrens Services,Cultural and Related Services,Culture & Heritage,Arts-Park Events,Events & Exhibition Supplies,05/07/2017,3898626,"4,313.00",Sola Associates Ltd
Childrens Services,Children's Social Care,Children Looked After,S23-Other-Semi-Ind. Unit,Childrens Act Section 23 - Placement Fee,05/07/2017,3899437,"5,757.01",Real Life
Childrens Services,Children's Social Care,Children Looked After,S23-Other-Semi-Ind. Unit,Childrens Act Section 23 - Placement Fee,05/07/2017,3899438,"3,885.69",Real Life
Childrens Services,Education Services,Other Strategic Functions,Student Admissions,Computing - Maint Agreements - Computing Costs,05/07/2017,3899503,630.65,Specialist Computer Centres PLC
Childrens Services,Education Services,Other Strategic Functions,Education Psychologists GF,Newspapers and Magazines - General Purchases,05/07/2017,3899515,882.26,G L ASSESSMENT LTD
Childrens Services,Adult Social Care,Support Service and Management Costs,Org Development L&D Training,Training Expenses - Staff External Training (UK Based),05/07/2017,3901473,250.00,Edge Training and Consultancy Ltd
Childrens Services,Children's Social Care,Youth Justice,Youth Justice Team,Third Party Payments - Payments to Schools,05/07/2017,3901477,500.00,London Borough of Barnet
Childrens Services,Cultural and Related Services,Open Spaces,Victoria Park,Services - Professional Fees - Security Fees,05/07/2017,3901569,"5,580.00",Manpower Direct UK
Childrens Services,Children's Social Care,Children Looked After,S23 Fam Pl In-Hse-Kinshp Care,Childrens Act Section 23 - Expert Assessmt/Witness Costs,05/07/2017,3903314,"1,500.00",GARDEN COURT CHAMBERS
Childrens Services,Children's Social Care,Children Looked After,Virtual School PPG,Education & Training - Non Staff Tuition Fees,05/07/2017,3904462,700.00,Winchmore Tutors Ltd
Childrens Services,Children's Social Care,Other Children's and Family Services,Permanent Placements,Services - Professional Fees - Translation Fees,05/07/2017,3904490,344.00,Oncall Interpreters LTD
Childrens Services,Children's Social Care,Children Looked After,Virtual School PPG,Education & Training - Non Staff Tuition Fees,05/07/2017,3904591,455.00,Winchmore Tutors Ltd
Childrens Services,Children's Social Care,Children Looked After,Virtual School PPG,Third Party Payments - Payments to Schools,05/07/2017,3905162,"2,700.00",Tunmarsh School
Childrens Services,Children's Social Care,Children Looked After,S23-Resi-P&V/OLA-Sec Acc-Wel,Childrens Act Section 23 - Placement Fee,05/07/2017,3906584,"10,714.35",Care 4 Children Residential Services Limited
Childrens Services,Children's Social Care,Children Looked After,S23-Resi-P&V/OLA-Sec Acc-Wel,Childrens Act Section 23 - Placement Fee,05/07/2017,3906627,"21,428.70",Care 4 Children Residential Services Limited
Childrens Services,Children's Social Care,Services for young people,Outdoor,Educational/Training Supplies - Curriculum Visits/Activities,05/07/2017,3907401,270.00,Foundation Expedition Leadership CIC
Childrens Services,Children's Social Care,Services for young people,Outdoor,Educational/Training Supplies - Curriculum Visits/Activities,05/07/2017,3907418,766.66,BIKE WORKS CIC
Childrens Services,Cultural and Related Services,Open Spaces,Mile End Park,Services - Professional Fees - Environmental Services Fees,05/07/2017,3907492,266.76,Environment Agency
Childrens Services,Children's Social Care,Children Looked After,C.B.C & Fam.Prev/Support-Mgmnt,Third Party Payments - Voluntary Associations,05/07/2017,3907814,"3,695.00",Family Action
Childrens Services,Children's Social Care,Children Looked After,Virtual School PPG,Agency Staff - Associations,05/07/2017,3907832,"1,150.75",Academics ltd
Childrens Services,Children's Social Care,Children Looked After,Virtual School PPG,Agency Staff - Associations,05/07/2017,3907833,690.45,Academics ltd
Childrens Services,Children's Social Care,Children Looked After,Virtual School PPG,Agency Staff - Associations,05/07/2017,3907835,920.60,Academics ltd
Childrens Services,Children's Social Care,Children Looked After,Virtual School PPG,Third Party Payments - Payments to Schools,05/07/2017,3908174,500.00,Green Spring Academy Shoreditch
Childrens Services,Children's Social Care,Children Looked After,S23 Fam Pl In-Hse-For Adopt,Social Care - Day Care,05/07/2017,3908257,750.00,ACTION FOR CHILDREN SERVICES LTD
Childrens Services,Children's Social Care,Children Looked After,S23 Fam Pl In-Hse-For Adopt,Childrens Act Section 23 - Inter-Agency Fees,05/07/2017,3908258,750.00,ACTION FOR CHILDREN SERVICES LTD
Childrens Services,Children's Social Care,Children Looked After,S23-Resi-P&V/OLA-Sec Acc-Wel,Childrens Act Section 23 - Spec Pymnts Legal,05/07/2017,3908376,350.00,Morton Fraser
Childrens Services,Children's Social Care,Children Looked After,S23-Resi-P&V/OLA-Sec Acc-Wel,Childrens Act Section 23 - Spec Pymnts Legal,05/07/2017,3908376,"2,400.00",Morton Fraser
Childrens Services,Children's Social Care,Children Looked After,S23-Resi-P&V/OLA-Child Home,Childrens Act Section 23 - Placement Fee,05/07/2017,3908457,"5,485.71",Quality Protects Children Ltd
Childrens Services,Children's Social Care,Children Looked After,S23-Resi-P&V/OLA-Sec Acc-Wel,Childrens Act Section 23 - Placement Fee,05/07/2017,3908462,"24,769.00",Swanwick Lodge Hampshire County Council
Childrens Services,Children's Social Care,Family Support Services,IPST S17 NRPF,Childrens Act Section 17 - Other Placements Bed & Breakfast,05/07/2017,3908470,"1,200.00",Apolonia Property Services (Exodus Housing)
Childrens Services,Education Services,Early Years,Mowlem CC,Room Hire,05/07/2017,3908521,"2,825.00",St Hilda's East Community Centre
Childrens Services,Children's Social Care,Support Service and Management Costs,Schools Catering,Kitchen Supplies - Food and Beverages,07/07/2017,3891843,425.89,Thomas Ridley & Son Ltd
Childrens Services,Children's Social Care,Support Service and Management Costs,Schools Catering,Kitchen Supplies - Food and Beverages,07/07/2017,3895686,405.18,Thomas Ridley & Son Ltd
Childrens Services,Children's Social Care,Support Service and Management Costs,Schools Catering,Kitchen Supplies - Food and Beverages,07/07/2017,3895692,291.18,Thomas Ridley & Son Ltd
Childrens Services,Children's Social Care,Support Service and Management Costs,Schools Catering,Kitchen Supplies - Food and Beverages,07/07/2017,3895693,339.23,Thomas Ridley & Son Ltd
Childrens Services,Children's Social Care,Support Service and Management Costs,Schools Catering,Kitchen Supplies - Food and Beverages,07/07/2017,3895875,291.64,Thomas Ridley & Son Ltd
Childrens Services,Children's Social Care,Support Service and Management Costs,Schools Catering,Kitchen Supplies - Food and Beverages,07/07/2017,3897547,713.50,Thomas Ridley & Son Ltd
Childrens Services,Children's Social Care,Support Service and Management Costs,Schools Catering,Kitchen Supplies - Food and Beverages,07/07/2017,3897579,357.26,Thomas Ridley & Son Ltd
Childrens Services,Children's Social Care,Support Service and Management Costs,Schools Catering,Kitchen Supplies - Food and Beverages,07/07/2017,3897586,771.56,Thomas Ridley & Son Ltd
Childrens Services,Children's Social Care,Support Service and Management Costs,Schools Catering,Kitchen Supplies - Food and Beverages,07/07/2017,3897591,524.55,Thomas Ridley & Son Ltd
Childrens Services,Children's Social Care,Support Service and Management Costs,Schools Catering,Kitchen Supplies - Food and Beverages,07/07/2017,3897596,827.04,Thomas Ridley & Son Ltd
Childrens Services,Children's Social Care,Support Service and Management Costs,Schools Catering,Kitchen Supplies - Food and Beverages,07/07/2017,3897601,313.14,Thomas Ridley & Son Ltd
Childrens Services,Children's Social Care,Support Service and Management Costs,Schools Catering,Kitchen Supplies - Food and Beverages,07/07/2017,3897607,318.84,Thomas Ridley & Son Ltd
Childrens Services,Children's Social Care,Support Service and Management Costs,Schools Catering,Kitchen Supplies - Food and Beverages,07/07/2017,3897611,545.25,Thomas Ridley & Son Ltd
Childrens Services,Children's Social Care,Support Service and Management Costs,Schools Catering,Kitchen Supplies - Food and Beverages,07/07/2017,3897615,341.31,Thomas Ridley & Son Ltd
Childrens Services,Children's Social Care,Support Service and Management Costs,Schools Catering,Kitchen Supplies - Food and Beverages,07/07/2017,3897619,584.09,Thomas Ridley & Son Ltd
Childrens Services,Children's Social Care,Support Service and Management Costs,Schools Catering,Kitchen Supplies - Food and Beverages,07/07/2017,3897621,281.16,Thomas Ridley & Son Ltd
Childrens Services,Children's Social Care,Support Service and Management Costs,Schools Catering,Kitchen Supplies - Food and Beverages,07/07/2017,3897623,311.18,Thomas Ridley & Son Ltd
Childrens Services,Children's Social Care,Support Service and Management Costs,Schools Catering,Kitchen Supplies - Food and Beverages,07/07/2017,3897627,320.22,Thomas Ridley & Son Ltd
Childrens Services,Children's Social Care,Support Service and Management Costs,Schools Catering,Kitchen Supplies - Food and Beverages,07/07/2017,3897629,442.73,Thomas Ridley & Son Ltd
Childrens Services,Children's Social Care,Support Service and Management Costs,Schools Catering,Kitchen Supplies - Food and Beverages,07/07/2017,3897631,941.67,Thomas Ridley & Son Ltd
Childrens Services,Children's Social Care,Support Service and Management Costs,Sch. Meals A/c - Central Production Unit,Kitchen Supplies - Food and Beverages,07/07/2017,3898026,889.88,Thomas Ridley & Son Ltd
Childrens Services,Education Services,Other Strategic Functions,Parents Advice Centre,Photocopier Charges - Consumables,07/07/2017,3898035,251.52,Supplies Team Ltd
Childrens Services,Children's Social Care,Support Service and Management Costs,Schools Catering,Kitchen Supplies - Food and Beverages,07/07/2017,3898164,262.94,Thomas Ridley & Son Ltd
Childrens Services,Children's Social Care,Support Service and Management Costs,Schools Catering,Kitchen Supplies - Food and Beverages,07/07/2017,3898166,312.54,Thomas Ridley & Son Ltd
Childrens Services,Children's Social Care,Support Service and Management Costs,Schools Catering,Kitchen Supplies - Food and Beverages,07/07/2017,3898168,575.28,Thomas Ridley & Son Ltd
Childrens Services,Children's Social Care,Support Service and Management Costs,Schools Catering,Kitchen Supplies - Food and Beverages,07/07/2017,3898173,419.88,Thomas Ridley & Son Ltd
Childrens Services,Children's Social Care,Support Service and Management Costs,Schools Catering,Kitchen Supplies - Food and Beverages,07/07/2017,3898183,344.16,Thomas Ridley & Son Ltd
Childrens Services,Children's Social Care,Support Service and Management Costs,Schools Catering,Kitchen Supplies - Food and Beverages,07/07/2017,3898185,641.72,Thomas Ridley & Son Ltd
Childrens Services,Children's Social Care,Support Service and Management Costs,Schools Catering,Kitchen Supplies - Food and Beverages,07/07/2017,3898190,326.36,Thomas Ridley & Son Ltd
Childrens Services,Children's Social Care,Support Service and Management Costs,Schools Catering,Kitchen Supplies - Food and Beverages,07/07/2017,3898194,331.05,Thomas Ridley & Son Ltd
Childrens Services,Children's Social Care,Support Service and Management Costs,Schools Catering,Kitchen Supplies - Food and Beverages,07/07/2017,3898207,251.28,Thomas Ridley & Son Ltd
Childrens Services,Education Services,Early Years,Children Centre Central Team,Events & Exhibition Supplies,07/07/2017,3898255,"1,000.00",Spitalfields Festival Ltd
Childrens Services,Children's Social Care,Services for young people,Positive Activities Young Pple,Education & Training - Non Staff Tuition Fees,07/07/2017,3898257,"3,200.00",Community Music
Childrens Services,Children's Social Care,Services for young people,Youth Service Management,Catering - Non Kitchen Supplies - Catering Supplies,07/07/2017,3898258,250.00,Community Music
Childrens Services,Adult Social Care,Support Service and Management Costs,Org Development L&D Training,Training Expenses - Staff External Training (UK Based),07/07/2017,3898283,815.00,Huntersjoy Ltd
Childrens Services,Children's Social Care,Children Looked After,LCS/Allowances-Accom,Leaving Care Financial Assistance - Supp Accom/Hous Rents,07/07/2017,3898357,"2,839.96",Light Touch Accomodation Ltd
Childrens Services,Children's Social Care,Children Looked After,LCS/Allowances-Accom,Leaving Care Financial Assistance - Grant Pay Special Needs,07/07/2017,3898595,"2,892.86",Silver Birch Care LTD
Childrens Services,Children's Social Care,Children Looked After,LCS/Allowances-Accom,Leaving Care Financial Assistance - Supp Accom/Hous Rents,07/07/2017,3898595,642.86,Silver Birch Care LTD
Childrens Services,Children's Social Care,Children Looked After,S23 Fam Pl P&V-F/Care,Childrens Act Section 23 - All Contact Expenses,07/07/2017,3898647,268.80,Limehouse Children Contact Centre LTD
Childrens Services,Children's Social Care,Support Service and Management Costs,Welfare Catering,Kitchen Supplies - Food and Beverages,07/07/2017,3898662,402.39,William White Meats Ltd
Childrens Services,Children's Social Care,Support Service and Management Costs,Swanlea,Kitchen Supplies - Food and Beverages,07/07/2017,3898663,256.97,William White Meats Ltd
Childrens Services,Children's Social Care,Children Looked After,LCS/Allowances-Accom,Leaving Care Financial Assistance - Grant Pay Special Needs,07/07/2017,3898675,"6,107.14",Inclusive Care Support Ltd
Childrens Services,Children's Social Care,Support Service and Management Costs,Sch. Meals A/c - Central Production Unit,Kitchen Supplies - Food and Beverages,07/07/2017,3898698,"1,203.40",William White Meats Ltd
Childrens Services,Children's Social Care,Support Service and Management Costs,Schools Catering,Kitchen Supplies - Food and Beverages,07/07/2017,3899002,324.69,William White Meats Ltd
Childrens Services,Children's Social Care,Support Service and Management Costs,Schools Catering,Kitchen Supplies - Food and Beverages,07/07/2017,3899008,322.84,William White Meats Ltd
Childrens Services,Children's Social Care,Support Service and Management Costs,Schools Catering,Kitchen Supplies - Food and Beverages,07/07/2017,3899019,285.25,William White Meats Ltd
Childrens Services,Children's Social Care,Children Looked After,S23-Resi-P&V/OLA-Child Home,Childrens Act Section 23 - Placement Fee,07/07/2017,3899390,"12,188.40",Bridge Communities Ltd
Childrens Services,Children's Social Care,Children Looked After,S23-Other-Mother & Baby Unit,Childrens Act Section 23 - Placement Fee,07/07/2017,3899407,"7,714.17",Care 2 Share LTD
Childrens Services,Children's Social Care,Support Service and Management Costs,Welfare Catering,Kitchen Supplies - Food and Beverages,07/07/2017,3899567,578.59,William White Meats Ltd
Childrens Services,Children's Social Care,Support Service and Management Costs,Schools Catering,Kitchen Supplies - Food and Beverages,07/07/2017,3900338,276.76,William White Meats Ltd
Childrens Services,Children's Social Care,Support Service and Management Costs,Schools Catering,Kitchen Supplies - Food and Beverages,07/07/2017,3900350,280.60,William White Meats Ltd
Childrens Services,Education Services,Other Strategic Functions,Education Psychologists GF,Newspapers and Magazines - General Purchases,07/07/2017,3901432,333.01,Pearson Education Ltd
Childrens Services,Children's Social Care,Children Looked After,S23 Fam Pl In-Hse-S/Term F/C,Childrens Act Section 23 - Interpreting/Translation,07/07/2017,3901732,770.50,Oncall Interpreters LTD
Childrens Services,Education Services,Other Strategic Functions,High Needs Other Boroughs,Third Party Payments - Payments to Schools,07/07/2017,3903228,"4,221.00",Trinity School (Dagenham)
Childrens Services,Children's Social Care,Children Looked After,S23-Resi-in-Hse-Child. Home,Childrens Act Section 23 - Non-Contact Trans/Travel Costs,07/07/2017,3903233,918.75,Wrixon Care Services
Childrens Services,Children's Social Care,Children Looked After,Virtual School PPG,Education & Training - Non Staff Tuition Fees,07/07/2017,3903280,250.00,Anchor Teaching Ltd
Childrens Services,Children's Social Care,Children's and Young People's Safety,Prevention of Violent Extremism Section 17 � FSP,Childrens Act Section 17 - Spec Pymnts Legal,07/07/2017,3904016,277.25,E4 Law Limited T/A Lextox
Childrens Services,Cultural and Related Services,Recreation & Sport,Recreational Services Central,Services - Professional Fees - Consultants Fees,07/07/2017,3904546,"8,557.00","Knight, Kavanagh & Page"
Childrens Services,Children's Social Care,Children Looked After,Children Looked After Sect 17,Third Party Payments - Payments to Schools,07/07/2017,3904916,471.64,Noah's Ark Community Nursery
Childrens Services,Children's Social Care,Children Looked After,Children Looked After Sect 17,Third Party Payments - Payments to Schools,07/07/2017,3904930,471.64,Noah's Ark Community Nursery
Childrens Services,Children's Social Care,Children Looked After,Children Looked After Sect 17,Third Party Payments - Payments to Schools,07/07/2017,3904939,471.64,Noah's Ark Community Nursery
Childrens Services,Children's Social Care,Children Looked After,Children Looked After Sect 17,Third Party Payments - Payments to Schools,07/07/2017,3904947,353.86,Noah's Ark Community Nursery
Childrens Services,Children's Social Care,Children's and Young People's Safety,Prevention of Violent Extremism Section 17 � FSP,Childrens Act Section 17 - Interpreting/Translation,07/07/2017,3905288,888.00,Universal Language Solutions Ltd
Childrens Services,Children's Social Care,Children's and Young People's Safety,Prevention of Violent Extremism Section 17 � FSP,Childrens Act Section 17 - Spec Pymnts Legal,07/07/2017,3905299,324.00,The Priory Hospital
Childrens Services,Children's Social Care,Children Looked After,Leaving Care-UASC,Leaving Care Financial Assistance - Supp Accom/Hous Rents,07/07/2017,3906524,"1,265.70",Newhaven 16 Plus
Childrens Services,Children's Social Care,Children Looked After,Leaving Care-UASC,Leaving Care Financial Assistance - Supp Accom/Hous Rents,07/07/2017,3906525,929.10,Newhaven 16 Plus
Childrens Services,Children's Social Care,Children Looked After,LCS/Allowances-Accom,Leaving Care Financial Assistance - Supp Accom/Hous Rents,07/07/2017,3906526,428.40,Newhaven 16 Plus
Childrens Services,Children's Social Care,Children Looked After,LCS/Allowances-Accom,Leaving Care Financial Assistance - Supp Accom/Hous Rents,07/07/2017,3906527,929.10,Newhaven 16 Plus
Childrens Services,Children's Social Care,Children Looked After,LCS/Allowances-Accom,Leaving Care Financial Assistance - Supp Accom/Hous Rents,07/07/2017,3906528,"1,500.00",Newhaven 16 Plus
Childrens Services,Children's Social Care,Children Looked After,Leaving Care-UASC,Leaving Care Financial Assistance - Supp Accom/Hous Rents,07/07/2017,3906529,929.10,Newhaven 16 Plus
Childrens Services,Children's Social Care,Children Looked After,LCS/Allowances-Accom,Leaving Care Financial Assistance - Supp Accom/Hous Rents,07/07/2017,3906531,929.10,Newhaven 16 Plus
Childrens Services,Children's Social Care,Children Looked After,LCS/Allowances-Accom,Leaving Care Financial Assistance - Supp Accom/Hous Rents,07/07/2017,3906532,929.10,Newhaven 16 Plus
Childrens Services,Children's Social Care,Children Looked After,LCS/Allowances-Accom,Leaving Care Financial Assistance - Supp Accom/Hous Rents,07/07/2017,3906533,929.10,Newhaven 16 Plus
Childrens Services,Children's Social Care,Children Looked After,LCS/Allowances-Accom,Leaving Care Financial Assistance - Supp Accom/Hous Rents,07/07/2017,3906534,929.10,Newhaven 16 Plus
Childrens Services,Children's Social Care,Children Looked After,LCS/Allowances-Accom,Leaving Care Financial Assistance - Supp Accom/Hous Rents,07/07/2017,3906535,929.10,Newhaven 16 Plus
Childrens Services,Children's Social Care,Children Looked After,LCS/Allowances-Accom,Leaving Care Financial Assistance - Supp Accom/Hous Rents,07/07/2017,3906536,929.10,Newhaven 16 Plus
Childrens Services,Children's Social Care,Children Looked After,LCS/Allowances-Accom,Leaving Care Financial Assistance - Supp Accom/Hous Rents,07/07/2017,3906537,929.10,Newhaven 16 Plus
Childrens Services,Children's Social Care,Children Looked After,LCS/Allowances-Accom,Leaving Care Financial Assistance - Supp Accom/Hous Rents,07/07/2017,3906538,929.10,Newhaven 16 Plus
Childrens Services,Children's Social Care,Children Looked After,LCS/Allowances-Accom,Leaving Care Financial Assistance - Supp Accom/Hous Rents,07/07/2017,3906539,929.10,Newhaven 16 Plus
Childrens Services,Children's Social Care,Children Looked After,Leaving Care-UASC,Leaving Care Financial Assistance - Supp Accom/Hous Rents,07/07/2017,3906540,929.10,Newhaven 16 Plus
Childrens Services,Children's Social Care,Children Looked After,Leaving Care-UASC,Leaving Care Financial Assistance - Supp Accom/Hous Rents,07/07/2017,3906611,428.40,Newhaven 16 Plus
Childrens Services,Children's Social Care,Children Looked After,LCS/Allowances-Accom,Leaving Care Financial Assistance - Supp Accom/Hous Rents,07/07/2017,3906612,857.14,Newhaven 16 Plus
Childrens Services,Children's Social Care,Children Looked After,LCS/Allowances-Accom,Leaving Care Financial Assistance - Supp Accom/Hous Rents,07/07/2017,3906613,"3,570.60",Newhaven 16 Plus
Childrens Services,Children's Social Care,Children Looked After,LCS/Allowances-Accom,Leaving Care Financial Assistance - Supp Accom/Hous Rents,07/07/2017,3906614,"3,570.60",Newhaven 16 Plus
Childrens Services,Children's Social Care,Children Looked After,LCS/Allowances-Accom,Leaving Care Financial Assistance - Supp Accom/Hous Rents,07/07/2017,3906615,"3,528.00",Newhaven 16 Plus
Childrens Services,Children's Social Care,Children Looked After,LCS/Allowances-Accom,Leaving Care Financial Assistance - Supp Accom/Hous Rents,07/07/2017,3906616,"3,570.60",Newhaven 16 Plus
Childrens Services,Children's Social Care,Children Looked After,LCS/Allowances-Accom,Leaving Care Financial Assistance - Supp Accom/Hous Rents,07/07/2017,3906618,"3,570.60",Newhaven 16 Plus
Childrens Services,Children's Social Care,Children Looked After,Leaving Care-UASC,Leaving Care Financial Assistance - Supp Accom/Hous Rents,07/07/2017,3906619,"3,570.60",Newhaven 16 Plus
Childrens Services,Children's Social Care,Children Looked After,LCS/Allowances-Accom,Leaving Care Financial Assistance - Supp Accom/Hous Rents,07/07/2017,3906632,-727.20,Newhaven 16 Plus
Childrens Services,Children's Social Care,Children Looked After,LCS/Allowances-Accom,Leaving Care Financial Assistance - Supp Accom/Hous Rents,07/07/2017,3906633,-363.60,Newhaven 16 Plus
Childrens Services,Children's Social Care,Children Looked After,LCS/Allowances-Accom,Leaving Care Financial Assistance - Supp Accom/Hous Rents,07/07/2017,3906634,-727.20,Newhaven 16 Plus
Childrens Services,Children's Social Care,Children Looked After,LCS/Allowances-Accom,Leaving Care Financial Assistance - Supp Accom/Hous Rents,07/07/2017,3906635,-727.20,Newhaven 16 Plus
Childrens Services,Children's Social Care,Children Looked After,LCS/Allowances-Accom,Leaving Care Financial Assistance - Supp Accom/Hous Rents,07/07/2017,3906636,-727.20,Newhaven 16 Plus
Childrens Services,Children's Social Care,Children Looked After,Leaving Care-UASC,Leaving Care Financial Assistance - Supp Accom/Hous Rents,07/07/2017,3906637,-720.00,Newhaven 16 Plus
Childrens Services,Children's Social Care,Support Service and Management Costs,Welfare Catering,Kitchen Supplies - Food and Beverages,07/07/2017,3908239,"1,013.23",Raj Foods LTD
Childrens Services,Children's Social Care,Support Service and Management Costs,Welfare Catering,Kitchen Supplies - Food and Beverages,07/07/2017,3908284,914.32,Raj Foods LTD
Childrens Services,No Service Specified,No Division Specified,Capital-Minor Works (SC),Other External Fees - Other External Fees,07/07/2017,3908454,"5,885.00",Tower Hamlets Schools LTD
Childrens Services,Children's Social Care,Family Support Services,IPST S17 NRPF,Childrens Act Section 17 - Other Placements Bed & Breakfast,07/07/2017,3908561,"1,040.00",Apolonia Property Services (Exodus Housing)
Childrens Services,Children's Social Care,Family Support Services,IPST S17 NRPF,Childrens Act Section 17 - Other Placements Bed & Breakfast,07/07/2017,3908577,"1,020.00",Apolonia Property Services (Exodus Housing)
Childrens Services,Children's Social Care,Family Support Services,IPST S17 NRPF,Childrens Act Section 17 - Other Placements Bed & Breakfast,07/07/2017,3908585,"1,200.00",Apolonia Property Services (Exodus Housing)
Childrens Services,Children's Social Care,Children Looked After,S23-Other-Semi-Ind. Unit,Childrens Act Section 23 - Placement Fee,07/07/2017,3909099,"4,548.00",EMPOWERHOUSE ltd
Childrens Services,Children's Social Care,Children Looked After,LCS/Allowances-Accom,Leaving Care Financial Assistance - Supp Accom/Hous Rents,07/07/2017,3909144,"4,457.18",Netpex
Childrens Services,Children's Social Care,Children Looked After,LCS/Allowances-Accom,Leaving Care Financial Assistance - Reg Plan Maint L-Allow,07/07/2017,3909145,289.50,Netpex
Childrens Services,Children's Social Care,Children Looked After,LCS/Allowances-Accom,Leaving Care Financial Assistance - Reg Plan Maint L-Allow,07/07/2017,3909146,290.00,Netpex
Childrens Services,Children's Social Care,Children Looked After,LCS/Allowances-Accom,Leaving Care Financial Assistance - Supp Accom/Hous Rents,07/07/2017,3909147,814.32,Netpex
Childrens Services,Children's Social Care,Children Looked After,LCS/Allowances-Accom,Leaving Care Financial Assistance - Supp Accom/Hous Rents,07/07/2017,3909148,"3,321.65",Netpex
Childrens Services,Children's Social Care,Children Looked After,LCS/Allowances-Accom,Leaving Care Financial Assistance - Supp Accom/Hous Rents,07/07/2017,3909149,"5,735.00",Netpex
Childrens Services,Children's Social Care,Children Looked After,LCS/Allowances-Accom,Leaving Care Financial Assistance - Supp Accom/Hous Rents,07/07/2017,3909242,"4,760.98",Netpex
Childrens Services,Children's Social Care,Children Looked After,S23-Other-Semi-Ind. Unit,Childrens Act Section 23 - Placement Fee,07/07/2017,3909247,339.50,KPMS LTD
Childrens Services,Children's Social Care,Support Service and Management Costs,Schools Catering,Kitchen Supplies - Catering Equipment,07/07/2017,3910061,365.96,W V Howe LTD
Childrens Services,Children's Social Care,Children Looked After,S23 Fam Pl P&V-F/Care,Childrens Act Section 23 - Expert Assessmt/Witness Costs,07/07/2017,3910274,500.00,Mcmillen Hamilton McCarthy Solicitors
Childrens Services,No Service Specified,No Division Specified,Capital-Minor Works (SC),Other External Fees - Other External Fees,07/07/2017,3910324,"1,650.00",Fred Fountain Ltd
Childrens Services,Education Services,Services to Young People and Other Community Learners,Further and Higher Education,Education Trust - Grant,07/07/2017,3910613,"3,650.00",ST EDMUND'S COLLEGE
Childrens Services,Education Services,Other Education and Community Budget,Community Languages,Training Expenses - Staff External Training (UK Based),07/07/2017,3910656,495.00,Government Knowledge Training Ltd
Childrens Services,Education Services,Other Education and Community Budget,Community Languages,Training Expenses - Staff External Training (UK Based),07/07/2017,3910713,995.00,GovNet Communications
Childrens Services,Children's Social Care,Service Strategy,89 CA Sec 17 Chld in Need BOW,Childrens Act Section 17 - Expert Assessmt/Witness Costs,07/07/2017,3910855,270.00,The Priory Hospital
Childrens Services,Education Services,Other Strategic Functions,SLS - SEN Training SLA,Educational/Training Supplies - Resources,10/07/2017,3756829,500.00,OCR
Childrens Services,Children's Social Care,Children Looked After,S23-Other-Semi-Ind. Unit,Childrens Act Section 23 - Placement Fee,10/07/2017,3891918,"-2,057.16",St Christopher's Fellowship
Childrens Services,Children's Social Care,Support Service and Management Costs,Welfare Catering,Kitchen Supplies - Food and Beverages,10/07/2017,3898312,443.26,Thomas Ridley & Son Ltd
Childrens Services,Children's Social Care,Support Service and Management Costs,Sch. Meals A/c - Central Production Unit,Kitchen Supplies - Food and Beverages,10/07/2017,3898313,"1,053.74",Thomas Ridley & Son Ltd
Childrens Services,Children's Social Care,Support Service and Management Costs,"Mulberry Caf�		",Kitchen Supplies - Food and Beverages,10/07/2017,3898316,"1,205.27",Thomas Ridley & Son Ltd
Childrens Services,Children's Social Care,Support Service and Management Costs,Schools Catering,Kitchen Supplies - Food and Beverages,10/07/2017,3898437,275.96,Thomas Ridley & Son Ltd
Childrens Services,Children's Social Care,Support Service and Management Costs,Schools Catering,Kitchen Supplies - Food and Beverages,10/07/2017,3898460,596.57,Thomas Ridley & Son Ltd
Childrens Services,Children's Social Care,Support Service and Management Costs,Schools Catering,Kitchen Supplies - Food and Beverages,10/07/2017,3898472,462.48,Thomas Ridley & Son Ltd
Childrens Services,Children's Social Care,Support Service and Management Costs,Schools Catering,Kitchen Supplies - Food and Beverages,10/07/2017,3898477,294.73,Thomas Ridley & Son Ltd
Childrens Services,Children's Social Care,Support Service and Management Costs,Schools Catering,Kitchen Supplies - Food and Beverages,10/07/2017,3898481,429.49,Thomas Ridley & Son Ltd
Childrens Services,Children's Social Care,Support Service and Management Costs,Schools Catering,Kitchen Supplies - Food and Beverages,10/07/2017,3898486,522.26,Thomas Ridley & Son Ltd
Childrens Services,Children's Social Care,Support Service and Management Costs,Schools Catering,Kitchen Supplies - Food and Beverages,10/07/2017,3898489,517.69,Thomas Ridley & Son Ltd
Childrens Services,Children's Social Care,Support Service and Management Costs,Schools Catering,Kitchen Supplies - Food and Beverages,10/07/2017,3898492,428.33,Thomas Ridley & Son Ltd
Childrens Services,Children's Social Care,Support Service and Management Costs,Schools Catering,Kitchen Supplies - Food and Beverages,10/07/2017,3898498,367.24,Thomas Ridley & Son Ltd
Childrens Services,Children's Social Care,Support Service and Management Costs,Schools Catering,Kitchen Supplies - Food and Beverages,10/07/2017,3898504,335.07,Thomas Ridley & Son Ltd
Childrens Services,Children's Social Care,Support Service and Management Costs,Schools Catering,Kitchen Supplies - Food and Beverages,10/07/2017,3898507,484.00,Thomas Ridley & Son Ltd
Childrens Services,Children's Social Care,Support Service and Management Costs,Schools Catering,Kitchen Supplies - Food and Beverages,10/07/2017,3898510,491.22,Thomas Ridley & Son Ltd
Childrens Services,Children's Social Care,Support Service and Management Costs,Schools Catering,Kitchen Supplies - Food and Beverages,10/07/2017,3898513,571.53,Thomas Ridley & Son Ltd
Childrens Services,Children's Social Care,Support Service and Management Costs,Schools Catering,Kitchen Supplies - Food and Beverages,10/07/2017,3898515,271.14,Thomas Ridley & Son Ltd
Childrens Services,Children's Social Care,Support Service and Management Costs,Schools Catering,Kitchen Supplies - Food and Beverages,10/07/2017,3898517,252.21,Thomas Ridley & Son Ltd
Childrens Services,Children's Social Care,Support Service and Management Costs,Schools Catering,Kitchen Supplies - Food and Beverages,10/07/2017,3898519,964.25,Thomas Ridley & Son Ltd
Childrens Services,Children's Social Care,Support Service and Management Costs,Schools Catering,Kitchen Supplies - Food and Beverages,10/07/2017,3898523,339.51,Thomas Ridley & Son Ltd
Childrens Services,Children's Social Care,Support Service and Management Costs,Schools Catering,Kitchen Supplies - Food and Beverages,10/07/2017,3898526,546.32,Thomas Ridley & Son Ltd
Childrens Services,Children's Social Care,Support Service and Management Costs,Schools Catering,Kitchen Supplies - Food and Beverages,10/07/2017,3898534,252.75,Thomas Ridley & Son Ltd
Childrens Services,Children's Social Care,Support Service and Management Costs,Schools Catering,Kitchen Supplies - Food and Beverages,10/07/2017,3898535,368.94,Thomas Ridley & Son Ltd
Childrens Services,Children's Social Care,Support Service and Management Costs,Schools Catering,Kitchen Supplies - Food and Beverages,10/07/2017,3898536,348.84,Thomas Ridley & Son Ltd
Childrens Services,Children's Social Care,Support Service and Management Costs,Schools Catering,Kitchen Supplies - Food and Beverages,10/07/2017,3898537,291.81,Thomas Ridley & Son Ltd
Childrens Services,Children's Social Care,Support Service and Management Costs,Schools Catering,Kitchen Supplies - Food and Beverages,10/07/2017,3898538,398.43,Thomas Ridley & Son Ltd
Childrens Services,Children's Social Care,Support Service and Management Costs,Schools Catering,Kitchen Supplies - Food and Beverages,10/07/2017,3898540,494.57,Thomas Ridley & Son Ltd
Childrens Services,Children's Social Care,Support Service and Management Costs,Schools Catering,Kitchen Supplies - Food and Beverages,10/07/2017,3898541,386.04,Thomas Ridley & Son Ltd
Childrens Services,Children's Social Care,Support Service and Management Costs,Schools Catering,Kitchen Supplies - Food and Beverages,10/07/2017,3898542,716.00,Thomas Ridley & Son Ltd
Childrens Services,Children's Social Care,Support Service and Management Costs,Schools Catering,Kitchen Supplies - Food and Beverages,10/07/2017,3898544,914.82,Thomas Ridley & Son Ltd
Childrens Services,Children's Social Care,Support Service and Management Costs,Schools Catering,Kitchen Supplies - Food and Beverages,10/07/2017,3898545,365.88,Thomas Ridley & Son Ltd
Childrens Services,Children's Social Care,Support Service and Management Costs,Schools Catering,Kitchen Supplies - Food and Beverages,10/07/2017,3898547,391.88,Thomas Ridley & Son Ltd
Childrens Services,Children's Social Care,Support Service and Management Costs,Schools Catering,Kitchen Supplies - Food and Beverages,10/07/2017,3898548,574.37,Thomas Ridley & Son Ltd
Childrens Services,Children's Social Care,Support Service and Management Costs,Schools Catering,Kitchen Supplies - Food and Beverages,10/07/2017,3898549,551.70,Thomas Ridley & Son Ltd
Childrens Services,Children's Social Care,Support Service and Management Costs,Schools Catering,Kitchen Supplies - Food and Beverages,10/07/2017,3898550,585.24,Thomas Ridley & Son Ltd
Childrens Services,Children's Social Care,Support Service and Management Costs,Schools Catering,Kitchen Supplies - Food and Beverages,10/07/2017,3898552,742.60,Thomas Ridley & Son Ltd
Childrens Services,Children's Social Care,Support Service and Management Costs,Schools Catering,Kitchen Supplies - Food and Beverages,10/07/2017,3898554,326.91,Thomas Ridley & Son Ltd
Childrens Services,Children's Social Care,Support Service and Management Costs,Schools Catering,Kitchen Supplies - Food and Beverages,10/07/2017,3898555,502.12,Thomas Ridley & Son Ltd
Childrens Services,Children's Social Care,Support Service and Management Costs,Schools Catering,Kitchen Supplies - Food and Beverages,10/07/2017,3898556,385.14,Thomas Ridley & Son Ltd
Childrens Services,Children's Social Care,Support Service and Management Costs,Schools Catering,Kitchen Supplies - Food and Beverages,10/07/2017,3898557,734.78,Thomas Ridley & Son Ltd
Childrens Services,Children's Social Care,Support Service and Management Costs,Schools Catering,Kitchen Supplies - Food and Beverages,10/07/2017,3898558,584.82,Thomas Ridley & Son Ltd
Childrens Services,Children's Social Care,Support Service and Management Costs,Schools Catering,Kitchen Supplies - Food and Beverages,10/07/2017,3898559,555.39,Thomas Ridley & Son Ltd
Childrens Services,Children's Social Care,Support Service and Management Costs,Schools Catering,Kitchen Supplies - Food and Beverages,10/07/2017,3898561,555.62,Thomas Ridley & Son Ltd
Childrens Services,Children's Social Care,Support Service and Management Costs,Schools Catering,Kitchen Supplies - Food and Beverages,10/07/2017,3898563,703.82,Thomas Ridley & Son Ltd
Childrens Services,Children's Social Care,Support Service and Management Costs,Schools Catering,Kitchen Supplies - Food and Beverages,10/07/2017,3898564,285.02,Thomas Ridley & Son Ltd
Childrens Services,Children's Social Care,Support Service and Management Costs,Schools Catering,Kitchen Supplies - Food and Beverages,10/07/2017,3898567,314.88,Thomas Ridley & Son Ltd
Childrens Services,Children's Social Care,Support Service and Management Costs,Schools Catering,Kitchen Supplies - Food and Beverages,10/07/2017,3898568,378.34,Thomas Ridley & Son Ltd
Childrens Services,Children's Social Care,Support Service and Management Costs,Schools Catering,Kitchen Supplies - Food and Beverages,10/07/2017,3898569,381.96,Thomas Ridley & Son Ltd
Childrens Services,Children's Social Care,Support Service and Management Costs,Sch. Meals A/c - Central Production Unit,Kitchen Supplies - Food and Beverages,10/07/2017,3898624,709.60,Thomas Ridley & Son Ltd
Childrens Services,Children's Social Care,Support Service and Management Costs,Schools Catering,Kitchen Supplies - Food and Beverages,10/07/2017,3898727,386.04,Thomas Ridley & Son Ltd
Childrens Services,Children's Social Care,Support Service and Management Costs,Schools Catering,Kitchen Supplies - Food and Beverages,10/07/2017,3898765,339.60,Thomas Ridley & Son Ltd
Childrens Services,Children's Social Care,Support Service and Management Costs,Schools Catering,Kitchen Supplies - Food and Beverages,10/07/2017,3898772,653.23,Thomas Ridley & Son Ltd
Childrens Services,Children's Social Care,Support Service and Management Costs,Schools Catering,Kitchen Supplies - Food and Beverages,10/07/2017,3898779,688.67,Thomas Ridley & Son Ltd
Childrens Services,Children's Social Care,Support Service and Management Costs,Schools Catering,Kitchen Supplies - Food and Beverages,10/07/2017,3898786,265.81,Thomas Ridley & Son Ltd
Childrens Services,Children's Social Care,Support Service and Management Costs,Schools Catering,Kitchen Supplies - Food and Beverages,10/07/2017,3898788,307.15,Prescott-Thomas LTD.
Childrens Services,Children's Social Care,Support Service and Management Costs,Schools Catering,Kitchen Supplies - Food and Beverages,10/07/2017,3898815,281.82,Thomas Ridley & Son Ltd
Childrens Services,Children's Social Care,Support Service and Management Costs,Schools Catering,Kitchen Supplies - Food and Beverages,10/07/2017,3898823,493.48,Thomas Ridley & Son Ltd
Childrens Services,Children's Social Care,Support Service and Management Costs,Schools Catering,Kitchen Supplies - Food and Beverages,10/07/2017,3898830,353.37,Thomas Ridley & Son Ltd
Childrens Services,Children's Social Care,Support Service and Management Costs,Schools Catering,Kitchen Supplies - Food and Beverages,10/07/2017,3898895,342.48,Prescott-Thomas LTD.
Childrens Services,Children's Social Care,Support Service and Management Costs,Schools Catering,Kitchen Supplies - Food and Beverages,10/07/2017,3898915,294.82,Prescott-Thomas LTD.
Childrens Services,Children's Social Care,Support Service and Management Costs,Schools Catering,Kitchen Supplies - Food and Beverages,10/07/2017,3898984,270.09,Prescott-Thomas LTD.
Childrens Services,Children's Social Care,Children Looked After,S23 Fam Pl P&V-F/Care,Childrens Act Section 23 - Placement Fee,10/07/2017,3900474,"4,050.00",St Christopher's Fellowship
Childrens Services,Children's Social Care,Youth Justice,Partnerships,Computing - Purchase of Hardware,10/07/2017,3900481,613.95,Ignite Service Provider Ltd
Childrens Services,Education Services,Other Strategic Functions,High Needs Other Boroughs,Third Party Payments - Payments to Schools,10/07/2017,3900521,"20,208.30",Stormont House School
Childrens Services,Children's Social Care,Children Looked After,S23 Fam Pl P&V-F/Care,Childrens Act Section 23 - Placement Fee,10/07/2017,3900530,"4,500.00",St Christopher's Fellowship
Childrens Services,Cultural and Related Services,Open Spaces,Victoria Park,Grounds Maintenance - Contract - Bedding,10/07/2017,3901097,"2,376.00",Amethyst Horticulture Ltd
Childrens Services,Children's Social Care,Children's and Young People's Safety,Child Protection Mgt & Admin,Meeting Expenses,10/07/2017,3901440,404.00,Account 3 Ltd
Childrens Services,Children's Social Care,Service Strategy,FS&P - NRPF,Social Care - Day Care,10/07/2017,3901512,"2,120.00",Limehouse Children Contact Centre LTD
Childrens Services,Children's Social Care,Children Looked After,LCS/Allowances-Accom,Leaving Care Financial Assistance - Grant Pay Special Needs,10/07/2017,3903409,"2,352.00",NCY TRUST
Childrens Services,Cultural and Related Services,Open Spaces,Victoria Park,Events & Exhibition Supplies,10/07/2017,3904044,"1,500.00",Mannings Fairview Co Ltd
Childrens Services,Children's Social Care,Support Service and Management Costs,Schools Catering,Materials - Cleaning Materials,10/07/2017,3904245,312.94,The Maintenance Supply Co Ltd
Childrens Services,Education Services,Early Years,Early Years Health Project,Social Care - Nursing Care,10/07/2017,3904894,349.67,NHS SUPPLY CHAIN
Childrens Services,Children's Social Care,Support Service and Management Costs,Schools Catering,Kitchen Supplies - Food and Beverages,10/07/2017,3905182,291.96,William White Meats Ltd
Childrens Services,Children's Social Care,Support Service and Management Costs,Schools Catering,Kitchen Supplies - Food and Beverages,10/07/2017,3905324,416.56,William White Meats Ltd
Childrens Services,Children's Social Care,Support Service and Management Costs,Schools Catering,Kitchen Supplies - Food and Beverages,10/07/2017,3905379,273.45,William White Meats Ltd
Childrens Services,Children's Social Care,Support Service and Management Costs,Schools Catering,Kitchen Supplies - Food and Beverages,10/07/2017,3905388,347.19,William White Meats Ltd
Childrens Services,Children's Social Care,Support Service and Management Costs,Schools Catering,Kitchen Supplies - Food and Beverages,10/07/2017,3905402,385.16,William White Meats Ltd
Childrens Services,Children's Social Care,Support Service and Management Costs,Schools Catering,Kitchen Supplies - Food and Beverages,10/07/2017,3905404,404.85,William White Meats Ltd
Childrens Services,Children's Social Care,Support Service and Management Costs,Schools Catering,Kitchen Supplies - Food and Beverages,10/07/2017,3905405,381.56,William White Meats Ltd
Childrens Services,Children's Social Care,Support Service and Management Costs,Schools Catering,Kitchen Supplies - Food and Beverages,10/07/2017,3905406,345.62,William White Meats Ltd
Childrens Services,Children's Social Care,Support Service and Management Costs,Schools Catering,Kitchen Supplies - Food and Beverages,10/07/2017,3905409,380.62,William White Meats Ltd
Childrens Services,Children's Social Care,Support Service and Management Costs,Schools Catering,Kitchen Supplies - Food and Beverages,10/07/2017,3905414,286.42,William White Meats Ltd
Childrens Services,Children's Social Care,Support Service and Management Costs,Schools Catering,Kitchen Supplies - Food and Beverages,10/07/2017,3905423,293.23,William White Meats Ltd
Childrens Services,Children's Social Care,Support Service and Management Costs,Schools Catering,Kitchen Supplies - Food and Beverages,10/07/2017,3905424,544.35,William White Meats Ltd
Childrens Services,Education Services,Other Strategic Functions,High Needs Other Boroughs,Third Party Payments - Payments to Schools,10/07/2017,3907467,"19,688.04",The Garden
Childrens Services,Education Services,Other Strategic Functions,High Needs Other Boroughs,Third Party Payments - Payments to Schools,10/07/2017,3907523,"19,688.04",The Garden
Childrens Services,Education Services,Other Strategic Functions,High Needs Other Boroughs,Third Party Payments - Payments to Schools,10/07/2017,3907540,"32,673.00",The Garden
Childrens Services,Education Services,Other Strategic Functions,High Needs Other Boroughs,Third Party Payments - Payments to Schools,10/07/2017,3907549,"32,673.00",The Garden
Childrens Services,Education Services,Other Strategic Functions,High Needs Other Boroughs,Third Party Payments - Payments to Schools,10/07/2017,3907558,"32,673.00",The Garden
Childrens Services,Education Services,Other Strategic Functions,High Needs Other Boroughs,Third Party Payments - Payments to Schools,10/07/2017,3907566,"19,688.04",The Garden
Childrens Services,Education Services,Other Strategic Functions,High Needs Other Boroughs,Third Party Payments - Payments to Schools,10/07/2017,3907574,"32,673.00",The Garden
Childrens Services,Education Services,Other Strategic Functions,High Needs Other Boroughs,Third Party Payments - Payments to Schools,10/07/2017,3907582,"19,688.04",The Garden
Childrens Services,Education Services,Other Strategic Functions,High Needs Other Boroughs,Third Party Payments - Payments to Schools,10/07/2017,3907588,"32,673.00",The Garden
Childrens Services,Education Services,Other Strategic Functions,High Needs Other Boroughs,Third Party Payments - Payments to Schools,10/07/2017,3907594,"13,613.75",The Garden
Childrens Services,Education Services,Other Strategic Functions,SEN External Travel,Non Staff Transport Costs - Reimbursement,10/07/2017,3908456,"29,598.00",Mile End Car Hire Limited
Childrens Services,Education Services,Other Strategic Functions,SEN External Travel,Non Staff Transport Costs - Reimbursement,10/07/2017,3908556,"11,130.00",Mile End Car Hire Limited
Childrens Services,Children's Social Care,Children Looked After,S23-Other-Semi-Ind. Unit,Childrens Act Section 23 - Placement Fee,10/07/2017,3909200,"7,092.90",KPMS LTD
Childrens Services,Children's Social Care,Children Looked After,S23 Fam Pl P&V-F/Care,Childrens Act Section 23 - Placement Fee,10/07/2017,3910077,"3,514.20",Welcome Foster Care
Childrens Services,Children's Social Care,Children Looked After,S23 Fam Pl P&V-F/Care,Childrens Act Section 23 - Placement Fee,10/07/2017,3910078,"3,514.20",Welcome Foster Care
Childrens Services,Children's Social Care,Children Looked After,S23 Fam Pl P&V-F/Care,Childrens Act Section 23 - Placement Fee,10/07/2017,3910079,"2,952.90",Welcome Foster Care
Childrens Services,Children's Social Care,Support Service and Management Costs,Schools Catering,Kitchen Supplies - Food and Beverages,10/07/2017,3910116,-446.40,William White Meats Ltd
Childrens Services,Children's Social Care,Children Looked After,S23 Fam Pl P&V-F/Care,Childrens Act Section 23 - Placement Fee,10/07/2017,3910180,"2,952.90",Welcome Foster Care
Childrens Services,Children's Social Care,Support Service and Management Costs,Schools Catering,Kitchen Supplies - Food and Beverages,10/07/2017,3910208,-532.16,William White Meats Ltd
Childrens Services,Children's Social Care,Family Support Services,Eva Armsby Family Centre,Services - Professional Fees - Legal Fees/Expenses,10/07/2017,3910995,"1,292.50",MVR Assessments Ltd
Childrens Services,Children's Social Care,Services for young people,LAPS 1 - 8,Educational/Training Supplies - Curriculum Visits/Activities,12/07/2017,3898643,500.00,Spice n Nice Catering Ltd
Childrens Services,Education Services,Other Strategic Functions,Special Education Needs DSG,Third Party Payments - Payments to Schools,12/07/2017,3898665,"15,390.98",Calvary Poplar Preschool
Childrens Services,Children's Social Care,Support Service and Management Costs,Sch. Meals A/c - Central Production Unit,Kitchen Supplies - Food and Beverages,12/07/2017,3899454,703.71,Thomas Ridley & Son Ltd
Childrens Services,Children's Social Care,Support Service and Management Costs,Welfare Catering,Kitchen Supplies - Food and Beverages,12/07/2017,3899455,917.32,Thomas Ridley & Son Ltd
Childrens Services,Children's Social Care,Support Service and Management Costs,Schools Catering,Kitchen Supplies - Food and Beverages,12/07/2017,3899666,286.08,Prescott-Thomas LTD.
Childrens Services,Children's Social Care,Support Service and Management Costs,Schools Catering,Kitchen Supplies - Food and Beverages,12/07/2017,3899707,362.22,Thomas Ridley & Son Ltd
Childrens Services,Children's Social Care,Support Service and Management Costs,Schools Catering,Kitchen Supplies - Food and Beverages,12/07/2017,3899727,454.25,Thomas Ridley & Son Ltd
Childrens Services,Children's Social Care,Support Service and Management Costs,Schools Catering,Kitchen Supplies - Food and Beverages,12/07/2017,3899732,309.96,Thomas Ridley & Son Ltd
Childrens Services,Children's Social Care,Support Service and Management Costs,Schools Catering,Kitchen Supplies - Food and Beverages,12/07/2017,3899754,610.19,Thomas Ridley & Son Ltd
Childrens Services,Children's Social Care,Support Service and Management Costs,Schools Catering,Kitchen Supplies - Food and Beverages,12/07/2017,3899766,304.64,Thomas Ridley & Son Ltd
Childrens Services,Children's Social Care,Support Service and Management Costs,Schools Catering,Kitchen Supplies - Food and Beverages,12/07/2017,3899772,555.52,Thomas Ridley & Son Ltd
Childrens Services,Children's Social Care,Support Service and Management Costs,Schools Catering,Kitchen Supplies - Food and Beverages,12/07/2017,3899777,456.94,Thomas Ridley & Son Ltd
Childrens Services,Children's Social Care,Support Service and Management Costs,Schools Catering,Kitchen Supplies - Food and Beverages,12/07/2017,3899791,356.56,Thomas Ridley & Son Ltd
Childrens Services,Children's Social Care,Support Service and Management Costs,Schools Catering,Kitchen Supplies - Food and Beverages,12/07/2017,3899796,811.01,Thomas Ridley & Son Ltd
Childrens Services,Children's Social Care,Support Service and Management Costs,Schools Catering,Kitchen Supplies - Food and Beverages,12/07/2017,3900321,414.87,Thomas Ridley & Son Ltd
Childrens Services,Children's Social Care,Support Service and Management Costs,Schools Catering,Kitchen Supplies - Food and Beverages,12/07/2017,3900326,321.90,Thomas Ridley & Son Ltd
Childrens Services,Children's Social Care,Support Service and Management Costs,Schools Catering,Kitchen Supplies - Food and Beverages,12/07/2017,3900333,424.23,Thomas Ridley & Son Ltd
Childrens Services,Children's Social Care,Support Service and Management Costs,Schools Catering,Kitchen Supplies - Food and Beverages,12/07/2017,3900337,370.98,Thomas Ridley & Son Ltd
Childrens Services,Children's Social Care,Support Service and Management Costs,Schools Catering,Kitchen Supplies - Food and Beverages,12/07/2017,3900340,531.87,Thomas Ridley & Son Ltd
Childrens Services,Children's Social Care,Support Service and Management Costs,Schools Catering,Kitchen Supplies - Food and Beverages,12/07/2017,3900343,593.76,Thomas Ridley & Son Ltd
Childrens Services,Children's Social Care,Support Service and Management Costs,Schools Catering,Kitchen Supplies - Food and Beverages,12/07/2017,3900345,679.52,Thomas Ridley & Son Ltd
Childrens Services,Children's Social Care,Support Service and Management Costs,Schools Catering,Kitchen Supplies - Food and Beverages,12/07/2017,3900355,394.35,Thomas Ridley & Son Ltd
Childrens Services,Children's Social Care,Support Service and Management Costs,Schools Catering,Kitchen Supplies - Food and Beverages,12/07/2017,3900359,271.87,Thomas Ridley & Son Ltd
Childrens Services,Children's Social Care,Support Service and Management Costs,Schools Catering,Kitchen Supplies - Food and Beverages,12/07/2017,3900361,485.00,Thomas Ridley & Son Ltd
Childrens Services,Children's Social Care,Support Service and Management Costs,Schools Catering,Kitchen Supplies - Food and Beverages,12/07/2017,3900363,403.71,Thomas Ridley & Son Ltd
Childrens Services,Children's Social Care,Support Service and Management Costs,Schools Catering,Kitchen Supplies - Food and Beverages,12/07/2017,3900365,319.11,Thomas Ridley & Son Ltd
Childrens Services,Children's Social Care,Support Service and Management Costs,Schools Catering,Kitchen Supplies - Food and Beverages,12/07/2017,3900366,504.94,Thomas Ridley & Son Ltd
Childrens Services,Children's Social Care,Support Service and Management Costs,Schools Catering,Kitchen Supplies - Food and Beverages,12/07/2017,3900367,337.62,Thomas Ridley & Son Ltd
Childrens Services,Children's Social Care,Support Service and Management Costs,Schools Catering,Kitchen Supplies - Food and Beverages,12/07/2017,3900368,285.51,Thomas Ridley & Son Ltd
Childrens Services,Children's Social Care,Support Service and Management Costs,Schools Catering,Kitchen Supplies - Food and Beverages,12/07/2017,3900369,256.71,Thomas Ridley & Son Ltd
Childrens Services,Children's Social Care,Support Service and Management Costs,Schools Catering,Kitchen Supplies - Food and Beverages,12/07/2017,3900370,671.76,Thomas Ridley & Son Ltd
Childrens Services,Children's Social Care,Support Service and Management Costs,Schools Catering,Kitchen Supplies - Food and Beverages,12/07/2017,3900371,274.60,Thomas Ridley & Son Ltd
Childrens Services,Children's Social Care,Support Service and Management Costs,Schools Catering,Kitchen Supplies - Food and Beverages,12/07/2017,3900486,421.74,Thomas Ridley & Son Ltd
Childrens Services,Children's Social Care,Support Service and Management Costs,Welfare Catering,Kitchen Supplies - Food and Beverages,12/07/2017,3900487,366.46,Thomas Ridley & Son Ltd
Childrens Services,Children's Social Care,Support Service and Management Costs,Sch. Meals A/c - Central Production Unit,Kitchen Supplies - Food and Beverages,12/07/2017,3900488,"1,819.74",Thomas Ridley & Son Ltd
Childrens Services,No Service Specified,No Division Specified,Capital-Minor Works (SC),Other External Fees - Consultants Fees,12/07/2017,3900501,"3,000.00",Architype
Childrens Services,No Service Specified,No Division Specified,Capital-Minor Works (SC),Other External Fees - Consultants Fees,12/07/2017,3900538,600.00,Architype
Childrens Services,Children's Social Care,Support Service and Management Costs,Schools Catering,Kitchen Supplies - Food and Beverages,12/07/2017,3900547,890.37,Thomas Ridley & Son Ltd
Childrens Services,Children's Social Care,Support Service and Management Costs,Schools Catering,Kitchen Supplies - Food and Beverages,12/07/2017,3900554,699.98,Thomas Ridley & Son Ltd
Childrens Services,Children's Social Care,Support Service and Management Costs,Schools Catering,Kitchen Supplies - Food and Beverages,12/07/2017,3900571,595.51,Thomas Ridley & Son Ltd
Childrens Services,Children's Social Care,Support Service and Management Costs,Schools Catering,Kitchen Supplies - Food and Beverages,12/07/2017,3900578,259.97,Thomas Ridley & Son Ltd
Childrens Services,Children's Social Care,Support Service and Management Costs,Schools Catering,Kitchen Supplies - Food and Beverages,12/07/2017,3900584,580.88,Thomas Ridley & Son Ltd
Childrens Services,Children's Social Care,Support Service and Management Costs,Schools Catering,Kitchen Supplies - Food and Beverages,12/07/2017,3900590,536.20,Thomas Ridley & Son Ltd
Childrens Services,Children's Social Care,Support Service and Management Costs,Schools Catering,Kitchen Supplies - Food and Beverages,12/07/2017,3900593,954.49,Thomas Ridley & Son Ltd
Childrens Services,Children's Social Care,Support Service and Management Costs,Schools Catering,Kitchen Supplies - Food and Beverages,12/07/2017,3900597,"1,009.08",Thomas Ridley & Son Ltd
Childrens Services,Children's Social Care,Support Service and Management Costs,Schools Catering,Kitchen Supplies - Food and Beverages,12/07/2017,3900600,701.84,Thomas Ridley & Son Ltd
Childrens Services,Children's Social Care,Support Service and Management Costs,Schools Catering,Kitchen Supplies - Food and Beverages,12/07/2017,3900603,324.14,Thomas Ridley & Son Ltd
Childrens Services,Children's Social Care,Support Service and Management Costs,Schools Catering,Kitchen Supplies - Food and Beverages,12/07/2017,3900613,576.35,Thomas Ridley & Son Ltd
Childrens Services,Children's Social Care,Support Service and Management Costs,Schools Catering,Kitchen Supplies - Food and Beverages,12/07/2017,3900616,397.99,Thomas Ridley & Son Ltd
Childrens Services,Children's Social Care,Support Service and Management Costs,Schools Catering,Kitchen Supplies - Food and Beverages,12/07/2017,3900618,396.90,Thomas Ridley & Son Ltd
Childrens Services,Children's Social Care,Support Service and Management Costs,Schools Catering,Kitchen Supplies - Food and Beverages,12/07/2017,3900620,342.58,Thomas Ridley & Son Ltd
Childrens Services,Children's Social Care,Support Service and Management Costs,Schools Catering,Kitchen Supplies - Food and Beverages,12/07/2017,3900626,785.44,Thomas Ridley & Son Ltd
Childrens Services,Children's Social Care,Support Service and Management Costs,Schools Catering,Kitchen Supplies - Food and Beverages,12/07/2017,3900628,303.27,Thomas Ridley & Son Ltd
Childrens Services,Children's Social Care,Support Service and Management Costs,Schools Catering,Kitchen Supplies - Food and Beverages,12/07/2017,3900632,564.20,Thomas Ridley & Son Ltd
Childrens Services,Children's Social Care,Support Service and Management Costs,Schools Catering,Kitchen Supplies - Food and Beverages,12/07/2017,3900636,385.44,Thomas Ridley & Son Ltd
Childrens Services,Children's Social Care,Support Service and Management Costs,Schools Catering,Kitchen Supplies - Food and Beverages,12/07/2017,3900640,254.70,Thomas Ridley & Son Ltd
Childrens Services,Education Services,Early Years,Children Centre Central Team,SLA Services (Expenditure) - Service Level Agreements,12/07/2017,3901085,"1,485.00",AquariumGroup
Childrens Services,Children's Social Care,Children Looked After,Virtual School PPG,Third Party Payments - Payments to Schools,12/07/2017,3901088,700.00,BRACKENBURY PRIMARY SCHOOL
Childrens Services,Education Services,Other Strategic Functions,High Needs FE Colleges,Recreational Activities,12/07/2017,3901101,"3,311.87",Capel Manor College
Childrens Services,Children's Social Care,Service Strategy,Children's Placement Team,Staff Advertising,12/07/2017,3901492,"1,537.55",Penna PLC
Childrens Services,Children's Social Care,Services for young people,Outdoor,Tools and Equipment - Purchase,12/07/2017,3901511,855.48,J Reeder Lock & Safe Co Ltd
Childrens Services,Children's Social Care,Children Looked After,S23 Fam Pl P&V-F/Care,Childrens Act Section 23 - Placement Fee,12/07/2017,3901754,"2,921.27",Five Rivers Childcare Limited
Childrens Services,Education Services,Other Strategic Functions,Special Education Needs DSG,Third Party Payments - Payments to Schools,12/07/2017,3901760,"44,028.44",CORA FOUNDATION
Childrens Services,Children's Social Care,Children Looked After,S23-Resi-P&V/OLA-Sec Acc-Wel,Childrens Act Section 23 - Placement Fee,12/07/2017,3901760,"44,028.44",CORA FOUNDATION
Childrens Services,Children's Social Care,Children Looked After,S23 Fam Pl P&V-F/Care,Childrens Act Section 23 - Placement Fee,12/07/2017,3901822,"3,018.65",Five Rivers Childcare Limited
Childrens Services,Children's Social Care,Children Looked After,S23 Fam Pl P&V-F/Care,Childrens Act Section 23 - Placement Fee,12/07/2017,3901846,"2,921.27",Five Rivers Childcare Limited
Childrens Services,Children's Social Care,Children Looked After,S23-Resi-P&V/OLA-Sec Acc-Wel,Childrens Act Section 23 - Placement Fee,12/07/2017,3904892,"24,625.80",Rossie Secure Accommodation Services
Childrens Services,Children's Social Care,Children Looked After,S23 Fam Pl P&V-F/Care,Childrens Act Section 23 - Placement Fee,12/07/2017,3905089,"4,328.84",BANYA
Childrens Services,Children's Social Care,Children Looked After,S23-Resi-P&V/OLA-Sec Acc-Wel,Childrens Act Section 23 - Non-Contact Trans/Travel Costs,12/07/2017,3905101,"2,036.00",Wrixon Care Services
Childrens Services,Children's Social Care,Children Looked After,S23 Fam Pl P&V-F/Care,Childrens Act Section 23 - Non-Contact Trans/Travel Costs,12/07/2017,3905103,673.60,Family Fostering
Childrens Services,Children's Social Care,Support Service and Management Costs,Sch. Meals A/c - Central Production Unit,Kitchen Supplies - Food and Beverages,12/07/2017,3905137,496.00,William White Meats Ltd
Childrens Services,Children's Social Care,Support Service and Management Costs,Schools Catering,Kitchen Supplies - Food and Beverages,12/07/2017,3905428,353.70,William White Meats Ltd
Childrens Services,Children's Social Care,Support Service and Management Costs,Schools Catering,Kitchen Supplies - Food and Beverages,12/07/2017,3905436,257.00,William White Meats Ltd
Childrens Services,Children's Social Care,Support Service and Management Costs,Schools Catering,Kitchen Supplies - Food and Beverages,12/07/2017,3905543,259.97,William White Meats Ltd
Childrens Services,Cultural and Related Services,Open Spaces,Victoria Park,Grounds Maintenance - Contract - Bedding,12/07/2017,3907449,880.00,Fresh Acres Nurseries Ltd
Childrens Services,Cultural and Related Services,Open Spaces,Victoria Park,Grounds Maintenance - Contract - Bedding,12/07/2017,3907450,"4,644.00",Fresh Acres Nurseries Ltd
Childrens Services,Cultural and Related Services,Open Spaces,Victoria Park,Grounds Maintenance - Contract - Bedding,12/07/2017,3907451,"5,846.05",Fresh Acres Nurseries Ltd
Childrens Services,Children's Social Care,Children Looked After,Virtual School PPG,Agency Staff - Associations,12/07/2017,3907837,690.45,Academics ltd
Childrens Services,Children's Social Care,Children Looked After,Virtual School PPG,Agency Staff - Associations,12/07/2017,3907838,690.45,Academics ltd
Childrens Services,Children's Social Care,Children Looked After,Virtual School PPG,Agency Staff - Associations,12/07/2017,3907839,"1,150.75",Academics ltd
Childrens Services,Children's Social Care,Children Looked After,Virtual School PPG,Agency Staff - Associations,12/07/2017,3907897,920.60,Academics ltd
Childrens Services,Children's Social Care,Children Looked After,Virtual School PPG,Agency Staff - Associations,12/07/2017,3907898,920.60,Academics ltd
Childrens Services,Children's Social Care,Children Looked After,Virtual School PPG,Agency Staff - Associations,12/07/2017,3907899,"1,150.75",Academics ltd
Childrens Services,Children's Social Care,Family Support Services,CNN Pool: Joint Family Support,Children with Disabilities - Special Care in the Home,12/07/2017,3907909,257.25,Allied Healthcare Group LTD
Childrens Services,Children's Social Care,Family Support Services,Eva Armsby Family Centre,Services - Professional Fees - Legal Fees/Expenses,12/07/2017,3908098,"2,600.00",Core Assets Expert Services Ltd T/a Carter Brown
Childrens Services,Children's Social Care,Children Looked After,S23 Fam Pl In-Hse-Kinshp Care,Childrens Act Section 23 - All Contact Expenses,12/07/2017,3908490,600.00,Limehouse Children Contact Centre LTD
Childrens Services,Cultural and Related Services,Culture & Heritage,Arts-Park Events,Non Staff Advertising - General,12/07/2017,3910032,575.00,Weekly Desh
Childrens Services,Children's Social Care,Family Support Services,IPST S17 NRPF,Childrens Act Section 17 - Other Placements Bed & Breakfast,12/07/2017,3910035,"4,000.00",Finefair Management
Childrens Services,Children's Social Care,Family Support Services,IPST S17 NRPF,Childrens Act Section 17 - Other Placements Bed & Breakfast,12/07/2017,3910036,"4,250.00",Finefair Management
Childrens Services,Education Services,Early Years,Isle of Dogs. CC,Room Hire,12/07/2017,3910113,"1,000.00",Alpha Grove Centre
Childrens Services,Education Services,Early Years,Isle of Dogs. CC,Room Hire,12/07/2017,3910114,"1,500.00",Alpha Grove Centre
Childrens Services,Education Services,Other Strategic Functions,Special Education Needs DSG,Third Party Payments - Payments to Schools,12/07/2017,3910152,"32,514.71",NAS Services Ltd
Childrens Services,Children's Social Care,Children Looked After,S23-Resi-P&V/OLA-Boarding Sch,Childrens Act Section 23 - Placement Fee,12/07/2017,3910152,"32,514.71",NAS Services Ltd
Childrens Services,Children's Social Care,Family Support Services,IPST S17 NRPF,Childrens Act Section 17 - Other Placements Bed & Breakfast,12/07/2017,3910177,"1,500.00",Finefair Management
Childrens Services,Education Services,Other Strategic Functions,Pupil & Student Services GF,Non Staff Transport Costs - Client Transport Costs,12/07/2017,3910478,"2,980.00",Lindel Services LTD - T/A Fox Transport
Childrens Services,Education Services,Other Strategic Functions,SEN External Travel,Non Staff Transport Costs - Reimbursement,12/07/2017,3910479,"64,713.00",Lindel Services LTD - T/A Fox Transport
Childrens Services,Children's Social Care,Children Looked After,S23 Fam Pl P&V-F/Care,Childrens Act Section 23 - Non-Contact Trans/Travel Costs,12/07/2017,3910519,"2,682.23",TKG LTD T/A The Keen Group
Childrens Services,Education Services,Other Strategic Functions,SEN External Travel,Non Staff Transport Costs - Reimbursement,12/07/2017,3910520,"37,187.00",TKG LTD T/A The Keen Group
Childrens Services,Education Services,Early Years,Mile End CC,Property Leases - Buildings,12/07/2017,3910695,"10,000.00",Eastend Homes LTD
Childrens Services,Education Services,Early Years,Mile End CC,Property Leases - Buildings,12/07/2017,3910696,"10,000.00",Eastend Homes LTD
Childrens Services,Education Services,Early Years,Mile End CC,Property Leases - Buildings,12/07/2017,3910697,"10,000.00",Eastend Homes LTD
Childrens Services,Education Services,Early Years,Mile End CC,Property Leases - Buildings,12/07/2017,3910698,"11,811.16",Eastend Homes LTD
Childrens Services,Education Services,Other Strategic Functions,SEN External Travel,Non Staff Transport Costs - Reimbursement,12/07/2017,3911016,"16,400.00",Olympic (South) Ltd
Childrens Services,Children's Social Care,Children Looked After,S23 Fam Pl P&V-F/Care,Childrens Act Section 23 - Non-Contact Trans/Travel Costs,12/07/2017,3911034,"2,544.68",TKG LTD T/A The Keen Group
Childrens Services,Education Services,Other Strategic Functions,SEN External Travel,Non Staff Transport Costs - Reimbursement,12/07/2017,3911084,"4,400.00",IHS Corporation Ltd
Childrens Services,Education Services,Other Strategic Functions,Schools Library,Printing - External,12/07/2017,3911097,315.62,Bertram Library Services
Childrens Services,Children's Social Care,Children Looked After,S23-Resi-P&V/OLA-Child Home,Childrens Act Section 23 - Placement Fee,12/07/2017,3911252,"16,430.00",Hillcrest Care Ltd
Childrens Services,Children's Social Care,Children Looked After,S23-Resi-P&V/OLA-Child Home,Childrens Act Section 23 - Placement Fee,12/07/2017,3911264,"25,885.00",Northumberland County Council
Childrens Services,Cultural and Related Services,Culture & Heritage,Kobi Nazrul Centre,Refuse Collection,12/07/2017,3911319,340.00,VEOLIA ENVIRONMENTAL SERVICES PLC
Childrens Services,Children's Social Care,Services for young people,LAPS 1 - 8,Educational/Training Supplies - Curriculum Visits/Activities,12/07/2017,3911343,"1,550.00",KINGSWOOD COLOMENDY LIMITED
Childrens Services,Education Services,Other Strategic Functions,BHLPS (Budget Holding Lead Professional Scheme),Non Staff Transport Costs - Client Transport Costs,12/07/2017,3911351,950.00,Mile End Car Hire Limited
Childrens Services,Cultural and Related Services,Recreation & Sport,Sports Development,Recreational Activities,12/07/2017,3911355,"1,585.10",Greenwich Leisure LTD
Childrens Services,Education Services,Services to Young People and Other Community Learners,Supported Housing - Young People,Directorate Recharges - Income AHWB,12/07/2017,3912116,"12,167.00",Kipper Project
Childrens Services,Education Services,Services to Young People and Other Community Learners,Supported Housing - Young People,Directorate Recharges - Income AHWB,12/07/2017,3912117,"20,416.67",One Housing Group
Childrens Services,Children's Social Care,Support Service and Management Costs,Sch. Meals A/c - Central Production Unit,Kitchen Supplies - Food and Beverages,14/07/2017,3901137,986.84,Thomas Ridley & Son Ltd
Childrens Services,Cultural and Related Services,Open Spaces,Stepney Green,Grounds Maintenance - Contract - Horticultural Maintenance,14/07/2017,3901176,"1,103.15",VEOLIA ENVIRONMENTAL SERVICES PLC
Childrens Services,Children's Social Care,Support Service and Management Costs,Schools Catering,Kitchen Supplies - Food and Beverages,14/07/2017,3901268,461.56,Thomas Ridley & Son Ltd
Childrens Services,Children's Social Care,Support Service and Management Costs,Schools Catering,Kitchen Supplies - Food and Beverages,14/07/2017,3901277,398.40,Thomas Ridley & Son Ltd
Childrens Services,Children's Social Care,Support Service and Management Costs,Schools Catering,Kitchen Supplies - Food and Beverages,14/07/2017,3901302,534.54,Thomas Ridley & Son Ltd
Childrens Services,Children's Social Care,Support Service and Management Costs,Schools Catering,Kitchen Supplies - Food and Beverages,14/07/2017,3901306,358.93,Thomas Ridley & Son Ltd
Childrens Services,Children's Social Care,Support Service and Management Costs,Schools Catering,Kitchen Supplies - Food and Beverages,14/07/2017,3901309,325.78,Thomas Ridley & Son Ltd
Childrens Services,Children's Social Care,Support Service and Management Costs,Schools Catering,Kitchen Supplies - Food and Beverages,14/07/2017,3901316,335.10,Thomas Ridley & Son Ltd
Childrens Services,Children's Social Care,Support Service and Management Costs,Schools Catering,Kitchen Supplies - Food and Beverages,14/07/2017,3901322,347.20,Thomas Ridley & Son Ltd
Childrens Services,Children's Social Care,Support Service and Management Costs,Schools Catering,Kitchen Supplies - Food and Beverages,14/07/2017,3901328,634.44,Thomas Ridley & Son Ltd
Childrens Services,Children's Social Care,Support Service and Management Costs,Schools Catering,Kitchen Supplies - Food and Beverages,14/07/2017,3901332,287.14,Thomas Ridley & Son Ltd
Childrens Services,Children's Social Care,Support Service and Management Costs,Schools Catering,Kitchen Supplies - Food and Beverages,14/07/2017,3901335,"1,246.70",Thomas Ridley & Son Ltd
Childrens Services,Cultural and Related Services,Open Spaces,Mile End Park,Repairs and Maintenance - Responsive - Buildings,14/07/2017,3901488,"2,630.00",surelock security systems ltd
Childrens Services,Children's Social Care,Children Looked After,S23 Fam Pl P&V-F/Care,Childrens Act Section 23 - Placement Fee,14/07/2017,3901529,"5,766.62",Moments Fostering Ltd
Childrens Services,Children's Social Care,Children Looked After,LCS/Allowances-Accom,Leaving Care Financial Assistance - Supp Accom/Hous Rents,14/07/2017,3901531,"3,299.38",Light Touch Accomodation Ltd
Childrens Services,Adult Social Care,Support Service and Management Costs,Org Development L&D Training,Social Care - Drugs/Alcohol Dual Dia,14/07/2017,3901538,595.00,Talking Life
Childrens Services,Children's Social Care,Children Looked After,S23 Fam Pl P&V-F/Care,Childrens Act Section 23 - Placement Fee,14/07/2017,3901573,352.80,Moments Fostering Ltd
Childrens Services,Children's Social Care,Children Looked After,S23 Fam Pl P&V-F/Care,Childrens Act Section 23 - Placement Fee,14/07/2017,3901745,"3,256.20",Ryancare Fostering Ltd
Childrens Services,Children's Social Care,Children Looked After,S23 Fam Pl P&V-F/Care,Childrens Act Section 23 - Placement Fee,14/07/2017,3901746,"3,393.30",Ryancare Fostering Ltd
Childrens Services,Children's Social Care,Children Looked After,S23 Fam Pl P&V-F/Care,Childrens Act Section 23 - Placement Fee,14/07/2017,3901747,"3,750.00",Ryancare Fostering Ltd
Childrens Services,Children's Social Care,Children Looked After,S23 Fam Pl P&V-F/Care,Childrens Act Section 23 - Placement Fee,14/07/2017,3901818,"3,427.50",Ryancare Fostering Ltd
Childrens Services,Children's Social Care,Children Looked After,S23 Fam Pl P&V-F/Care,Childrens Act Section 23 - Placement Fee,14/07/2017,3901842,"4,500.00",Ryancare Fostering Ltd
Childrens Services,Children's Social Care,Family Support Services,Tackling Troubled Families,Computing - Purchase of Software,14/07/2017,3903185,"14,663.00",Agilisys Professional Services
Childrens Services,Cultural and Related Services,Culture & Heritage,Arts-Park Events,Non Staff Advertising - General,14/07/2017,3904052,464.00,Billboard Posters T/A Augustus Martin
Childrens Services,Children's Social Care,Support Service and Management Costs,Schools Catering,Materials - Cleaning Materials,14/07/2017,3904266,281.35,The Maintenance Supply Co Ltd
Childrens Services,Children's Social Care,Services for young people,Outdoor,Materials - Cleaning Materials,14/07/2017,3904477,276.31,The Maintenance Supply Co Ltd
Childrens Services,Children's Social Care,Service Strategy,89 CA Sec 17 Chld in Need WAPP,Services - Professional Fees - Translation Fees,14/07/2017,3904530,500.85,Oncall Interpreters LTD
Childrens Services,Children's Social Care,Children's and Young People's Safety,Prevention of Violent Extremism Section 17 � FSP,Services - Professional Fees - Translation Fees,14/07/2017,3904531,482.00,Oncall Interpreters LTD
Childrens Services,Children's Social Care,Family Support Services,CNN Pool: Joint Family Support,Services - Professional Fees - Translation Fees,14/07/2017,3904532,"1,954.00",Oncall Interpreters LTD
Childrens Services,Children's Social Care,Children Looked After,S23 Fam Pl P&V-F/Care,Childrens Act Section 23 - Interpreting/Translation,14/07/2017,3904541,396.00,Oncall Interpreters LTD
Childrens Services,Children's Social Care,Children Looked After,S23 Fam Pl In-Hse-S/Term F/C,Childrens Act Section 23 - Interpreting/Translation,14/07/2017,3904542,352.00,Oncall Interpreters LTD
Childrens Services,Children's Social Care,Other Children's and Family Services,Permanent Placements,Services - Professional Fees - Translation Fees,14/07/2017,3904543,322.00,Oncall Interpreters LTD
Childrens Services,Children's Social Care,Children Looked After,S23-Other-Semi-Ind. Unit,Childrens Act Section 23 - Placement Fee,14/07/2017,3904555,"4,116.59",The Way Care Services Ltd
Childrens Services,Children's Social Care,Service Strategy,89 CA Sec 17 Chld in Need BGW,Services - Professional Fees - Translation Fees,14/07/2017,3904602,874.00,Oncall Interpreters LTD
Childrens Services,Children's Social Care,Service Strategy,89 CA Sec 17 Chld in Need WAPP,Services - Professional Fees - Translation Fees,14/07/2017,3904603,982.00,Oncall Interpreters LTD
Childrens Services,Children's Social Care,Other Children's and Family Services,Permanent Placements,Services - Professional Fees - Translation Fees,14/07/2017,3904604,342.00,Oncall Interpreters LTD
Childrens Services,Children's Social Care,Children Looked After,S23-Other-Semi-Ind. Unit,Childrens Act Section 23 - Interpreting/Translation,14/07/2017,3904798,702.00,Oncall Interpreters LTD
Childrens Services,Children's Social Care,Youth Justice,Youth Justice Team,Services - Professional Fees - Translation Fees,14/07/2017,3904806,262.00,Oncall Interpreters LTD
Childrens Services,Children's Social Care,Support Service and Management Costs,Welfare Catering,Kitchen Supplies - Food and Beverages,14/07/2017,3904848,321.12,Apetito LTD
Childrens Services,Children's Social Care,Children Looked After,S23 Family Placements P&V,Childrens Act Section 23 - Placement Fee,14/07/2017,3904854,"3,251.10",Safehouses
Childrens Services,Education Services,Other Strategic Functions,Special Education Needs DSG,Third Party Payments - Payments to Schools,14/07/2017,3904958,"7,000.00",The Complete Works Ltd
Childrens Services,Education Services,Other Strategic Functions,Special Education Needs DSG,Third Party Payments - Payments to Schools,14/07/2017,3904963,"7,000.00",The Complete Works Ltd
Childrens Services,Education Services,Other Strategic Functions,Special Education Needs DSG,Third Party Payments - Payments to Schools,14/07/2017,3904968,"7,000.00",The Complete Works Ltd
Childrens Services,Children's Social Care,Support Service and Management Costs,Welfare Catering,Kitchen Supplies - Food and Beverages,14/07/2017,3905183,367.13,William White Meats Ltd
Childrens Services,Children's Social Care,Support Service and Management Costs,Sch. Meals A/c - Central Production Unit,Kitchen Supplies - Food and Beverages,14/07/2017,3905184,"1,000.15",William White Meats Ltd
Childrens Services,Children's Social Care,Support Service and Management Costs,Schools Catering,Kitchen Supplies - Food and Beverages,14/07/2017,3905431,290.65,William White Meats Ltd
Childrens Services,Children's Social Care,Support Service and Management Costs,Schools Catering,Kitchen Supplies - Food and Beverages,14/07/2017,3905560,554.03,William White Meats Ltd
Childrens Services,Children's Social Care,Support Service and Management Costs,Schools Catering,Kitchen Supplies - Food and Beverages,14/07/2017,3905561,253.62,William White Meats Ltd
Childrens Services,Education Services,Other Strategic Functions,CS Prem Retirement (Non-School,Services - Professional Fees - Financial Services Fees,14/07/2017,3906559,"250,791.43",Teachers Pensions
Childrens Services,Children's Social Care,Support Service and Management Costs,Schools Catering,Kitchen Supplies - Food and Beverages,14/07/2017,3906725,257.85,William White Meats Ltd
Childrens Services,Children's Social Care,Support Service and Management Costs,Schools Catering,Kitchen Supplies - Food and Beverages,14/07/2017,3906750,325.52,William White Meats Ltd
Childrens Services,Children's Social Care,Support Service and Management Costs,Schools Catering,Kitchen Supplies - Food and Beverages,14/07/2017,3906756,390.95,William White Meats Ltd
Childrens Services,Children's Social Care,Support Service and Management Costs,Schools Catering,Kitchen Supplies - Food and Beverages,14/07/2017,3906774,429.95,William White Meats Ltd
Childrens Services,Children's Social Care,Support Service and Management Costs,Schools Catering,Kitchen Supplies - Food and Beverages,14/07/2017,3907338,268.29,William White Meats Ltd
Childrens Services,Children's Social Care,Support Service and Management Costs,Welfare Catering,Kitchen Supplies - Food and Beverages,14/07/2017,3907463,454.98,William White Meats Ltd
Childrens Services,Children's Social Care,Support Service and Management Costs,Professional Dev Centre,Comms - Courier,14/07/2017,3907829,365.00,Figurehead Studios
Childrens Services,Children's Social Care,Services for young people,Connexions General Fund,Computing - Purchase of Software,14/07/2017,3907962,-919.87,Agilisys Professional Services
Childrens Services,No Service Specified,No Division Specified,Capital-Minor Works (SC),Building Works - Main Works,14/07/2017,3908452,"504,016.45",Tower Hamlets Schools LTD
Childrens Services,Education Services,Other Strategic Functions,High Needs Other Boroughs,Third Party Payments - Payments to Schools,14/07/2017,3908483,"5,589.43",City of Westminster
Childrens Services,Education Services,Other Strategic Functions,High Needs Other Boroughs,Third Party Payments - Payments to Schools,14/07/2017,3908484,"4,539.35",Royal Borough of Kensington & Chelsea
Childrens Services,Education Services,Other Strategic Functions,High Needs Academies & Free Schs,Third Party Payments - Payments to Schools,14/07/2017,3910163,"41,250.00",William Morris School
Childrens Services,Education Services,Other Strategic Functions,Schools Library,Printing - External,14/07/2017,3911001,256.64,Bertram Library Services
Childrens Services,Children's Social Care,Children Looked After,S23-Resi-P&V/OLA-Child Home,Childrens Act Section 23 - Placement Fee,14/07/2017,3911062,"17,748.21",Castle Homes Care Ltd
Childrens Services,Education Services,Other Strategic Functions,Schools Library,Printing - External,14/07/2017,3911086,781.32,Bertram Library Services
Childrens Services,Education Services,Other Strategic Functions,SEN External Travel,Non Staff Transport Costs - Reimbursement,14/07/2017,3911710,"5,225.00",Sam's Cars
Childrens Services,Education Services,Other Strategic Functions,Music Trading Account,Meeting Expenses,14/07/2017,3911753,300.00,Osmani Trust
Childrens Services,Education Services,Early Years,Mile End CC,Education & Training - Non Staff Tuition Fees,14/07/2017,3911773,250.00,Green Candle Dance Company
Childrens Services,Children's Social Care,Service Strategy,89 CA Sec 17 Chld in Need POPS,Services - Professional Fees - Translation Fees,14/07/2017,3911838,"1,077.50",Oncall Interpreters LTD
Childrens Services,Education Services,Other Strategic Functions,Special Education Needs DSG,Third Party Payments - Payments to Schools,14/07/2017,3913786,"1,710.00",The Complete Works Ltd
Childrens Services,Education Services,Other Strategic Functions,Special Education Needs DSG,Third Party Payments - Payments to Schools,14/07/2017,3913787,858.00,The Complete Works Ltd
Childrens Services,Education Services,Other Strategic Functions,Special Education Needs DSG,Third Party Payments - Payments to Schools,14/07/2017,3913810,"11,875.00",The Complete Works Ltd
Childrens Services,Children's Social Care,Children Looked After,S23 Fam Pl In-Hse-S/Term F/C,Childrens Act Section 23 - Spec Pymnts Legal,14/07/2017,3913947,518.58,EXPERT IN MIND LIMITED
Childrens Services,Children's Social Care,Family Support Services,IPST S17 NRPF,Childrens Act Section 17 - Food Grants,14/07/2017,3913996,"1,215.00",SOCIAL SERVICES CHEVIOT HOUSE
Childrens Services,Children's Social Care,Family Support Services,IPST S17 NRPF,Childrens Act Section 17 - Food Grants,14/07/2017,3913996,"1,060.00",SOCIAL SERVICES CHEVIOT HOUSE
Childrens Services,Children's Social Care,Family Support Services,IPST S17 NRPF,Childrens Act Section 17 - Food Grants,14/07/2017,3913996,977.50,SOCIAL SERVICES CHEVIOT HOUSE
Childrens Services,Cultural and Related Services,Open Spaces,Mile End Park,Rent Charges,17/07/2017,3875276,"2,258.37",Network Rail
Childrens Services,Education Services,Other Strategic Functions,Non-Statemented Ed.Placemts,Social Care - Nursing Care,17/07/2017,3895389,"-4,887.00",Kibble Education and Care Centre
Childrens Services,Children's Social Care,Children Looked After,S23-Resi-P&V/OLA-Sec Acc-Wel,Childrens Act Section 23 - Placement Fee,17/07/2017,3895389,"-4,887.00",Kibble Education and Care Centre
Childrens Services,Children's Social Care,Support Service and Management Costs,Welfare Catering,Kitchen Supplies - Food and Beverages,17/07/2017,3901482,334.14,Thomas Ridley & Son Ltd
Childrens Services,Children's Social Care,Support Service and Management Costs,Sch. Meals A/c - Central Production Unit,Kitchen Supplies - Food and Beverages,17/07/2017,3901483,568.23,Thomas Ridley & Son Ltd
Childrens Services,Children's Social Care,Support Service and Management Costs,Toby Lane Function,Kitchen Supplies - Food and Beverages,17/07/2017,3901484,261.49,Thomas Ridley & Son Ltd
Childrens Services,Children's Social Care,Support Service and Management Costs,"Mulberry Caf�		",Kitchen Supplies - Food and Beverages,17/07/2017,3901485,854.49,Thomas Ridley & Son Ltd
Childrens Services,Education Services,Other Strategic Functions,Information & Support Services,Photocopier Charges - Consumables,17/07/2017,3901514,274.26,Supplies Team Ltd
Childrens Services,Children's Social Care,Support Service and Management Costs,Schools Catering,Kitchen Supplies - Food and Beverages,17/07/2017,3901563,433.32,Thomas Ridley & Son Ltd
Childrens Services,Children's Social Care,Support Service and Management Costs,Schools Catering,Kitchen Supplies - Food and Beverages,17/07/2017,3901581,308.77,Thomas Ridley & Son Ltd
Childrens Services,Children's Social Care,Support Service and Management Costs,Schools Catering,Kitchen Supplies - Food and Beverages,17/07/2017,3901590,376.63,Thomas Ridley & Son Ltd
Childrens Services,Children's Social Care,Support Service and Management Costs,Schools Catering,Kitchen Supplies - Food and Beverages,17/07/2017,3901598,477.84,Thomas Ridley & Son Ltd
Childrens Services,Children's Social Care,Support Service and Management Costs,Schools Catering,Kitchen Supplies - Food and Beverages,17/07/2017,3901610,428.70,Thomas Ridley & Son Ltd
Childrens Services,Children's Social Care,Support Service and Management Costs,Schools Catering,Kitchen Supplies - Food and Beverages,17/07/2017,3901618,623.49,Thomas Ridley & Son Ltd
Childrens Services,Children's Social Care,Support Service and Management Costs,Schools Catering,Kitchen Supplies - Food and Beverages,17/07/2017,3901621,501.62,Thomas Ridley & Son Ltd
Childrens Services,Children's Social Care,Support Service and Management Costs,Schools Catering,Kitchen Supplies - Food and Beverages,17/07/2017,3901625,398.72,Thomas Ridley & Son Ltd
Childrens Services,Children's Social Care,Support Service and Management Costs,Schools Catering,Kitchen Supplies - Food and Beverages,17/07/2017,3901628,388.37,Thomas Ridley & Son Ltd
Childrens Services,Children's Social Care,Support Service and Management Costs,Schools Catering,Kitchen Supplies - Food and Beverages,17/07/2017,3901632,399.65,Thomas Ridley & Son Ltd
Childrens Services,Children's Social Care,Support Service and Management Costs,Schools Catering,Kitchen Supplies - Food and Beverages,17/07/2017,3901640,352.16,Thomas Ridley & Son Ltd
Childrens Services,Children's Social Care,Support Service and Management Costs,Schools Catering,Kitchen Supplies - Food and Beverages,17/07/2017,3901643,521.66,Thomas Ridley & Son Ltd
Childrens Services,Children's Social Care,Support Service and Management Costs,Schools Catering,Kitchen Supplies - Food and Beverages,17/07/2017,3901647,760.40,Thomas Ridley & Son Ltd
Childrens Services,Children's Social Care,Support Service and Management Costs,Schools Catering,Kitchen Supplies - Food and Beverages,17/07/2017,3901650,409.89,Thomas Ridley & Son Ltd
Childrens Services,Children's Social Care,Support Service and Management Costs,Schools Catering,Kitchen Supplies - Food and Beverages,17/07/2017,3901653,477.86,Thomas Ridley & Son Ltd
Childrens Services,Children's Social Care,Support Service and Management Costs,Schools Catering,Kitchen Supplies - Food and Beverages,17/07/2017,3901656,487.51,Thomas Ridley & Son Ltd
Childrens Services,Children's Social Care,Support Service and Management Costs,Schools Catering,Kitchen Supplies - Food and Beverages,17/07/2017,3901659,346.99,Thomas Ridley & Son Ltd
Childrens Services,Children's Social Care,Support Service and Management Costs,Schools Catering,Kitchen Supplies - Food and Beverages,17/07/2017,3901661,701.79,Thomas Ridley & Son Ltd
Childrens Services,Children's Social Care,Support Service and Management Costs,Schools Catering,Kitchen Supplies - Food and Beverages,17/07/2017,3901664,478.85,Thomas Ridley & Son Ltd
Childrens Services,Children's Social Care,Support Service and Management Costs,Schools Catering,Kitchen Supplies - Food and Beverages,17/07/2017,3901665,283.96,Thomas Ridley & Son Ltd
Childrens Services,Children's Social Care,Support Service and Management Costs,Schools Catering,Kitchen Supplies - Food and Beverages,17/07/2017,3901668,505.06,Thomas Ridley & Son Ltd
Childrens Services,Children's Social Care,Support Service and Management Costs,Schools Catering,Kitchen Supplies - Food and Beverages,17/07/2017,3901669,468.32,Thomas Ridley & Son Ltd
Childrens Services,Children's Social Care,Support Service and Management Costs,Schools Catering,Kitchen Supplies - Food and Beverages,17/07/2017,3901670,470.46,Thomas Ridley & Son Ltd
Childrens Services,Children's Social Care,Support Service and Management Costs,Schools Catering,Kitchen Supplies - Food and Beverages,17/07/2017,3901672,"1,134.40",Thomas Ridley & Son Ltd
Childrens Services,Children's Social Care,Support Service and Management Costs,Schools Catering,Kitchen Supplies - Food and Beverages,17/07/2017,3901675,773.00,Thomas Ridley & Son Ltd
Childrens Services,Children's Social Care,Support Service and Management Costs,Schools Catering,Kitchen Supplies - Food and Beverages,17/07/2017,3901678,456.85,Thomas Ridley & Son Ltd
Childrens Services,Children's Social Care,Support Service and Management Costs,Schools Catering,Kitchen Supplies - Food and Beverages,17/07/2017,3901679,434.18,Thomas Ridley & Son Ltd
Childrens Services,Children's Social Care,Support Service and Management Costs,Schools Catering,Kitchen Supplies - Food and Beverages,17/07/2017,3901680,391.01,Thomas Ridley & Son Ltd
Childrens Services,Children's Social Care,Support Service and Management Costs,Schools Catering,Kitchen Supplies - Food and Beverages,17/07/2017,3901681,409.33,Thomas Ridley & Son Ltd
Childrens Services,Children's Social Care,Support Service and Management Costs,Schools Catering,Kitchen Supplies - Food and Beverages,17/07/2017,3901683,256.87,Thomas Ridley & Son Ltd
Childrens Services,Children's Social Care,Support Service and Management Costs,Schools Catering,Kitchen Supplies - Food and Beverages,17/07/2017,3901684,375.02,Thomas Ridley & Son Ltd
Childrens Services,Children's Social Care,Support Service and Management Costs,Schools Catering,Kitchen Supplies - Food and Beverages,17/07/2017,3901685,385.15,Thomas Ridley & Son Ltd
Childrens Services,Children's Social Care,Support Service and Management Costs,Schools Catering,Kitchen Supplies - Food and Beverages,17/07/2017,3901686,264.41,Thomas Ridley & Son Ltd
Childrens Services,Children's Social Care,Support Service and Management Costs,Schools Catering,Kitchen Supplies - Food and Beverages,17/07/2017,3901688,402.23,Thomas Ridley & Son Ltd
Childrens Services,Children's Social Care,Support Service and Management Costs,Schools Catering,Kitchen Supplies - Food and Beverages,17/07/2017,3901689,740.99,Thomas Ridley & Son Ltd
Childrens Services,Children's Social Care,Support Service and Management Costs,Schools Catering,Kitchen Supplies - Food and Beverages,17/07/2017,3901690,295.53,Thomas Ridley & Son Ltd
Childrens Services,Children's Social Care,Support Service and Management Costs,Schools Catering,Kitchen Supplies - Food and Beverages,17/07/2017,3901691,294.36,Thomas Ridley & Son Ltd
Childrens Services,Children's Social Care,Support Service and Management Costs,Schools Catering,Kitchen Supplies - Food and Beverages,17/07/2017,3901692,329.64,Thomas Ridley & Son Ltd
Childrens Services,Children's Social Care,Support Service and Management Costs,Schools Catering,Kitchen Supplies - Food and Beverages,17/07/2017,3901693,628.44,Thomas Ridley & Son Ltd
Childrens Services,Children's Social Care,Support Service and Management Costs,Schools Catering,Kitchen Supplies - Food and Beverages,17/07/2017,3901698,266.78,Thomas Ridley & Son Ltd
Childrens Services,Children's Social Care,Support Service and Management Costs,Sch. Meals A/c - Central Production Unit,Kitchen Supplies - Food and Beverages,17/07/2017,3901742,851.14,Thomas Ridley & Son Ltd
Childrens Services,Cultural and Related Services,Open Spaces,Parks & Open Spaces Man&Admin,Payments to Private Contractors - Private Contractor,17/07/2017,3901803,"7,975.00",Friends of Tower Hamlets Cemetery Park
Childrens Services,Children's Social Care,Support Service and Management Costs,Schools Catering,Kitchen Supplies - Food and Beverages,17/07/2017,3901817,301.88,Thomas Ridley & Son Ltd
Childrens Services,Children's Social Care,Support Service and Management Costs,Schools Catering,Kitchen Supplies - Food and Beverages,17/07/2017,3901841,322.83,Thomas Ridley & Son Ltd
Childrens Services,Children's Social Care,Support Service and Management Costs,Schools Catering,Kitchen Supplies - Food and Beverages,17/07/2017,3901848,264.76,Thomas Ridley & Son Ltd
Childrens Services,Children's Social Care,Support Service and Management Costs,Schools Catering,Kitchen Supplies - Food and Beverages,17/07/2017,3901854,454.43,Thomas Ridley & Son Ltd
Childrens Services,Children's Social Care,Support Service and Management Costs,Schools Catering,Kitchen Supplies - Food and Beverages,17/07/2017,3901858,472.19,Thomas Ridley & Son Ltd
Childrens Services,Children's Social Care,Support Service and Management Costs,Schools Catering,Kitchen Supplies - Food and Beverages,17/07/2017,3901936,355.31,Thomas Ridley & Son Ltd
Childrens Services,Children's Social Care,Support Service and Management Costs,Schools Catering,Kitchen Supplies - Food and Beverages,17/07/2017,3901942,272.31,Thomas Ridley & Son Ltd
Childrens Services,Children's Social Care,Support Service and Management Costs,Schools Catering,Kitchen Supplies - Food and Beverages,17/07/2017,3901947,301.96,Thomas Ridley & Son Ltd
Childrens Services,Children's Social Care,Support Service and Management Costs,Schools Catering,Kitchen Supplies - Food and Beverages,17/07/2017,3901950,350.11,Thomas Ridley & Son Ltd
Childrens Services,Children's Social Care,Support Service and Management Costs,Schools Catering,Kitchen Supplies - Food and Beverages,17/07/2017,3901960,518.25,Thomas Ridley & Son Ltd
Childrens Services,Children's Social Care,Support Service and Management Costs,Schools Catering,Kitchen Supplies - Food and Beverages,17/07/2017,3901968,678.74,Thomas Ridley & Son Ltd
Childrens Services,Children's Social Care,Support Service and Management Costs,Schools Catering,Kitchen Supplies - Food and Beverages,17/07/2017,3902042,331.41,Prescott-Thomas LTD.
Childrens Services,Children's Social Care,Support Service and Management Costs,Schools Catering,Kitchen Supplies - Food and Beverages,17/07/2017,3902048,255.23,Prescott-Thomas LTD.
Childrens Services,Children's Social Care,Support Service and Management Costs,Schools Catering,Kitchen Supplies - Food and Beverages,17/07/2017,3902081,263.03,Prescott-Thomas LTD.
Childrens Services,Education Services,Other Strategic Functions,Special Education Needs DSG,Third Party Payments - Payments to Schools,17/07/2017,3903139,"18,166.67",Transitional Care LTD
Childrens Services,Education Services,Other Strategic Functions,Special Education Needs DSG,Third Party Payments - Payments to Schools,17/07/2017,3903140,"22,750.00",Transitional Care LTD
Childrens Services,Education Services,Other Strategic Functions,High Needs FE Colleges,Third Party Payments - Payments to Schools,17/07/2017,3903164,"37,000.00",Waltham Forest College
Childrens Services,Children's Social Care,Support Service and Management Costs,Sch. Meals A/c - P.D.C. Cateen,Kitchen Supplies - Catering Equipment,17/07/2017,3903218,722.39,Pelican Rouge Coffee Solutions Ltd
Childrens Services,Education Services,Other Strategic Functions,Special Education Needs DSG,Third Party Payments - Payments to Schools,17/07/2017,3903381,"22,750.00",Transitional Care LTD
Childrens Services,Education Services,Other Strategic Functions,Special Education Needs DSG,Third Party Payments - Payments to Schools,17/07/2017,3903382,"18,166.67",Transitional Care LTD
Childrens Services,Education Services,Other Strategic Functions,Special Education Needs DSG,Third Party Payments - Payments to Schools,17/07/2017,3903406,"21,000.00",Transitional Care LTD
Childrens Services,Education Services,Other Strategic Functions,Special Education Needs DSG,Third Party Payments - Payments to Schools,17/07/2017,3903407,"18,166.67",Transitional Care LTD
Childrens Services,Education Services,Other Strategic Functions,Special Education Needs DSG,Third Party Payments - Payments to Schools,17/07/2017,3903420,"21,000.00",Transitional Care LTD
Childrens Services,Education Services,Other Strategic Functions,Special Education Needs DSG,Third Party Payments - Payments to Schools,17/07/2017,3903421,"18,166.67",Transitional Care LTD
Childrens Services,Education Services,Other Strategic Functions,Special Education Needs DSG,Third Party Payments - Payments to Schools,17/07/2017,3903431,"21,000.00",Transitional Care LTD
Childrens Services,Education Services,Other Strategic Functions,Special Education Needs DSG,Third Party Payments - Payments to Schools,17/07/2017,3903432,"18,166.67",Transitional Care LTD
Childrens Services,Children's Social Care,Services for young people,Youth Service Management,SLA Services (Expenditure) - Service Level Agreements,17/07/2017,3904024,"8,333.33",Society Links
Childrens Services,Education Services,Other Strategic Functions,High Needs Academies & Free Schs,Third Party Payments - Payments to Schools,17/07/2017,3904053,"21,908.00",St Michael's Catholic College
Childrens Services,Education Services,Other Strategic Functions,Childrens Information  Systems,Computing - Purchase of Hardware,17/07/2017,3904100,279.95,Highgate IT
Childrens Services,Children's Social Care,Services for young people,Youth Service Management,SLA Services (Expenditure) - Service Level Agreements,17/07/2017,3904127,"8,333.33",Society Links
Childrens Services,Children's Social Care,Children Looked After,S23 Fam Pl P&V-F/Care,Childrens Act Section 23 - All Contact Expenses,17/07/2017,3904563,266.00,Limehouse Children Contact Centre LTD
Childrens Services,Children's Social Care,Service Strategy,FS&P - NRPF,Social Care - Day Care,17/07/2017,3904565,530.00,Limehouse Children Contact Centre LTD
Childrens Services,Children's Social Care,Children Looked After,S23 Fam Pl P&V-F/Care,Childrens Act Section 23 - Placement Fee,17/07/2017,3904727,"1,722.87",Scope
Childrens Services,Children's Social Care,Children Looked After,S23 Family Placements P&V,Childrens Act Section 23 - Placement Fee,17/07/2017,3904728,"4,714.20",Scope
Childrens Services,Children's Social Care,Children Looked After,Virtual School PPG,Third Party Payments - Payments to Schools,17/07/2017,3904790,500.00,COPFORD C OF E PRIMARY SCHOOL
Childrens Services,Education Services,Other Strategic Functions,Non-Statemented Ed.Placemts,Social Care - Nursing Care,17/07/2017,3904876,"13,740.00",Kibble Education and Care Centre
Childrens Services,Children's Social Care,Children Looked After,S23-Resi-P&V/OLA-Sec Acc-Wel,Childrens Act Section 23 - Placement Fee,17/07/2017,3904876,"13,740.00",Kibble Education and Care Centre
Childrens Services,Children's Social Care,Children Looked After,S23 Fam Pl P&V-F/Care,Childrens Act Section 23 - Placement Fee,17/07/2017,3905050,"1,722.87",Scope
Childrens Services,Children's Social Care,Support Service and Management Costs,Swanlea,Kitchen Supplies - Food and Beverages,17/07/2017,3905138,252.89,William White Meats Ltd
Childrens Services,Cultural and Related Services,Recreation & Sport,Sports Development,Recreational Activities,17/07/2017,3905156,"3,216.00",Greenwich Leisure LTD
Childrens Services,Children's Social Care,Support Service and Management Costs,Schools Catering,Kitchen Supplies - Food and Beverages,17/07/2017,3905276,274.50,William White Meats Ltd
Childrens Services,Children's Social Care,Support Service and Management Costs,Schools Catering,Kitchen Supplies - Food and Beverages,17/07/2017,3905559,383.75,William White Meats Ltd
Childrens Services,Children's Social Care,Support Service and Management Costs,Schools Catering,Kitchen Supplies - Food and Beverages,17/07/2017,3905564,335.50,William White Meats Ltd
Childrens Services,Children's Social Care,Support Service and Management Costs,Schools Catering,Kitchen Supplies - Food and Beverages,17/07/2017,3906656,345.00,William White Meats Ltd
Childrens Services,Children's Social Care,Support Service and Management Costs,Schools Catering,Kitchen Supplies - Food and Beverages,17/07/2017,3906719,287.00,William White Meats Ltd
Childrens Services,Children's Social Care,Support Service and Management Costs,Schools Catering,Kitchen Supplies - Food and Beverages,17/07/2017,3906783,267.52,William White Meats Ltd
Childrens Services,Children's Social Care,Support Service and Management Costs,Schools Catering,Kitchen Supplies - Food and Beverages,17/07/2017,3906789,308.50,William White Meats Ltd
Childrens Services,Children's Social Care,Support Service and Management Costs,Schools Catering,Kitchen Supplies - Food and Beverages,17/07/2017,3906793,353.26,William White Meats Ltd
Childrens Services,Children's Social Care,Support Service and Management Costs,Schools Catering,Kitchen Supplies - Food and Beverages,17/07/2017,3906797,433.25,William White Meats Ltd
Childrens Services,Children's Social Care,Support Service and Management Costs,Schools Catering,Kitchen Supplies - Food and Beverages,17/07/2017,3906799,427.00,William White Meats Ltd
Childrens Services,Children's Social Care,Support Service and Management Costs,Schools Catering,Kitchen Supplies - Food and Beverages,17/07/2017,3907334,398.25,William White Meats Ltd
Childrens Services,Children's Social Care,Support Service and Management Costs,Schools Catering,Kitchen Supplies - Food and Beverages,17/07/2017,3907347,553.69,William White Meats Ltd
Childrens Services,Children's Social Care,Support Service and Management Costs,Schools Catering,Kitchen Supplies - Food and Beverages,17/07/2017,3907348,562.19,William White Meats Ltd
Childrens Services,Children's Social Care,Support Service and Management Costs,Schools Catering,Kitchen Supplies - Food and Beverages,17/07/2017,3907350,345.06,William White Meats Ltd
Childrens Services,Children's Social Care,Support Service and Management Costs,Schools Catering,Kitchen Supplies - Food and Beverages,17/07/2017,3907355,354.75,William White Meats Ltd
Childrens Services,Children's Social Care,Support Service and Management Costs,Schools Catering,Kitchen Supplies - Food and Beverages,17/07/2017,3907357,387.16,William White Meats Ltd
Childrens Services,Children's Social Care,Support Service and Management Costs,Welfare Catering,Kitchen Supplies - Food and Beverages,17/07/2017,3907521,472.30,William White Meats Ltd
Childrens Services,Children's Social Care,Support Service and Management Costs,Building Cleaning,Contract Cleaning,17/07/2017,3907818,400.00,Lewis & Graves Partnership
Childrens Services,Education Services,Secondary Schools,PFI Hldg Account-Grouped Schoo,Payments to Private Contractors - Other Contractors,17/07/2017,3908450,"1,149,951.42",Tower Hamlets Schools LTD
Childrens Services,Children's Social Care,Children Looked After,S23-Other-Semi-Ind. Unit,Childrens Act Section 23 - Placement Fee,17/07/2017,3910659,"2,190.26",Heartwood Outreach Services Ltd
Childrens Services,Children's Social Care,Children Looked After,S23-Other-Semi-Ind. Unit,Childrens Act Section 23 - Placement Fee,17/07/2017,3910742,"3,910.67",Heartwood Outreach Services Ltd
Childrens Services,Cultural and Related Services,Open Spaces,Victoria Park,Events & Exhibition Supplies,17/07/2017,3911659,"3,100.00",Mannings Fairview Co Ltd
Childrens Services,Children's Social Care,Children Looked After,S23 Fam Pl P&V-F/Care,Childrens Act Section 23 - Placement Fee,17/07/2017,3913705,"-5,314.29",Scope
Childrens Services,Children's Social Care,Children Looked After,S23 Family Placements P&V,Childrens Act Section 23 - Placement Fee,17/07/2017,3913706,"3,122.40",CAPSTONE VISION FOSTER CARE LTD
Childrens Services,Children's Social Care,Support Service and Management Costs,Sch. Meals A/c - Mulberry,Kitchen Supplies - Food and Beverages,17/07/2017,3913724,378.82,Chicken Joes
Childrens Services,Children's Social Care,Support Service and Management Costs,Sch. Meals A/c - C.F.S. Upper (Harley Grove),Kitchen Supplies - Food and Beverages,17/07/2017,3913725,802.78,Chicken Joes
Childrens Services,Education Services,Early Years,3&4 Year old PVI�s,Third Party Payments - Voluntary Associations,17/07/2017,3914226,"5,310.00",Little St Matthias Pre School
Childrens Services,Education Services,Early Years,SSEYCG Two Year Old Pilot,Third Party Payments - Voluntary Associations,17/07/2017,3914227,"9,450.00",Little St Matthias Pre School
Childrens Services,No Service Specified,No Division Specified,Capital-Minor Works (SC),Other External Fees - Consultants Fees,19/07/2017,3881935,"4,275.00",Alan Conisbee & Associates Ltd
Childrens Services,Cultural and Related Services,Recreation & Sport,Football Development Programme,Recreational Activities,19/07/2017,3895940,428.43,Newitts
Childrens Services,Children's Social Care,Support Service and Management Costs,Schools Catering,Kitchen Supplies - Food and Beverages,19/07/2017,3901978,704.76,Thomas Ridley & Son Ltd
Childrens Services,Children's Social Care,Support Service and Management Costs,Schools Catering,Kitchen Supplies - Food and Beverages,19/07/2017,3901986,401.09,Thomas Ridley & Son Ltd
Childrens Services,Children's Social Care,Support Service and Management Costs,Schools Catering,Kitchen Supplies - Food and Beverages,19/07/2017,3901992,324.10,Thomas Ridley & Son Ltd
Childrens Services,Education Services,Early Years,Isle of Dogs. CC,Stationery,19/07/2017,3903152,281.92,Office Depot (Catalogue)
Childrens Services,Children's Social Care,Support Service and Management Costs,Sch. Meals A/c - Central Production Unit,Kitchen Supplies - Food and Beverages,19/07/2017,3903240,404.12,Prescott-Thomas LTD.
Childrens Services,Children's Social Care,Children Looked After,Virtual School PPG,Third Party Payments - Payments to Schools,19/07/2017,3903264,480.00,The Appleton School Academy Trust
Childrens Services,Children's Social Care,Support Service and Management Costs,Schools Catering,Kitchen Supplies - Food and Beverages,19/07/2017,3903475,258.45,Prescott-Thomas LTD.
Childrens Services,Children's Social Care,Support Service and Management Costs,Schools Catering,Kitchen Supplies - Food and Beverages,19/07/2017,3904069,433.33,Thomas Ridley & Son Ltd
Childrens Services,Children's Social Care,Support Service and Management Costs,Sch. Meals A/c - Central Production Unit,Kitchen Supplies - Food and Beverages,19/07/2017,3904070,"2,025.09",Thomas Ridley & Son Ltd
Childrens Services,Children's Social Care,Support Service and Management Costs,Welfare Catering,Kitchen Supplies - Food and Beverages,19/07/2017,3904071,"1,119.28",Thomas Ridley & Son Ltd
Childrens Services,Children's Social Care,Support Service and Management Costs,"Mulberry Caf�		",Kitchen Supplies - Food and Beverages,19/07/2017,3904072,565.40,Thomas Ridley & Son Ltd
Childrens Services,Cultural and Related Services,Open Spaces,Mile End Park,Repairs and Maintenance - Responsive - Buildings,19/07/2017,3904103,759.00,Broxap Ltd
Childrens Services,Children's Social Care,Support Service and Management Costs,Schools Catering,Kitchen Supplies - Food and Beverages,19/07/2017,3904136,372.74,Thomas Ridley & Son Ltd
Childrens Services,Children's Social Care,Support Service and Management Costs,Schools Catering,Kitchen Supplies - Food and Beverages,19/07/2017,3904152,511.85,Thomas Ridley & Son Ltd
Childrens Services,Children's Social Care,Support Service and Management Costs,Schools Catering,Kitchen Supplies - Food and Beverages,19/07/2017,3904168,525.74,Thomas Ridley & Son Ltd
Childrens Services,Children's Social Care,Support Service and Management Costs,Schools Catering,Kitchen Supplies - Food and Beverages,19/07/2017,3904173,393.21,Thomas Ridley & Son Ltd
Childrens Services,Children's Social Care,Support Service and Management Costs,Schools Catering,Kitchen Supplies - Food and Beverages,19/07/2017,3904188,719.48,Thomas Ridley & Son Ltd
Childrens Services,Children's Social Care,Support Service and Management Costs,Schools Catering,Kitchen Supplies - Food and Beverages,19/07/2017,3904196,324.73,Thomas Ridley & Son Ltd
Childrens Services,Children's Social Care,Support Service and Management Costs,Schools Catering,Kitchen Supplies - Food and Beverages,19/07/2017,3904200,510.08,Thomas Ridley & Son Ltd
Childrens Services,Children's Social Care,Support Service and Management Costs,Schools Catering,Kitchen Supplies - Food and Beverages,19/07/2017,3904206,408.59,Thomas Ridley & Son Ltd
Childrens Services,Children's Social Care,Support Service and Management Costs,Schools Catering,Kitchen Supplies - Food and Beverages,19/07/2017,3904209,262.94,Thomas Ridley & Son Ltd
Childrens Services,Children's Social Care,Support Service and Management Costs,Schools Catering,Kitchen Supplies - Food and Beverages,19/07/2017,3904213,894.93,Thomas Ridley & Son Ltd
Childrens Services,Children's Social Care,Support Service and Management Costs,Schools Catering,Kitchen Supplies - Food and Beverages,19/07/2017,3904216,409.15,Thomas Ridley & Son Ltd
Childrens Services,Children's Social Care,Support Service and Management Costs,Schools Catering,Kitchen Supplies - Food and Beverages,19/07/2017,3904219,921.75,Thomas Ridley & Son Ltd
Childrens Services,Children's Social Care,Support Service and Management Costs,Schools Catering,Kitchen Supplies - Food and Beverages,19/07/2017,3904226,452.12,Thomas Ridley & Son Ltd
Childrens Services,Children's Social Care,Support Service and Management Costs,Schools Catering,Kitchen Supplies - Food and Beverages,19/07/2017,3904230,731.99,Thomas Ridley & Son Ltd
Childrens Services,Children's Social Care,Support Service and Management Costs,Schools Catering,Kitchen Supplies - Food and Beverages,19/07/2017,3904236,541.25,Thomas Ridley & Son Ltd
Childrens Services,Children's Social Care,Support Service and Management Costs,Schools Catering,Kitchen Supplies - Food and Beverages,19/07/2017,3904241,615.07,Thomas Ridley & Son Ltd
Childrens Services,Children's Social Care,Support Service and Management Costs,Schools Catering,Kitchen Supplies - Food and Beverages,19/07/2017,3904246,580.85,Thomas Ridley & Son Ltd
Childrens Services,Children's Social Care,Support Service and Management Costs,Schools Catering,Kitchen Supplies - Food and Beverages,19/07/2017,3904249,382.95,Thomas Ridley & Son Ltd
Childrens Services,Children's Social Care,Support Service and Management Costs,Schools Catering,Kitchen Supplies - Food and Beverages,19/07/2017,3904252,357.71,Thomas Ridley & Son Ltd
Childrens Services,Children's Social Care,Support Service and Management Costs,Schools Catering,Kitchen Supplies - Food and Beverages,19/07/2017,3904261,271.10,Thomas Ridley & Son Ltd
Childrens Services,Children's Social Care,Support Service and Management Costs,Schools Catering,Kitchen Supplies - Food and Beverages,19/07/2017,3904267,611.80,Thomas Ridley & Son Ltd
Childrens Services,Children's Social Care,Support Service and Management Costs,Schools Catering,Kitchen Supplies - Food and Beverages,19/07/2017,3904270,566.61,Thomas Ridley & Son Ltd
Childrens Services,Children's Social Care,Support Service and Management Costs,Schools Catering,Kitchen Supplies - Food and Beverages,19/07/2017,3904273,460.48,Thomas Ridley & Son Ltd
Childrens Services,Children's Social Care,Support Service and Management Costs,Schools Catering,Kitchen Supplies - Food and Beverages,19/07/2017,3904276,645.73,Thomas Ridley & Son Ltd
Childrens Services,Children's Social Care,Support Service and Management Costs,Schools Catering,Kitchen Supplies - Food and Beverages,19/07/2017,3904279,485.21,Thomas Ridley & Son Ltd
Childrens Services,Children's Social Care,Support Service and Management Costs,Schools Catering,Kitchen Supplies - Food and Beverages,19/07/2017,3904282,262.02,Thomas Ridley & Son Ltd
Childrens Services,Children's Social Care,Support Service and Management Costs,Schools Catering,Kitchen Supplies - Food and Beverages,19/07/2017,3904285,456.46,Thomas Ridley & Son Ltd
Childrens Services,Children's Social Care,Support Service and Management Costs,Schools Catering,Kitchen Supplies - Food and Beverages,19/07/2017,3904288,624.45,Thomas Ridley & Son Ltd
Childrens Services,Children's Social Care,Support Service and Management Costs,Schools Catering,Kitchen Supplies - Food and Beverages,19/07/2017,3904290,577.70,Thomas Ridley & Son Ltd
Childrens Services,Children's Social Care,Support Service and Management Costs,Schools Catering,Kitchen Supplies - Food and Beverages,19/07/2017,3904292,300.74,Thomas Ridley & Son Ltd
Childrens Services,Children's Social Care,Support Service and Management Costs,Schools Catering,Kitchen Supplies - Food and Beverages,19/07/2017,3904298,743.29,Thomas Ridley & Son Ltd
Childrens Services,Children's Social Care,Support Service and Management Costs,Schools Catering,Kitchen Supplies - Food and Beverages,19/07/2017,3904300,"1,186.78",Thomas Ridley & Son Ltd
Childrens Services,Children's Social Care,Support Service and Management Costs,Schools Catering,Kitchen Supplies - Food and Beverages,19/07/2017,3904302,"1,500.74",Thomas Ridley & Son Ltd
Childrens Services,Children's Social Care,Support Service and Management Costs,Schools Catering,Kitchen Supplies - Food and Beverages,19/07/2017,3904304,483.81,Thomas Ridley & Son Ltd
Childrens Services,Children's Social Care,Support Service and Management Costs,Schools Catering,Kitchen Supplies - Food and Beverages,19/07/2017,3904305,354.95,Thomas Ridley & Son Ltd
Childrens Services,Children's Social Care,Support Service and Management Costs,Schools Catering,Kitchen Supplies - Food and Beverages,19/07/2017,3904306,"1,871.97",Thomas Ridley & Son Ltd
Childrens Services,Children's Social Care,Support Service and Management Costs,Schools Catering,Kitchen Supplies - Food and Beverages,19/07/2017,3904307,382.46,Thomas Ridley & Son Ltd
Childrens Services,Children's Social Care,Support Service and Management Costs,Schools Catering,Kitchen Supplies - Food and Beverages,19/07/2017,3904309,676.33,Thomas Ridley & Son Ltd
Childrens Services,Children's Social Care,Support Service and Management Costs,Schools Catering,Kitchen Supplies - Food and Beverages,19/07/2017,3904310,323.71,Thomas Ridley & Son Ltd
Childrens Services,Children's Social Care,Support Service and Management Costs,Schools Catering,Kitchen Supplies - Food and Beverages,19/07/2017,3904311,503.13,Thomas Ridley & Son Ltd
Childrens Services,Children's Social Care,Support Service and Management Costs,Schools Catering,Kitchen Supplies - Food and Beverages,19/07/2017,3904312,349.86,Thomas Ridley & Son Ltd
Childrens Services,Children's Social Care,Support Service and Management Costs,Schools Catering,Kitchen Supplies - Food and Beverages,19/07/2017,3904313,329.36,Thomas Ridley & Son Ltd
Childrens Services,Children's Social Care,Support Service and Management Costs,Schools Catering,Kitchen Supplies - Food and Beverages,19/07/2017,3904314,555.15,Thomas Ridley & Son Ltd
Childrens Services,Children's Social Care,Support Service and Management Costs,Schools Catering,Kitchen Supplies - Food and Beverages,19/07/2017,3904316,300.74,Thomas Ridley & Son Ltd
Childrens Services,Children's Social Care,Support Service and Management Costs,Schools Catering,Kitchen Supplies - Food and Beverages,19/07/2017,3904317,"1,049.54",Thomas Ridley & Son Ltd
Childrens Services,Children's Social Care,Support Service and Management Costs,Schools Catering,Kitchen Supplies - Food and Beverages,19/07/2017,3904319,297.40,Thomas Ridley & Son Ltd
Childrens Services,Children's Social Care,Support Service and Management Costs,Schools Catering,Kitchen Supplies - Food and Beverages,19/07/2017,3904320,430.86,Thomas Ridley & Son Ltd
Childrens Services,Children's Social Care,Support Service and Management Costs,Schools Catering,Kitchen Supplies - Food and Beverages,19/07/2017,3904321,590.39,Thomas Ridley & Son Ltd
Childrens Services,Children's Social Care,Support Service and Management Costs,Schools Catering,Kitchen Supplies - Food and Beverages,19/07/2017,3904322,297.41,Thomas Ridley & Son Ltd
Childrens Services,Children's Social Care,Support Service and Management Costs,Schools Catering,Kitchen Supplies - Food and Beverages,19/07/2017,3904323,257.39,Thomas Ridley & Son Ltd
Childrens Services,Children's Social Care,Support Service and Management Costs,Schools Catering,Kitchen Supplies - Food and Beverages,19/07/2017,3904324,950.80,Thomas Ridley & Son Ltd
Childrens Services,Children's Social Care,Support Service and Management Costs,Schools Catering,Kitchen Supplies - Food and Beverages,19/07/2017,3904325,415.81,Thomas Ridley & Son Ltd
Childrens Services,Children's Social Care,Support Service and Management Costs,Schools Catering,Kitchen Supplies - Food and Beverages,19/07/2017,3904326,486.41,Thomas Ridley & Son Ltd
Childrens Services,Children's Social Care,Support Service and Management Costs,Schools Catering,Kitchen Supplies - Food and Beverages,19/07/2017,3904328,960.94,Thomas Ridley & Son Ltd
Childrens Services,Children's Social Care,Support Service and Management Costs,Schools Catering,Kitchen Supplies - Food and Beverages,19/07/2017,3904329,493.25,Thomas Ridley & Son Ltd
Childrens Services,Children's Social Care,Children Looked After,Virtual School PPG,Third Party Payments - Payments to Schools,19/07/2017,3904765,500.00,Barking Abbey School
Childrens Services,Children's Social Care,Children Looked After,Virtual School PPG,Third Party Payments - Payments to Schools,19/07/2017,3904872,500.00,Snaresbrook Primary School
Childrens Services,Children's Social Care,Children Looked After,Virtual School PPG,Third Party Payments - Payments to Schools,19/07/2017,3905076,500.00,St Johns School
Childrens Services,Children's Social Care,Support Service and Management Costs,Sch. Meals A/c - Central Production Unit,Kitchen Supplies - Food and Beverages,19/07/2017,3905207,854.00,William White Meats Ltd
Childrens Services,Children's Social Care,Support Service and Management Costs,Schools Catering,Kitchen Supplies - Food and Beverages,19/07/2017,3905565,263.39,William White Meats Ltd
Childrens Services,Education Services,Other Strategic Functions,Health through Education,Training Expenses - Staff External Training (UK Based),19/07/2017,3906581,275.00,PSHE Association
Childrens Services,Children's Social Care,Support Service and Management Costs,Schools Catering,Kitchen Supplies - Food and Beverages,19/07/2017,3906707,274.50,William White Meats Ltd
Childrens Services,Children's Social Care,Support Service and Management Costs,Schools Catering,Kitchen Supplies - Food and Beverages,19/07/2017,3907359,274.50,William White Meats Ltd
Childrens Services,Children's Social Care,Support Service and Management Costs,Schools Catering,Kitchen Supplies - Food and Beverages,19/07/2017,3907364,515.25,William White Meats Ltd
Childrens Services,Children's Social Care,Support Service and Management Costs,Schools Catering,Kitchen Supplies - Food and Beverages,19/07/2017,3907365,345.75,William White Meats Ltd
Childrens Services,Children's Social Care,Support Service and Management Costs,Schools Catering,Kitchen Supplies - Food and Beverages,19/07/2017,3907367,443.28,William White Meats Ltd
Childrens Services,Children's Social Care,Support Service and Management Costs,Schools Catering,Kitchen Supplies - Food and Beverages,19/07/2017,3907369,305.00,William White Meats Ltd
Childrens Services,Children's Social Care,Support Service and Management Costs,Schools Catering,Kitchen Supplies - Food and Beverages,19/07/2017,3907581,360.41,William White Meats Ltd
Childrens Services,Children's Social Care,Support Service and Management Costs,Schools Catering,Kitchen Supplies - Food and Beverages,19/07/2017,3907587,494.25,William White Meats Ltd
Childrens Services,Children's Social Care,Support Service and Management Costs,Schools Catering,Kitchen Supplies - Food and Beverages,19/07/2017,3907599,492.02,William White Meats Ltd
Childrens Services,Children's Social Care,Support Service and Management Costs,Schools Catering,Kitchen Supplies - Food and Beverages,19/07/2017,3907635,457.50,William White Meats Ltd
Childrens Services,Children's Social Care,Support Service and Management Costs,Schools Catering,Kitchen Supplies - Food and Beverages,19/07/2017,3907676,603.01,William White Meats Ltd
Childrens Services,Children's Social Care,Support Service and Management Costs,Schools Catering,Kitchen Supplies - Food and Beverages,19/07/2017,3907697,335.50,William White Meats Ltd
Childrens Services,Children's Social Care,Children Looked After,Virtual School PPG,Agency Staff - Associations,19/07/2017,3907900,690.45,Academics ltd
Childrens Services,Children's Social Care,Children Looked After,Virtual School PPG,Agency Staff - Associations,19/07/2017,3907901,920.60,Academics ltd
Childrens Services,Children's Social Care,Children Looked After,Virtual School PPG,Agency Staff - Associations,19/07/2017,3907902,"1,150.75",Academics ltd
Childrens Services,Children's Social Care,Children Looked After,Virtual School PPG,Agency Staff - Associations,19/07/2017,3907913,920.60,Academics ltd
Childrens Services,Children's Social Care,Children Looked After,Virtual School PPG,Agency Staff - Associations,19/07/2017,3907914,"1,150.75",Academics ltd
Childrens Services,Education Services,Secondary Schools,PFI Hldg Account-Mulberry Scho,Payments to Private Contractors - Other Contractors,19/07/2017,3908280,"7,832.48",D4E Mulberry LTD
Childrens Services,No Service Specified,No Division Specified,Capital-Minor Works (SC),Building Works - Main Works,19/07/2017,3908451,"183,500.00",Tower Hamlets Schools LTD
Childrens Services,Children's Social Care,Family Support Services,Eva Armsby Family Centre,Services - Professional Fees - Legal Fees/Expenses,19/07/2017,3910230,"2,428.00",Children at Heart Consultancy Ltd
Childrens Services,Children's Social Care,Children Looked After,LCS/Allowances-Accom,Leaving Care Financial Assistance - Grant Pay Special Needs,19/07/2017,3910660,"3,364.20",Heartwood Outreach Services Ltd
Childrens Services,Education Services,Other Strategic Functions,Education Psychologists GF,Meeting Expenses,19/07/2017,3910672,470.00,the royal foundation of st katharine
Childrens Services,Children's Social Care,Children Looked After,LCS/Allowances-Accom,Leaving Care Financial Assistance - Supp Accom/Hous Rents,19/07/2017,3910743,"3,476.34",Heartwood Outreach Services Ltd
Childrens Services,No Service Specified,No Division Specified,Capital-Minor Works (SC),Other External Fees - Consultants Fees,19/07/2017,3911323,"4,620.00",Arcus Consulting LLP
Childrens Services,No Service Specified,No Division Specified,Capital-Minor Works (SC),Other External Fees - Consultants Fees,19/07/2017,3911324,"3,465.00",Arcus Consulting LLP
Childrens Services,No Service Specified,No Division Specified,Capital-Minor Works (SC),Other External Fees - Consultants Fees,19/07/2017,3911325,"2,150.00",Arcus Consulting LLP
Childrens Services,No Service Specified,No Division Specified,Capital-Minor Works (SC),Other External Fees - Consultants Fees,19/07/2017,3911326,"6,496.88",Arcus Consulting LLP
Childrens Services,Children's Social Care,Children Looked After,S23-Resi-P&V/OLA-Sec Acc-Wel,Childrens Act Section 23 - Secure Review Costs,19/07/2017,3911360,665.18,Coram Voice
Childrens Services,No Service Specified,No Division Specified,Capital-Minor Works (SC),Other External Fees - Consultants Fees,19/07/2017,3911383,"3,465.00",Arcus Consulting LLP
Childrens Services,Children's Social Care,Children Looked After,S23-Resi-P&V/OLA-Sec Acc-Wel,Childrens Act Section 23 - Secure Review Costs,19/07/2017,3911388,412.33,Coram Voice
Childrens Services,Children's Social Care,Children Looked After,S23-Resi-P&V/OLA-Sec Acc-Wel,Childrens Act Section 23 - Secure Review Costs,19/07/2017,3911409,421.70,Coram Voice
Childrens Services,Children's Social Care,Children Looked After,S23-Resi-P&V/OLA-Sec Acc-Wel,Childrens Act Section 23 - Secure Review Costs,19/07/2017,3911418,475.18,Coram Voice
Childrens Services,Children's Social Care,Children Looked After,S23-Resi-P&V/OLA-Sec Acc-Wel,Childrens Act Section 23 - Secure Review Costs,19/07/2017,3911424,295.00,Coram Voice
Childrens Services,Children's Social Care,Service Strategy,89 CA Sec 17 Chld in Need POPS,Services - Professional Fees - Translation Fees,19/07/2017,3911669,"1,304.60",Oncall Interpreters LTD
Childrens Services,Children's Social Care,Service Strategy,89 CA Sec 17 Chld in Need POPS,Services - Professional Fees - Translation Fees,19/07/2017,3911826,280.50,Oncall Interpreters LTD
Childrens Services,Education Services,Early Years,Mile End CC,Property Leases - Buildings,19/07/2017,3913270,"21,555.42",Eastend Homes LTD
Childrens Services,Children's Social Care,Children Looked After,S23 Fam Pl P&V-F/Care,Childrens Act Section 23 - Placement Fee,19/07/2017,3913708,"3,291.60",CAPSTONE VISION FOSTER CARE LTD
Childrens Services,Children's Social Care,Services for young people,Outdoor,Educational/Training Supplies - Curriculum Visits/Activities,19/07/2017,3913761,"1,369.99",Safeclimb t/a Applied Trading Ltd
Childrens Services,Children's Social Care,Services for young people,Outdoor,Educational/Training Supplies - Curriculum Visits/Activities,19/07/2017,3913762,853.00,Access Expeditions Ltd
Childrens Services,Children's Social Care,Family Support Services,CNN Pool: Joint Family Support,Childrens Act Section 23 - Non-Contact Trans/Travel Costs,19/07/2017,3913905,308.00,Our Lady & Joseph Catholic Primary Schoo
Childrens Services,Children's Social Care,Family Support Services,CNN Pool: Joint Family Support,Childrens Act Section 23 - Non-Contact Trans/Travel Costs,19/07/2017,3913906,431.20,Our Lady & Joseph Catholic Primary Schoo
Childrens Services,Children's Social Care,Family Support Services,CNN Pool: Joint Family Support,Childrens Act Section 23 - Non-Contact Trans/Travel Costs,19/07/2017,3913913,431.20,Our Lady & Joseph Catholic Primary Schoo
Childrens Services,Children's Social Care,Family Support Services,CNN Pool: Children Direct Paym,Social Care - Direct Payments,19/07/2017,3913963,899.46,DH TOWER HAMLETS
Childrens Services,Cultural and Related Services,Open Spaces,Parks & Open Spaces Man&Admin,Water Services - Metered,19/07/2017,3914018,395.14,CASTLE WATER
Childrens Services,Education Services,Early Years,Wapping C.C - SLA,Water Services - Metered,19/07/2017,3914044,812.20,CASTLE WATER
Childrens Services,Education Services,Other Strategic Functions,Out Of School Support,Water Services - Metered,19/07/2017,3914047,279.47,CASTLE WATER
Childrens Services,Education Services,Other Strategic Functions,Empty Properties,Water Services - Metered,19/07/2017,3914050,"1,025.38",CASTLE WATER
Childrens Services,Children's Social Care,Other Children's and Family Services,Permanent Placements,Services - Professional Fees - Legal Fees/Expenses,19/07/2017,3914089,"2,600.00",Core Assets Expert Services Ltd T/a Carter Brown
Childrens Services,Education Services,Other Strategic Functions,CSF-Equalities Tracking & Dev,Third Party Payments - Payments to Schools,19/07/2017,3914090,"1,900.00",Tower Hamlets Deaf Children's Society
Childrens Services,Cultural and Related Services,Recreation & Sport,Sports Development,Recreational Activities,19/07/2017,3914093,420.00,Simply Hire LTD
Childrens Services,Children's Social Care,Children Looked After,S23-Resi-P&V/OLA-Child Home,Childrens Act Section 23 - Placement Fee,19/07/2017,3914150,"17,131.50",Castle Homes Care Ltd
Childrens Services,Children's Social Care,Family Support Services,CNN Pool: Joint Family Support,Social Care - Homecare,19/07/2017,3914154,"2,302.80",CAREWORLD LONDON LIMITED
Childrens Services,Education Services,Other Strategic Functions,Support for Learning Serv DSG,Services - Professional Fees - Financial Services Fees,19/07/2017,3914195,"16,539.39",Schools Advisory Service
Childrens Services,Cultural and Related Services,Culture & Heritage,Event Fund,Third Party Payments - Voluntary Associations,19/07/2017,3914271,800.00,THE YARD THEATRE
Childrens Services,Cultural and Related Services,Culture & Heritage,Event Fund,Third Party Payments - Voluntary Associations,19/07/2017,3914272,"1,600.00",KAZZUM ARTS PROJECT LTD
Childrens Services,Cultural and Related Services,Culture & Heritage,Event Fund,Third Party Payments - Voluntary Associations,19/07/2017,3914273,250.00,West Indian Over 50's Social Club
Childrens Services,Education Services,Early Years,Mary Sambrook,Water Services - Metered,19/07/2017,3914318,372.82,CASTLE WATER
Childrens Services,Education Services,Early Years,Little Oaks C.C - SLA,Water Services - Metered,19/07/2017,3914327,474.43,CASTLE WATER
Childrens Services,Cultural and Related Services,Open Spaces,Mile End Park,Water Services - Metered,19/07/2017,3914329,"1,432.62",CASTLE WATER
Childrens Services,Children's Social Care,Children Looked After,S23 Fam Pl P&V-F/Care,Childrens Act Section 23 - Placement Fee,19/07/2017,3914416,"1,780.30",Scope
Childrens Services,Children's Social Care,Children Looked After,S23 Fam Pl P&V-F/Care,Childrens Act Section 23 - Placement Fee,19/07/2017,3914417,"1,780.30",Scope
Childrens Services,Cultural and Related Services,Culture & Heritage,Youth Arts,Education & Training - Non Staff Tuition Fees,19/07/2017,3914452,"2,237.50","University Of The Arts, London"
Childrens Services,Children's Social Care,Children Looked After,S23 Fam Pl P&V-F/Care,Childrens Act Section 23 - Placement Fee,19/07/2017,3914453,"2,465.83",Futures for Children Ltd
Childrens Services,Education Services,Other Strategic Functions,Schools Library,Comms - Courier,19/07/2017,3914462,265.50,Ram Transport LTD
Childrens Services,Children's Social Care,Children Looked After,S23 Fam Pl P&V-F/Care,Childrens Act Section 23 - Placement Fee,19/07/2017,3914478,"1,133.00",Time For Children
Childrens Services,Education Services,Other Strategic Functions,Empty Properties,Water Services - Metered,19/07/2017,3914612,346.77,CASTLE WATER
Childrens Services,Children's Social Care,Services for young people,Outdoor,Educational/Training Supplies - Curriculum Visits/Activities,19/07/2017,3915635,288.00,Mile End Climbing Wall
Childrens Services,Education Services,Early Years,Children Centre Central Team,Third Party Payments - Voluntary Associations,19/07/2017,3915721,400.00,Toyhouse
Childrens Services,Education Services,Other Strategic Functions,High Needs Academies & Free Schs,Third Party Payments - Payments to Schools,21/07/2017,3842171,-782.50,Wapping High School
Childrens Services,Education Services,Other Strategic Functions,High Needs Academies & Free Schs,Third Party Payments - Payments to Schools,21/07/2017,3880264,"18,853.66",Solebay Primary a Paradigm Academy
Childrens Services,Children's Social Care,Children Looked After,LCS/Allowances-Accom,Leaving Care Financial Assistance - Supp Accom/Hous Rents,21/07/2017,3893609,"1,534.50",Silver Birch Care LTD
Childrens Services,Children's Social Care,Children Looked After,LCS/Allowances-Accom,Leaving Care Financial Assistance - Supp Accom/Hous Rents,21/07/2017,3898596,"1,485.00",Silver Birch Care LTD
Childrens Services,Children's Social Care,Children Looked After,LCS/Allowances-Accom,Leaving Care Financial Assistance - Grant Pay Special Needs,21/07/2017,3898683,"2,892.86",Silver Birch Care LTD
Childrens Services,Children's Social Care,Children Looked After,LCS/Allowances-Accom,Leaving Care Financial Assistance - Supp Accom/Hous Rents,21/07/2017,3898683,642.86,Silver Birch Care LTD
Childrens Services,Education Services,Other Strategic Functions,High Needs Academies & Free Schs,Third Party Payments - Payments to Schools,21/07/2017,3901555,"-1,761.71",Wapping High School
Childrens Services,Education Services,Other Strategic Functions,High Needs Academies & Free Schs,Third Party Payments - Payments to Schools,21/07/2017,3901556,-422.08,Wapping High School
Childrens Services,Children's Social Care,Children Looked After,Virtual School PPG,Third Party Payments - Payments to Schools,21/07/2017,3903263,"2,204.00",Arthur Bugler Primary School
Childrens Services,Education Services,Other Strategic Functions,Special Education Needs DSG,Third Party Payments - Payments to Schools,21/07/2017,3904130,"1,862.00",St Johns School
Childrens Services,Education Services,Other Strategic Functions,Special Education Needs DSG,Third Party Payments - Payments to Schools,21/07/2017,3904147,"1,862.00",St Johns School
Childrens Services,Children's Social Care,Support Service and Management Costs,Sch. Meals A/c - Central Production Unit,Kitchen Supplies - Food and Beverages,21/07/2017,3904153,"1,852.28",Thomas Ridley & Son Ltd
Childrens Services,Education Services,Other Strategic Functions,Special Education Needs DSG,Third Party Payments - Payments to Schools,21/07/2017,3904166,935.00,St Johns School
Childrens Services,Education Services,Other Strategic Functions,Special Education Needs DSG,Third Party Payments - Payments to Schools,21/07/2017,3904166,"8,800.00",St Johns School
Childrens Services,Children's Social Care,Support Service and Management Costs,Schools Catering,Kitchen Supplies - Food and Beverages,21/07/2017,3904330,262.02,Thomas Ridley & Son Ltd
Childrens Services,Children's Social Care,Support Service and Management Costs,Schools Catering,Kitchen Supplies - Food and Beverages,21/07/2017,3904331,438.42,Thomas Ridley & Son Ltd
Childrens Services,Children's Social Care,Support Service and Management Costs,Schools Catering,Kitchen Supplies - Food and Beverages,21/07/2017,3904332,624.45,Thomas Ridley & Son Ltd
Childrens Services,Children's Social Care,Support Service and Management Costs,Schools Catering,Kitchen Supplies - Food and Beverages,21/07/2017,3904334,622.11,Thomas Ridley & Son Ltd
Childrens Services,Children's Social Care,Support Service and Management Costs,Schools Catering,Kitchen Supplies - Food and Beverages,21/07/2017,3904335,430.88,Thomas Ridley & Son Ltd
Childrens Services,Children's Social Care,Support Service and Management Costs,Schools Catering,Kitchen Supplies - Food and Beverages,21/07/2017,3904343,283.11,Thomas Ridley & Son Ltd
Childrens Services,Children's Social Care,Support Service and Management Costs,Schools Catering,Kitchen Supplies - Food and Beverages,21/07/2017,3904344,728.02,Thomas Ridley & Son Ltd
Childrens Services,Children's Social Care,Support Service and Management Costs,Schools Catering,Kitchen Supplies - Food and Beverages,21/07/2017,3904345,301.22,Thomas Ridley & Son Ltd
Childrens Services,Children's Social Care,Support Service and Management Costs,Schools Catering,Kitchen Supplies - Food and Beverages,21/07/2017,3904346,380.00,Thomas Ridley & Son Ltd
Childrens Services,Children's Social Care,Support Service and Management Costs,Schools Catering,Kitchen Supplies - Food and Beverages,21/07/2017,3904347,678.35,Thomas Ridley & Son Ltd
Childrens Services,Children's Social Care,Children Looked After,S23 Fam Pl P&V-F/Care,Childrens Act Section 23 - Placement Fee,21/07/2017,3904459,"3,599.20",Barnardo's
Childrens Services,Children's Social Care,Support Service and Management Costs,Sch. Meals A/c - Central Production Unit,Kitchen Supplies - Food and Beverages,21/07/2017,3904548,-445.76,Thomas Ridley & Son Ltd
Childrens Services,Education Services,Other Strategic Functions,Parental Engagement,Subscriptions - Associations,21/07/2017,3904578,715.00,Race Equality Foundation
Childrens Services,Children's Social Care,Support Service and Management Costs,Schools Catering,Kitchen Supplies - Food and Beverages,21/07/2017,3904657,272.56,Thomas Ridley & Son Ltd
Childrens Services,Children's Social Care,Support Service and Management Costs,Schools Catering,Kitchen Supplies - Food and Beverages,21/07/2017,3904660,617.28,Thomas Ridley & Son Ltd
Childrens Services,Children's Social Care,Support Service and Management Costs,Schools Catering,Kitchen Supplies - Food and Beverages,21/07/2017,3904664,814.43,Thomas Ridley & Son Ltd
Childrens Services,Children's Social Care,Support Service and Management Costs,Schools Catering,Kitchen Supplies - Food and Beverages,21/07/2017,3904671,401.40,Thomas Ridley & Son Ltd
Childrens Services,Children's Social Care,Support Service and Management Costs,Schools Catering,Kitchen Supplies - Food and Beverages,21/07/2017,3904673,362.14,Thomas Ridley & Son Ltd
Childrens Services,Children's Social Care,Support Service and Management Costs,Schools Catering,Kitchen Supplies - Food and Beverages,21/07/2017,3904677,891.87,Thomas Ridley & Son Ltd
Childrens Services,Children's Social Care,Support Service and Management Costs,Schools Catering,Kitchen Supplies - Food and Beverages,21/07/2017,3904680,589.31,Thomas Ridley & Son Ltd
Childrens Services,Children's Social Care,Support Service and Management Costs,Schools Catering,Kitchen Supplies - Food and Beverages,21/07/2017,3904684,315.42,Thomas Ridley & Son Ltd
Childrens Services,Children's Social Care,Other Children's and Family Services,Permanent Placements,Services - Professional Fees - Feasibility Studies,21/07/2017,3904776,550.00,Intuitive Blue Social Care Ltd
Childrens Services,Cultural and Related Services,Open Spaces,Victoria Park,Grounds Maintenance - Contract - Play Equipment Maintenance,21/07/2017,3904791,695.00,The Play Inspection Company
Childrens Services,Children's Social Care,Support Service and Management Costs,Schools Catering,Kitchen Supplies - Food and Beverages,21/07/2017,3904817,-300.74,Thomas Ridley & Son Ltd
Childrens Services,Children's Social Care,Children Looked After,Virtual School PPG,Third Party Payments - Payments to Schools,21/07/2017,3904836,500.00,HAMSTEL JUNIOR SCHOOL
Childrens Services,Children's Social Care,Children Looked After,S23-Resi-P&V/OLA-Sec Acc-Wel,Childrens Act Section 23 - Placement Fee,21/07/2017,3904864,"4,800.00",HILLSIDE SECURE CHILDREN'S HOME
Childrens Services,Children's Social Care,Support Service and Management Costs,Schools Catering,Kitchen Supplies - Food and Beverages,21/07/2017,3904905,-577.70,Thomas Ridley & Son Ltd
Childrens Services,Children's Social Care,Support Service and Management Costs,Schools Catering,Kitchen Supplies - Food and Beverages,21/07/2017,3904921,-624.45,Thomas Ridley & Son Ltd
Childrens Services,Children's Social Care,Support Service and Management Costs,Schools Catering,Kitchen Supplies - Food and Beverages,21/07/2017,3904934,-262.02,Thomas Ridley & Son Ltd
Childrens Services,Children's Social Care,Support Service and Management Costs,Schools Catering,Kitchen Supplies - Food and Beverages,21/07/2017,3904949,-456.46,Thomas Ridley & Son Ltd
Childrens Services,Children's Social Care,Service Strategy,FS&P - NRPF,Social Care - Day Care,21/07/2017,3905130,353.50,Limehouse Children Contact Centre LTD
Childrens Services,Children's Social Care,Children Looked After,Virtual School PPG,Third Party Payments - Payments to Schools,21/07/2017,3905146,"1,000.00",BARRINGTON PRIMARY SCHOOL
Childrens Services,Education Services,Other Strategic Functions,High Needs Academies & Free Schs,Third Party Payments - Payments to Schools,21/07/2017,3905165,"4,599.05",Wapping High School
Childrens Services,Children's Social Care,Support Service and Management Costs,Swanlea,Kitchen Supplies - Food and Beverages,21/07/2017,3905185,589.91,William White Meats Ltd
Childrens Services,Children's Social Care,Support Service and Management Costs,Welfare Catering,Kitchen Supplies - Food and Beverages,21/07/2017,3905208,381.67,William White Meats Ltd
Childrens Services,Children's Social Care,Support Service and Management Costs,Welfare Catering,Kitchen Supplies - Food and Beverages,21/07/2017,3905221,490.37,William White Meats Ltd
Childrens Services,Children's Social Care,Support Service and Management Costs,Sch. Meals A/c - Central Production Unit,Kitchen Supplies - Food and Beverages,21/07/2017,3905222,305.00,William White Meats Ltd
Childrens Services,Children's Social Care,Support Service and Management Costs,Sch. Meals A/c - Central Production Unit,Kitchen Supplies - Food and Beverages,21/07/2017,3905231,"2,096.95",William White Meats Ltd
Childrens Services,Children's Social Care,Children Looked After,S23 Fam Pl P&V-F/Care,Childrens Act Section 23 - Non-Contact Trans/Travel Costs,21/07/2017,3906488,"2,612.00",Integrated Service Programme
Childrens Services,Education Services,Other Strategic Functions,Central Pupil Database Project,Training Expenses - Staff External Training (UK Based),21/07/2017,3906517,"2,900.00",Wise Owl Business Solutions Ltd
Childrens Services,Cultural and Related Services,Open Spaces,Parks & Open Spaces Man&Admin,Repairs and Maintenance - Responsive - Buildings,21/07/2017,3906551,"2,000.00",J&L Coster (Drainage) Ltd
Childrens Services,Cultural and Related Services,Open Spaces,Mile End Park,Repairs and Maintenance - Responsive - Buildings,21/07/2017,3906552,950.00,J&L Coster (Drainage) Ltd
Childrens Services,Adult Social Care,Support Service and Management Costs,Org Development L&D Training,Social Care - Drugs/Alcohol Dual Dia,21/07/2017,3906588,695.00,Talking Life
Childrens Services,Children's Social Care,Support Service and Management Costs,Schools Catering,Kitchen Supplies - Food and Beverages,21/07/2017,3906713,291.90,William White Meats Ltd
Childrens Services,Children's Social Care,Children Looked After,S23 Fam Pl P&V-F/Care,Childrens Act Section 23 - Commissioned Services,21/07/2017,3907452,550.00,Triangle Services Ltd
Childrens Services,Children's Social Care,Support Service and Management Costs,Schools Catering,Kitchen Supplies - Food and Beverages,21/07/2017,3907573,266.16,William White Meats Ltd
Childrens Services,Children's Social Care,Support Service and Management Costs,Schools Catering,Kitchen Supplies - Food and Beverages,21/07/2017,3907593,362.11,William White Meats Ltd
Childrens Services,Children's Social Care,Support Service and Management Costs,Schools Catering,Kitchen Supplies - Food and Beverages,21/07/2017,3907623,287.24,William White Meats Ltd
Childrens Services,Children's Social Care,Support Service and Management Costs,Schools Catering,Kitchen Supplies - Food and Beverages,21/07/2017,3907627,698.55,William White Meats Ltd
Childrens Services,Children's Social Care,Support Service and Management Costs,Schools Catering,Kitchen Supplies - Food and Beverages,21/07/2017,3907673,250.67,William White Meats Ltd
Childrens Services,Children's Social Care,Support Service and Management Costs,Schools Catering,Kitchen Supplies - Food and Beverages,21/07/2017,3907685,402.92,William White Meats Ltd
Childrens Services,Children's Social Care,Support Service and Management Costs,Schools Catering,Kitchen Supplies - Food and Beverages,21/07/2017,3907691,283.56,William White Meats Ltd
Childrens Services,Children's Social Care,Support Service and Management Costs,Schools Catering,Kitchen Supplies - Food and Beverages,21/07/2017,3907733,364.00,William White Meats Ltd
Childrens Services,Children's Social Care,Support Service and Management Costs,Schools Catering,Kitchen Supplies - Food and Beverages,21/07/2017,3907737,283.45,William White Meats Ltd
Childrens Services,Children's Social Care,Support Service and Management Costs,Schools Catering,Kitchen Supplies - Food and Beverages,21/07/2017,3907742,283.50,William White Meats Ltd
Childrens Services,Children's Social Care,Support Service and Management Costs,Schools Catering,Kitchen Supplies - Food and Beverages,21/07/2017,3907743,343.95,William White Meats Ltd
Childrens Services,Children's Social Care,Support Service and Management Costs,Schools Catering,Kitchen Supplies - Food and Beverages,21/07/2017,3907745,291.80,William White Meats Ltd
Childrens Services,Children's Social Care,Support Service and Management Costs,Schools Catering,Kitchen Supplies - Food and Beverages,21/07/2017,3907748,265.60,William White Meats Ltd
Childrens Services,Children's Social Care,Support Service and Management Costs,Schools Catering,Kitchen Supplies - Food and Beverages,21/07/2017,3907749,580.06,William White Meats Ltd
Childrens Services,Children's Social Care,Support Service and Management Costs,Schools Catering,Kitchen Supplies - Food and Beverages,21/07/2017,3907750,286.49,William White Meats Ltd
Childrens Services,Children's Social Care,Support Service and Management Costs,Schools Catering,Kitchen Supplies - Food and Beverages,21/07/2017,3907758,360.23,William White Meats Ltd
Childrens Services,Children's Social Care,Support Service and Management Costs,Schools Catering,Kitchen Supplies - Food and Beverages,21/07/2017,3907760,258.90,William White Meats Ltd
Childrens Services,Children's Social Care,Support Service and Management Costs,Schools Catering,Kitchen Supplies - Food and Beverages,21/07/2017,3907761,254.11,William White Meats Ltd
Childrens Services,Children's Social Care,Children's and Young People's Safety,CLA Reviewing Service,Non Staff Transport Costs - Reimbursement,21/07/2017,3908173,759.50,RSP Rail Travel (Rail Settlement Plan)
Childrens Services,Education Services,Other Strategic Functions,Property & Asset Management,Services - Professional Fees - Legal Fees/Expenses,21/07/2017,3908191,"4,500.00",Greater London Authority
Childrens Services,Education Services,Other Strategic Functions,Empty Properties,Repairs and Maintenance - Responsive - Repair & Maintenance,21/07/2017,3908223,"9,030.00",Manpower Direct UK
Childrens Services,Education Services,Secondary Schools,PFI Hldg Account-Mulberry Scho,Payments to Private Contractors - Other Contractors,21/07/2017,3908226,"7,832.48",D4E Mulberry LTD
Childrens Services,Education Services,Other Strategic Functions,High Needs Other Boroughs,Third Party Payments - Payments to Schools,21/07/2017,3908564,"2,227.37",City of Westminster
Childrens Services,Education Services,Other Education and Community Budget,Community Languages,Training Expenses - Staff External Training (UK Based),21/07/2017,3910004,890.00,GovNet Communications
Childrens Services,Education Services,Other Strategic Functions,Empty Properties,Repairs and Maintenance - Responsive - Repair & Maintenance,21/07/2017,3910106,"11,775.00",Manpower Direct UK
Childrens Services,Education Services,Other Education and Community Budget,Community Languages,Computing - Purchase of Software,21/07/2017,3910122,"1,191.00",Specialist Computer Centres PLC
Childrens Services,Education Services,Other Strategic Functions,Central Pupil Database Project,Computing - Purchase of Software,21/07/2017,3910456,"1,350.00",Serverlec Synergy Ltd
Childrens Services,Children's Social Care,Children Looked After,S23 Fam Pl P&V-F/Care,Childrens Act Section 23 - Commissioned Services,21/07/2017,3910776,"1,022.88",The Transformed You Community Interest Company
Childrens Services,Education Services,Other Strategic Functions,Health through Education,Room Hire,21/07/2017,3911354,"1,800.00",Greenwich Leisure LTD
Childrens Services,Children's Social Care,Family Support Services,Eva Armsby Family Centre,Services - Professional Fees - Legal Fees/Expenses,21/07/2017,3911506,326.50,EF Focus Ltd
Childrens Services,Children's Social Care,Children Looked After,S23-Resi-P&V/OLA-Child Home,Childrens Act Section 23 - Placement Fee,21/07/2017,3913661,"10,285.71",Harmony Residential Homes Ltd
Childrens Services,Education Services,Other Strategic Functions,Special Education Needs DSG,Third Party Payments - Payments to Schools,21/07/2017,3913720,637.50,Randstad Education
Childrens Services,Education Services,Other Strategic Functions,Special Education Needs DSG,Third Party Payments - Payments to Schools,21/07/2017,3913769,"6,143.20",SMALL HAVEN SCHOOL
Childrens Services,Education Services,Other Strategic Functions,Special Education Needs DSG,Third Party Payments - Payments to Schools,21/07/2017,3913833,637.50,Randstad Education
Childrens Services,Education Services,Other Strategic Functions,Special Education Needs DSG,Third Party Payments - Payments to Schools,21/07/2017,3913871,637.50,Randstad Education
Childrens Services,Education Services,Other Strategic Functions,Special Education Needs DSG,Third Party Payments - Payments to Schools,21/07/2017,3913884,510.00,Randstad Education
Childrens Services,Education Services,Other Strategic Functions,Special Education Needs DSG,Third Party Payments - Payments to Schools,21/07/2017,3913893,637.50,Randstad Education
Childrens Services,Education Services,Other Strategic Functions,Special Education Needs DSG,Third Party Payments - Payments to Schools,21/07/2017,3913899,425.00,Randstad Education
Childrens Services,Education Services,Other Strategic Functions,Special Education Needs DSG,Third Party Payments - Payments to Schools,21/07/2017,3913908,637.50,Randstad Education
Childrens Services,Education Services,Other Strategic Functions,Special Education Needs DSG,Third Party Payments - Payments to Schools,21/07/2017,3913919,637.50,Randstad Education
Childrens Services,Education Services,Other Strategic Functions,Special Education Needs DSG,Third Party Payments - Payments to Schools,21/07/2017,3913926,637.50,Randstad Education
Childrens Services,Education Services,Other Strategic Functions,Special Education Needs DSG,Third Party Payments - Payments to Schools,21/07/2017,3913932,637.50,Randstad Education
Childrens Services,Education Services,Other Strategic Functions,Special Education Needs DSG,Third Party Payments - Payments to Schools,21/07/2017,3913939,637.50,Randstad Education
Childrens Services,Children's Social Care,Children Looked After,Special G/Ship Allowances,Social Care - Adoption Allowance,21/07/2017,3913983,290.00,LBTH - BOW SOCIAL SERVICES
Childrens Services,Children's Social Care,Services for young people,Connexions General Fund,Non Staff Transport Costs - Client Transport Costs,21/07/2017,3913984,303.80,NEWSTART
Childrens Services,Education Services,Other Strategic Functions,Special Education Needs DSG,Third Party Payments - Payments to Schools,21/07/2017,3914108,637.50,Randstad Education
Childrens Services,Education Services,Other Strategic Functions,Education Psychologists GF,Newspapers and Magazines - General Purchases,21/07/2017,3914110,873.00,Hogrefe Ltd
Childrens Services,Education Services,Other Strategic Functions,Special Education Needs DSG,Third Party Payments - Payments to Schools,21/07/2017,3914214,637.50,Randstad Education
Childrens Services,Education Services,Other Strategic Functions,Special Education Needs DSG,Third Party Payments - Payments to Schools,21/07/2017,3914235,637.50,Randstad Education
Childrens Services,Education Services,Other Strategic Functions,Special Education Needs DSG,Third Party Payments - Payments to Schools,21/07/2017,3914243,765.00,Randstad Education
Childrens Services,Children's Social Care,Children Looked After,Enrichment Projects,Recreational Activities,21/07/2017,3914394,900.00,Jam Total Sport
Childrens Services,Children's Social Care,Other Children's and Family Services,Adoption Support Fund,Third Party Payments - Other Agencies,21/07/2017,3915633,"4,959.90",Post-Adoption Centre
Childrens Services,Children's Social Care,Service Strategy,89 CA Sec 17 Chld in Need POPS,Social Care - Day Care,21/07/2017,3915726,639.00,Limehouse Children Contact Centre LTD
